Body Name,Body,Date,Department,Beneficiary,Summary of Purpose (SeRCOP),Amount SUM,Merchant Code,Transaction Number,Supplier ID
Sandwell Metropolitan Borough Council,http://www.sandwell.gov.uk/info/200202/performance_and_spending/1079/payments_over_500,01-Mar-2024,Adults Social Care Capital,PREMIER MOBILITY UK LTD,Adults Social Care Capital,5934.70,Deferred Charges/Grant Payments,2324P12_CR00001,167259
Sandwell Metropolitan Borough Council,http://www.sandwell.gov.uk/info/200202/performance_and_spending/1079/payments_over_500,01-Mar-2024,Adults Social Care Capital,PREMIER MOBILITY UK LTD,Adults Social Care Capital,2347.69,Deferred Charges/Grant Payments,2324P12_CR00002,167259
Sandwell Metropolitan Borough Council,http://www.sandwell.gov.uk/info/200202/performance_and_spending/1079/payments_over_500,01-Mar-2024,Adults Social Care Capital,PREMIER MOBILITY UK LTD,Adults Social Care Capital,2392.46,Deferred Charges/Grant Payments,2324P12_CR00003,167259
Sandwell Metropolitan Borough Council,http://www.sandwell.gov.uk/info/200202/performance_and_spending/1079/payments_over_500,01-Mar-2024,Adults Social Care Capital,PREMIER MOBILITY UK LTD,Adults Social Care Capital,1952.69,Deferred Charges/Grant Payments,2324P12_CR00004,167259
Sandwell Metropolitan Borough Council,http://www.sandwell.gov.uk/info/200202/performance_and_spending/1079/payments_over_500,01-Mar-2024,Adults Social Care Capital,PREMIER MOBILITY UK LTD,Adults Social Care Capital,4705.79,Deferred Charges/Grant Payments,2324P12_CR00005,167259
Sandwell Metropolitan Borough Council,http://www.sandwell.gov.uk/info/200202/performance_and_spending/1079/payments_over_500,01-Mar-2024,Adults Social Care Capital,PREMIER MOBILITY UK LTD,Adults Social Care Capital,4627.03,Deferred Charges/Grant Payments,2324P12_CR00006,167259
Sandwell Metropolitan Borough Council,http://www.sandwell.gov.uk/info/200202/performance_and_spending/1079/payments_over_500,01-Mar-2024,Adults Social Care Capital,WESSEX LIFT CO LTD,Adults Social Care Capital,12114.25,Deferred Charges/Grant Payments,2324P12_CR00007,01095737
Sandwell Metropolitan Borough Council,http://www.sandwell.gov.uk/info/200202/performance_and_spending/1079/payments_over_500,01-Mar-2024,Adults Social Care Capital,WESSEX LIFT CO LTD,Adults Social Care Capital,13231.03,Deferred Charges/Grant Payments,2324P12_CR00008,01095737
Sandwell Metropolitan Borough Council,http://www.sandwell.gov.uk/info/200202/performance_and_spending/1079/payments_over_500,01-Mar-2024,Adults Social Care Capital,WESSEX LIFT CO LTD,Adults Social Care Capital,11442.58,Deferred Charges/Grant Payments,2324P12_CR00009,01095737
Sandwell Metropolitan Borough Council,http://www.sandwell.gov.uk/info/200202/performance_and_spending/1079/payments_over_500,01-Mar-2024,Adults Social Care Capital,DESIGN SYNTAX LIMITED,Adults Social Care Capital,24640.00,Deferred Charges/Grant Payments,2324P12_CR00010,106226
Sandwell Metropolitan Borough Council,http://www.sandwell.gov.uk/info/200202/performance_and_spending/1079/payments_over_500,05-Mar-2024,Adults Social Care Capital,DESIGN SYNTAX LIMITED,Adults Social Care Capital,6627.50,Deferred Charges/Grant Payments,2324P12_CR00011,106226
Sandwell Metropolitan Borough Council,http://www.sandwell.gov.uk/info/200202/performance_and_spending/1079/payments_over_500,01-Mar-2024,Adults Social Care Capital,HOME DESIGN,Adults Social Care Capital,9660.00,Deferred Charges/Grant Payments,2324P12_CR00012,141847
Sandwell Metropolitan Borough Council,http://www.sandwell.gov.uk/info/200202/performance_and_spending/1079/payments_over_500,08-Mar-2024,Adults Social Care Capital,HOME DESIGN,Adults Social Care Capital,8000.00,Deferred Charges/Grant Payments,2324P12_CR00013,141847
Sandwell Metropolitan Borough Council,http://www.sandwell.gov.uk/info/200202/performance_and_spending/1079/payments_over_500,01-Mar-2024,Adults Social Care Capital,NATIONAL GRID,Adults Social Care Capital,3970.06,Deferred Charges/Grant Payments,2324P12_CR00014,86451
Sandwell Metropolitan Borough Council,http://www.sandwell.gov.uk/info/200202/performance_and_spending/1079/payments_over_500,05-Mar-2024,Adults Social Care Capital,PR BUILDING SERVICES,Adults Social Care Capital,7950.01,Deferred Charges/Grant Payments,2324P12_CR00015,167483
Sandwell Metropolitan Borough Council,http://www.sandwell.gov.uk/info/200202/performance_and_spending/1079/payments_over_500,05-Mar-2024,Adults Social Care Capital,PR PROPERTY MAINTENANCE,Adults Social Care Capital,7950.01,Deferred Charges/Grant Payments,2324P12_CR00016,33836
Sandwell Metropolitan Borough Council,http://www.sandwell.gov.uk/info/200202/performance_and_spending/1079/payments_over_500,01-Mar-2024,Adults Social Care Capital,PR PROPERTY MAINTENANCE,Adults Social Care Capital,670.45,Deferred Charges/Grant Payments,2324P12_CR00017,33836
Sandwell Metropolitan Borough Council,http://www.sandwell.gov.uk/info/200202/performance_and_spending/1079/payments_over_500,01-Mar-2024,Adults Social Care Capital,PR PROPERTY MAINTENANCE,Adults Social Care Capital,670.45,Deferred Charges/Grant Payments,2324P12_CR00018,33836
Sandwell Metropolitan Borough Council,http://www.sandwell.gov.uk/info/200202/performance_and_spending/1079/payments_over_500,01-Mar-2024,Adults Social Care Capital,PR PROPERTY MAINTENANCE,Adults Social Care Capital,4521.74,Deferred Charges/Grant Payments,2324P12_CR00019,33836
Sandwell Metropolitan Borough Council,http://www.sandwell.gov.uk/info/200202/performance_and_spending/1079/payments_over_500,11-Mar-2024,Adults Social Care Capital,SPECTOR DESIGN LTD,Adults Social Care Capital,15270.84,Deferred Charges/Grant Payments,2324P12_CR00020,134898
Sandwell Metropolitan Borough Council,http://www.sandwell.gov.uk/info/200202/performance_and_spending/1079/payments_over_500,01-Mar-2024,Adults Social Care Capital,TDF DESIGN LIMITED,Adults Social Care Capital,21201.97,Deferred Charges/Grant Payments,2324P12_CR00021,10320
Sandwell Metropolitan Borough Council,http://www.sandwell.gov.uk/info/200202/performance_and_spending/1079/payments_over_500,11-Mar-2024,Adults Social Care Capital,TDF DESIGN LIMITED,Adults Social Care Capital,3451.33,Deferred Charges/Grant Payments,2324P12_CR00022,10320
Sandwell Metropolitan Borough Council,http://www.sandwell.gov.uk/info/200202/performance_and_spending/1079/payments_over_500,01-Mar-2024,Adults Social Care Capital,TDF DESIGN LIMITED,Adults Social Care Capital,13500.00,Deferred Charges/Grant Payments,2324P12_CR00023,10320
Sandwell Metropolitan Borough Council,http://www.sandwell.gov.uk/info/200202/performance_and_spending/1079/payments_over_500,07-Mar-2024,Adults Social Care Capital,UDDIN DESIGN,Adults Social Care Capital,534.50,Deferred Charges/Grant Payments,2324P12_CR00024,167576
Sandwell Metropolitan Borough Council,http://www.sandwell.gov.uk/info/200202/performance_and_spending/1079/payments_over_500,01-Mar-2024,Adults Social Care Capital,REDACTED PERSONAL DATA,Adults Social Care Capital,10257.00,Deferred Charges/Grant Payments,2324P12_CR00025,REDACTED PERSONAL DATA
Sandwell Metropolitan Borough Council,http://www.sandwell.gov.uk/info/200202/performance_and_spending/1079/payments_over_500,08-Mar-2024,Adults Social Care Capital,REDACTED PERSONAL DATA,Adults Social Care Capital,16743.00,Deferred Charges/Grant Payments,2324P12_CR00026,REDACTED PERSONAL DATA
Sandwell Metropolitan Borough Council,http://www.sandwell.gov.uk/info/200202/performance_and_spending/1079/payments_over_500,13-Mar-2024,Adults Social Care Capital,LIFT & ENGINEERING SERVICES LTD,Adults Social Care Capital,816.38,"CIP - New Construction,Conversion, Enhancement & Reno",2324P12_CR00027,77003962
Sandwell Metropolitan Borough Council,http://www.sandwell.gov.uk/info/200202/performance_and_spending/1079/payments_over_500,06-Mar-2024,Adults Social Care Capital,LIFT & ENGINEERING SERVICES LTD,Adults Social Care Capital,603.61,"CIP - New Construction,Conversion, Enhancement & Reno",2324P12_CR00028,77003962
Sandwell Metropolitan Borough Council,http://www.sandwell.gov.uk/info/200202/performance_and_spending/1079/payments_over_500,01-Mar-2024,Childrens Services,DV247 LIMITED,Childrens Services,-720.30,Equipment & Furniture ,2324P12_CR00029,113728
Sandwell Metropolitan Borough Council,http://www.sandwell.gov.uk/info/200202/performance_and_spending/1079/payments_over_500,01-Mar-2024,Childrens Services,ABBEY JUNIOR SCHOOL   ,Childrens Services,1750.00,Externally Purchased Professional Services ,2324P12_CR00030,04031024
Sandwell Metropolitan Borough Council,http://www.sandwell.gov.uk/info/200202/performance_and_spending/1079/payments_over_500,14-Mar-2024,Childrens Services,AFJ LIMITED,Childrens Services,59994.75,Public Transport,2324P12_CR00031,164912
Sandwell Metropolitan Borough Council,http://www.sandwell.gov.uk/info/200202/performance_and_spending/1079/payments_over_500,04-Mar-2024,Childrens Services,ALEX STYLES PHOTOGRAPHY LTD,Childrens Services,2550.00,Advertising & Publicity,2324P12_CR00032,166978
Sandwell Metropolitan Borough Council,http://www.sandwell.gov.uk/info/200202/performance_and_spending/1079/payments_over_500,01-Mar-2024,Childrens Services,AMP BIOMASS FUEL LTD T/A AMP CLEAN ENERGY,Childrens Services,3998.00,Ingestre Hall Arts Centre.Energy Costs-Bio Energy Costs,2324P12_CR00033,128761
Sandwell Metropolitan Borough Council,http://www.sandwell.gov.uk/info/200202/performance_and_spending/1079/payments_over_500,01-Mar-2024,Childrens Services,AMP BIOMASS FUEL LTD T/A AMP CLEAN ENERGY,Childrens Services,2506.75,Ingestre Hall Arts Centre.Energy Costs-Bio Energy Costs,2324P12_CR00034,128761
Sandwell Metropolitan Borough Council,http://www.sandwell.gov.uk/info/200202/performance_and_spending/1079/payments_over_500,01-Mar-2024,Childrens Services,AMP BIOMASS FUEL LTD T/A AMP CLEAN ENERGY,Childrens Services,3646.18,Ingestre Hall Arts Centre.Energy Costs-Bio Energy Costs,2324P12_CR00035,128761
Sandwell Metropolitan Borough Council,http://www.sandwell.gov.uk/info/200202/performance_and_spending/1079/payments_over_500,01-Mar-2024,Childrens Services,AMP BIOMASS FUEL LTD T/A AMP CLEAN ENERGY,Childrens Services,2830.58,Ingestre Hall Arts Centre.Energy Costs-Bio Energy Costs,2324P12_CR00036,128761
Sandwell Metropolitan Borough Council,http://www.sandwell.gov.uk/info/200202/performance_and_spending/1079/payments_over_500,07-Mar-2024,Childrens Services,APD PRINT & DESIGN,Childrens Services,700.00,"Printing, Stationery & General Office Expenses",2324P12_CR00037,49454
Sandwell Metropolitan Borough Council,http://www.sandwell.gov.uk/info/200202/performance_and_spending/1079/payments_over_500,01-Mar-2024,Childrens Services,APD PRINT & DESIGN,Childrens Services,970.00,"Printing, Stationery & General Office Expenses",2324P12_CR00038,49454
Sandwell Metropolitan Borough Council,http://www.sandwell.gov.uk/info/200202/performance_and_spending/1079/payments_over_500,01-Mar-2024,Childrens Services,APD PRINT & DESIGN,Childrens Services,2241.00,"Printing, Stationery & General Office Expenses",2324P12_CR00039,49454
Sandwell Metropolitan Borough Council,http://www.sandwell.gov.uk/info/200202/performance_and_spending/1079/payments_over_500,22-Mar-2024,Childrens Services,APD PRINT & DESIGN,Childrens Services,3320.00,"Printing, Stationery & General Office Expenses",2324P12_CR00040,49454
Sandwell Metropolitan Borough Council,http://www.sandwell.gov.uk/info/200202/performance_and_spending/1079/payments_over_500,22-Mar-2024,Childrens Services,APD PRINT & DESIGN,Childrens Services,1265.00,"Printing, Stationery & General Office Expenses",2324P12_CR00041,49454
Sandwell Metropolitan Borough Council,http://www.sandwell.gov.uk/info/200202/performance_and_spending/1079/payments_over_500,01-Mar-2024,Childrens Services,APD PRINT & DESIGN,Childrens Services,750.00,"Printing, Stationery & General Office Expenses",2324P12_CR00042,49454
Sandwell Metropolitan Borough Council,http://www.sandwell.gov.uk/info/200202/performance_and_spending/1079/payments_over_500,01-Mar-2024,Childrens Services,APD PRINT & DESIGN,Childrens Services,750.00,"Printing, Stationery & General Office Expenses",2324P12_CR00043,49454
Sandwell Metropolitan Borough Council,http://www.sandwell.gov.uk/info/200202/performance_and_spending/1079/payments_over_500,01-Mar-2024,Childrens Services,ARDO MEDICAL LTD,Childrens Services,28245.70,Materials & Consumables,2324P12_CR00044,167703
Sandwell Metropolitan Borough Council,http://www.sandwell.gov.uk/info/200202/performance_and_spending/1079/payments_over_500,18-Mar-2024,Childrens Services,"ARTVENTURERS DUDLEY , WOMBOURNE AND TIPTON",Childrens Services,500.00,Externally Purchased Professional Services ,2324P12_CR00045,167802
Sandwell Metropolitan Borough Council,http://www.sandwell.gov.uk/info/200202/performance_and_spending/1079/payments_over_500,01-Mar-2024,Childrens Services,BAKER ROSS LIMITED,Childrens Services,813.86,"Printing, Stationery & General Office Expenses",2324P12_CR00046,01269861
Sandwell Metropolitan Borough Council,http://www.sandwell.gov.uk/info/200202/performance_and_spending/1079/payments_over_500,01-Mar-2024,Childrens Services,BARNARDO SERVICES LIMITED,Childrens Services,679032.23,Contract Payments,2324P12_CR00047,9330
Sandwell Metropolitan Borough Council,http://www.sandwell.gov.uk/info/200202/performance_and_spending/1079/payments_over_500,01-Mar-2024,Childrens Services,BARNARDO SERVICES LIMITED,Childrens Services,83963.40,Externally Purchased Professional Services ,2324P12_CR00048,9330
Sandwell Metropolitan Borough Council,http://www.sandwell.gov.uk/info/200202/performance_and_spending/1079/payments_over_500,01-Mar-2024,Childrens Services,BCH PROPERTY LIMITED,Childrens Services,1750.00,Rents,2324P12_CR00049,01011861
Sandwell Metropolitan Borough Council,http://www.sandwell.gov.uk/info/200202/performance_and_spending/1079/payments_over_500,01-Mar-2024,Childrens Services,BCH PROPERTY LIMITED,Childrens Services,1283.52,Rents,2324P12_CR00050,01011861
Sandwell Metropolitan Borough Council,http://www.sandwell.gov.uk/info/200202/performance_and_spending/1079/payments_over_500,01-Mar-2024,Childrens Services,BCH PROPERTY LIMITED,Childrens Services,1568.00,Rents,2324P12_CR00051,01011861
Sandwell Metropolitan Borough Council,http://www.sandwell.gov.uk/info/200202/performance_and_spending/1079/payments_over_500,01-Mar-2024,Childrens Services,BCH PROPERTY LIMITED,Childrens Services,1166.76,Rents,2324P12_CR00052,01011861
Sandwell Metropolitan Borough Council,http://www.sandwell.gov.uk/info/200202/performance_and_spending/1079/payments_over_500,01-Mar-2024,Childrens Services,BCH PROPERTY LIMITED,Childrens Services,1283.52,Rents,2324P12_CR00053,01011861
Sandwell Metropolitan Borough Council,http://www.sandwell.gov.uk/info/200202/performance_and_spending/1079/payments_over_500,01-Mar-2024,Childrens Services,BCH PROPERTY LIMITED,Childrens Services,1283.52,Rents,2324P12_CR00054,01011861
Sandwell Metropolitan Borough Council,http://www.sandwell.gov.uk/info/200202/performance_and_spending/1079/payments_over_500,01-Mar-2024,Childrens Services,BCH PROPERTY LIMITED,Childrens Services,933.52,Rents,2324P12_CR00055,01011861
Sandwell Metropolitan Borough Council,http://www.sandwell.gov.uk/info/200202/performance_and_spending/1079/payments_over_500,01-Mar-2024,Childrens Services,BCH PROPERTY LIMITED,Childrens Services,1568.00,Rents,2324P12_CR00056,01011861
Sandwell Metropolitan Borough Council,http://www.sandwell.gov.uk/info/200202/performance_and_spending/1079/payments_over_500,01-Mar-2024,Childrens Services,BIDFOOD,Childrens Services,506.39,Materials & Consumables,2324P12_CR00057,164984
Sandwell Metropolitan Borough Council,http://www.sandwell.gov.uk/info/200202/performance_and_spending/1079/payments_over_500,01-Mar-2024,Childrens Services,BIDFOOD,Childrens Services,582.30,Catering Provisions,2324P12_CR00058,164984
Sandwell Metropolitan Borough Council,http://www.sandwell.gov.uk/info/200202/performance_and_spending/1079/payments_over_500,01-Mar-2024,Childrens Services,BIDFOOD,Childrens Services,644.43,Catering Provisions,2324P12_CR00059,164984
Sandwell Metropolitan Borough Council,http://www.sandwell.gov.uk/info/200202/performance_and_spending/1079/payments_over_500,01-Mar-2024,Childrens Services,BIDFOOD,Childrens Services,974.88,Catering Provisions,2324P12_CR00060,164984
Sandwell Metropolitan Borough Council,http://www.sandwell.gov.uk/info/200202/performance_and_spending/1079/payments_over_500,01-Mar-2024,Childrens Services,BIDFOOD,Childrens Services,704.26,Catering Provisions,2324P12_CR00061,164984
Sandwell Metropolitan Borough Council,http://www.sandwell.gov.uk/info/200202/performance_and_spending/1079/payments_over_500,01-Mar-2024,Childrens Services,BIDFOOD,Childrens Services,691.79,Catering Provisions,2324P12_CR00062,164984
Sandwell Metropolitan Borough Council,http://www.sandwell.gov.uk/info/200202/performance_and_spending/1079/payments_over_500,01-Mar-2024,Childrens Services,BIDFOOD,Childrens Services,841.36,Catering Provisions,2324P12_CR00063,164984
Sandwell Metropolitan Borough Council,http://www.sandwell.gov.uk/info/200202/performance_and_spending/1079/payments_over_500,01-Mar-2024,Childrens Services,BIDFOOD,Childrens Services,962.10,Catering Provisions,2324P12_CR00064,164984
Sandwell Metropolitan Borough Council,http://www.sandwell.gov.uk/info/200202/performance_and_spending/1079/payments_over_500,01-Mar-2024,Childrens Services,BIDFOOD,Childrens Services,561.57,Catering Provisions,2324P12_CR00065,164984
Sandwell Metropolitan Borough Council,http://www.sandwell.gov.uk/info/200202/performance_and_spending/1079/payments_over_500,01-Mar-2024,Childrens Services,BIDFOOD,Childrens Services,637.87,Catering Provisions,2324P12_CR00066,164984
Sandwell Metropolitan Borough Council,http://www.sandwell.gov.uk/info/200202/performance_and_spending/1079/payments_over_500,18-Mar-2024,Childrens Services,BLACK COUNTRY HEALTHCARE NHS FT,Childrens Services,1500.00,SH Payments,2324P12_CR00067,166658
Sandwell Metropolitan Borough Council,http://www.sandwell.gov.uk/info/200202/performance_and_spending/1079/payments_over_500,22-Mar-2024,Childrens Services,CALOR GAS LTD,Childrens Services,1502.59,Gas,2324P12_CR00068,01562564
Sandwell Metropolitan Borough Council,http://www.sandwell.gov.uk/info/200202/performance_and_spending/1079/payments_over_500,01-Mar-2024,Childrens Services,CERTAS ENERGY LIMITED,Childrens Services,665.30,Oil,2324P12_CR00069,80421
Sandwell Metropolitan Borough Council,http://www.sandwell.gov.uk/info/200202/performance_and_spending/1079/payments_over_500,01-Mar-2024,Childrens Services,CHUBB FIRE & SECURITY LIMITED t/a CHUBB ELECTRONIC SECURITY,Childrens Services,1782.77,Security,2324P12_CR00070,81343
Sandwell Metropolitan Borough Council,http://www.sandwell.gov.uk/info/200202/performance_and_spending/1079/payments_over_500,01-Mar-2024,Childrens Services,CITIZENS ADVICE SANDWELL & WALSALL,Childrens Services,1825.53,Grants,2324P12_CR00071,01760899
Sandwell Metropolitan Borough Council,http://www.sandwell.gov.uk/info/200202/performance_and_spending/1079/payments_over_500,01-Mar-2024,Childrens Services,CLB MUSIC SERVICES LTD,Childrens Services,600.00,Externally Purchased Professional Services ,2324P12_CR00072,163924
Sandwell Metropolitan Borough Council,http://www.sandwell.gov.uk/info/200202/performance_and_spending/1079/payments_over_500,01-Mar-2024,Childrens Services,CLB MUSIC SERVICES LTD,Childrens Services,600.00,Externally Purchased Professional Services ,2324P12_CR00073,163924
Sandwell Metropolitan Borough Council,http://www.sandwell.gov.uk/info/200202/performance_and_spending/1079/payments_over_500,01-Mar-2024,Childrens Services,COUNTY CARS (2003) LIMITED,Childrens Services,2550.65,Public Transport,2324P12_CR00074,06002387
Sandwell Metropolitan Borough Council,http://www.sandwell.gov.uk/info/200202/performance_and_spending/1079/payments_over_500,06-Mar-2024,Childrens Services,COUNTY CARS (2003) LIMITED,Childrens Services,309870.61,Public Transport,2324P12_CR00075,06002387
Sandwell Metropolitan Borough Council,http://www.sandwell.gov.uk/info/200202/performance_and_spending/1079/payments_over_500,18-Mar-2024,Childrens Services,COUNTY CARS (2003) LIMITED,Childrens Services,131323.96,Public Transport,2324P12_CR00076,06002387
Sandwell Metropolitan Borough Council,http://www.sandwell.gov.uk/info/200202/performance_and_spending/1079/payments_over_500,18-Mar-2024,Childrens Services,COUNTY CARS (2003) LIMITED,Childrens Services,166891.00,Public Transport,2324P12_CR00077,06002387
Sandwell Metropolitan Borough Council,http://www.sandwell.gov.uk/info/200202/performance_and_spending/1079/payments_over_500,01-Mar-2024,Childrens Services,COUNTY CARS (2003) LIMITED,Childrens Services,128019.51,Public Transport,2324P12_CR00078,06002387
Sandwell Metropolitan Borough Council,http://www.sandwell.gov.uk/info/200202/performance_and_spending/1079/payments_over_500,01-Mar-2024,Childrens Services,COUNTY CARS (2003) LIMITED,Childrens Services,466303.75,Public Transport,2324P12_CR00079,06002387
Sandwell Metropolitan Borough Council,http://www.sandwell.gov.uk/info/200202/performance_and_spending/1079/payments_over_500,20-Mar-2024,Childrens Services,COUNTY CARS (2003) LIMITED,Childrens Services,89615.12,Public Transport,2324P12_CR00080,06002387
Sandwell Metropolitan Borough Council,http://www.sandwell.gov.uk/info/200202/performance_and_spending/1079/payments_over_500,20-Mar-2024,Childrens Services,COUNTY CARS (2003) LIMITED,Childrens Services,322121.30,Public Transport,2324P12_CR00081,06002387
Sandwell Metropolitan Borough Council,http://www.sandwell.gov.uk/info/200202/performance_and_spending/1079/payments_over_500,20-Mar-2024,Childrens Services,COUNTY CARS (2003) LIMITED,Childrens Services,104326.86,Public Transport,2324P12_CR00082,06002387
Sandwell Metropolitan Borough Council,http://www.sandwell.gov.uk/info/200202/performance_and_spending/1079/payments_over_500,20-Mar-2024,Childrens Services,COUNTY CARS (2003) LIMITED,Childrens Services,23226.41,Public Transport,2324P12_CR00083,06002387
Sandwell Metropolitan Borough Council,http://www.sandwell.gov.uk/info/200202/performance_and_spending/1079/payments_over_500,20-Mar-2024,Childrens Services,COUNTY CARS (2003) LIMITED,Childrens Services,72541.24,Public Transport,2324P12_CR00084,06002387
Sandwell Metropolitan Borough Council,http://www.sandwell.gov.uk/info/200202/performance_and_spending/1079/payments_over_500,22-Mar-2024,Childrens Services,COUNTY CARS (2003) LIMITED,Childrens Services,26533.26,Public Transport,2324P12_CR00085,06002387
Sandwell Metropolitan Borough Council,http://www.sandwell.gov.uk/info/200202/performance_and_spending/1079/payments_over_500,22-Mar-2024,Childrens Services,COUNTY CARS (2003) LIMITED,Childrens Services,99908.64,Public Transport,2324P12_CR00086,06002387
Sandwell Metropolitan Borough Council,http://www.sandwell.gov.uk/info/200202/performance_and_spending/1079/payments_over_500,22-Mar-2024,Childrens Services,COUNTY CARS (2003) LIMITED,Childrens Services,81396.03,Public Transport,2324P12_CR00087,06002387
Sandwell Metropolitan Borough Council,http://www.sandwell.gov.uk/info/200202/performance_and_spending/1079/payments_over_500,01-Mar-2024,Childrens Services,COUNTY CARS (2003) LIMITED,Childrens Services,345243.97,Public Transport,2324P12_CR00088,06002387
Sandwell Metropolitan Borough Council,http://www.sandwell.gov.uk/info/200202/performance_and_spending/1079/payments_over_500,01-Mar-2024,Childrens Services,CPC TRAINING CONSULTANTS LTD,Childrens Services,916.65,Discretionary Awards,2324P12_CR00089,91345
Sandwell Metropolitan Borough Council,http://www.sandwell.gov.uk/info/200202/performance_and_spending/1079/payments_over_500,01-Mar-2024,Childrens Services,CPC TRAINING CONSULTANTS LTD,Childrens Services,549.99,Discretionary Awards,2324P12_CR00090,91345
Sandwell Metropolitan Borough Council,http://www.sandwell.gov.uk/info/200202/performance_and_spending/1079/payments_over_500,01-Mar-2024,Childrens Services,CPC TRAINING CONSULTANTS LTD,Childrens Services,549.99,Discretionary Awards,2324P12_CR00091,91345
Sandwell Metropolitan Borough Council,http://www.sandwell.gov.uk/info/200202/performance_and_spending/1079/payments_over_500,01-Mar-2024,Childrens Services,CPC TRAINING CONSULTANTS LTD,Childrens Services,916.65,Discretionary Awards,2324P12_CR00092,91345
Sandwell Metropolitan Borough Council,http://www.sandwell.gov.uk/info/200202/performance_and_spending/1079/payments_over_500,01-Mar-2024,Childrens Services,CPC TRAINING CONSULTANTS LTD,Childrens Services,916.65,Discretionary Awards,2324P12_CR00093,91345
Sandwell Metropolitan Borough Council,http://www.sandwell.gov.uk/info/200202/performance_and_spending/1079/payments_over_500,01-Mar-2024,Childrens Services,CUSTODIAN GROUP LTD,Childrens Services,630.00,Rents,2324P12_CR00094,151637
Sandwell Metropolitan Borough Council,http://www.sandwell.gov.uk/info/200202/performance_and_spending/1079/payments_over_500,01-Mar-2024,Childrens Services,CUSTODIAN GROUP LTD,Childrens Services,630.00,Rents,2324P12_CR00095,151637
Sandwell Metropolitan Borough Council,http://www.sandwell.gov.uk/info/200202/performance_and_spending/1079/payments_over_500,01-Mar-2024,Childrens Services,CUSTODIAN GROUP LTD,Childrens Services,630.00,Rents,2324P12_CR00096,151637
Sandwell Metropolitan Borough Council,http://www.sandwell.gov.uk/info/200202/performance_and_spending/1079/payments_over_500,01-Mar-2024,Childrens Services,CUSTODIAN GROUP LTD,Childrens Services,630.00,Rents,2324P12_CR00097,151637
Sandwell Metropolitan Borough Council,http://www.sandwell.gov.uk/info/200202/performance_and_spending/1079/payments_over_500,01-Mar-2024,Childrens Services,CUSTODIAN GROUP LTD,Childrens Services,630.00,Rents,2324P12_CR00098,151637
Sandwell Metropolitan Borough Council,http://www.sandwell.gov.uk/info/200202/performance_and_spending/1079/payments_over_500,01-Mar-2024,Childrens Services,CUSTODIAN GROUP LTD,Childrens Services,630.00,Rents,2324P12_CR00099,151637
Sandwell Metropolitan Borough Council,http://www.sandwell.gov.uk/info/200202/performance_and_spending/1079/payments_over_500,01-Mar-2024,Childrens Services,CUSTODIAN GROUP LTD,Childrens Services,630.00,Rents,2324P12_CR00100,151637
Sandwell Metropolitan Borough Council,http://www.sandwell.gov.uk/info/200202/performance_and_spending/1079/payments_over_500,01-Mar-2024,Childrens Services,CUSTODIAN GROUP LTD,Childrens Services,630.00,Rents,2324P12_CR00101,151637
Sandwell Metropolitan Borough Council,http://www.sandwell.gov.uk/info/200202/performance_and_spending/1079/payments_over_500,01-Mar-2024,Childrens Services,CUSTODIAN GROUP LTD,Childrens Services,630.00,Rents,2324P12_CR00102,151637
Sandwell Metropolitan Borough Council,http://www.sandwell.gov.uk/info/200202/performance_and_spending/1079/payments_over_500,01-Mar-2024,Childrens Services,CUSTODIAN GROUP LTD,Childrens Services,630.00,Rents,2324P12_CR00103,151637
Sandwell Metropolitan Borough Council,http://www.sandwell.gov.uk/info/200202/performance_and_spending/1079/payments_over_500,01-Mar-2024,Childrens Services,CUSTODIAN GROUP LTD,Childrens Services,630.00,Rents,2324P12_CR00104,151637
Sandwell Metropolitan Borough Council,http://www.sandwell.gov.uk/info/200202/performance_and_spending/1079/payments_over_500,01-Mar-2024,Childrens Services,CUSTODIAN GROUP LTD,Childrens Services,630.00,Rents,2324P12_CR00105,151637
Sandwell Metropolitan Borough Council,http://www.sandwell.gov.uk/info/200202/performance_and_spending/1079/payments_over_500,01-Mar-2024,Childrens Services,CUSTODIAN GROUP LTD,Childrens Services,630.00,Rents,2324P12_CR00106,151637
Sandwell Metropolitan Borough Council,http://www.sandwell.gov.uk/info/200202/performance_and_spending/1079/payments_over_500,01-Mar-2024,Childrens Services,CUSTODIAN GROUP LTD,Childrens Services,630.00,Rents,2324P12_CR00107,151637
Sandwell Metropolitan Borough Council,http://www.sandwell.gov.uk/info/200202/performance_and_spending/1079/payments_over_500,01-Mar-2024,Childrens Services,CUSTODIAN GROUP LTD,Childrens Services,630.00,Rents,2324P12_CR00108,151637
Sandwell Metropolitan Borough Council,http://www.sandwell.gov.uk/info/200202/performance_and_spending/1079/payments_over_500,01-Mar-2024,Childrens Services,CUSTODIAN GROUP LTD,Childrens Services,630.00,Rents,2324P12_CR00109,151637
Sandwell Metropolitan Borough Council,http://www.sandwell.gov.uk/info/200202/performance_and_spending/1079/payments_over_500,01-Mar-2024,Childrens Services,CUSTODIAN GROUP LTD,Childrens Services,630.00,Rents,2324P12_CR00110,151637
Sandwell Metropolitan Borough Council,http://www.sandwell.gov.uk/info/200202/performance_and_spending/1079/payments_over_500,01-Mar-2024,Childrens Services,CUSTODIAN GROUP LTD,Childrens Services,630.00,Rents,2324P12_CR00111,151637
Sandwell Metropolitan Borough Council,http://www.sandwell.gov.uk/info/200202/performance_and_spending/1079/payments_over_500,01-Mar-2024,Childrens Services,CUSTODIAN GROUP LTD,Childrens Services,630.00,Rents,2324P12_CR00112,151637
Sandwell Metropolitan Borough Council,http://www.sandwell.gov.uk/info/200202/performance_and_spending/1079/payments_over_500,01-Mar-2024,Childrens Services,CUSTODIAN GROUP LTD,Childrens Services,630.00,Rents,2324P12_CR00113,151637
Sandwell Metropolitan Borough Council,http://www.sandwell.gov.uk/info/200202/performance_and_spending/1079/payments_over_500,01-Mar-2024,Childrens Services,CUSTODIAN GROUP LTD,Childrens Services,630.00,Rents,2324P12_CR00114,151637
Sandwell Metropolitan Borough Council,http://www.sandwell.gov.uk/info/200202/performance_and_spending/1079/payments_over_500,01-Mar-2024,Childrens Services,CUSTODIAN GROUP LTD,Childrens Services,630.00,Rents,2324P12_CR00115,151637
Sandwell Metropolitan Borough Council,http://www.sandwell.gov.uk/info/200202/performance_and_spending/1079/payments_over_500,01-Mar-2024,Childrens Services,CUSTODIAN GROUP LTD,Childrens Services,630.00,Rents,2324P12_CR00116,151637
Sandwell Metropolitan Borough Council,http://www.sandwell.gov.uk/info/200202/performance_and_spending/1079/payments_over_500,01-Mar-2024,Childrens Services,CUSTODIAN GROUP LTD,Childrens Services,630.00,Rents,2324P12_CR00117,151637
Sandwell Metropolitan Borough Council,http://www.sandwell.gov.uk/info/200202/performance_and_spending/1079/payments_over_500,01-Mar-2024,Childrens Services,CUSTODIAN GROUP LTD,Childrens Services,630.00,Rents,2324P12_CR00118,151637
Sandwell Metropolitan Borough Council,http://www.sandwell.gov.uk/info/200202/performance_and_spending/1079/payments_over_500,01-Mar-2024,Childrens Services,CUSTODIAN GROUP LTD,Childrens Services,630.00,Rents,2324P12_CR00119,151637
Sandwell Metropolitan Borough Council,http://www.sandwell.gov.uk/info/200202/performance_and_spending/1079/payments_over_500,01-Mar-2024,Childrens Services,CUSTODIAN GROUP LTD,Childrens Services,630.00,Rents,2324P12_CR00120,151637
Sandwell Metropolitan Borough Council,http://www.sandwell.gov.uk/info/200202/performance_and_spending/1079/payments_over_500,01-Mar-2024,Childrens Services,CUSTODIAN GROUP LTD,Childrens Services,630.00,Rents,2324P12_CR00121,151637
Sandwell Metropolitan Borough Council,http://www.sandwell.gov.uk/info/200202/performance_and_spending/1079/payments_over_500,01-Mar-2024,Childrens Services,CUSTODIAN GROUP LTD,Childrens Services,630.00,Rents,2324P12_CR00122,151637
Sandwell Metropolitan Borough Council,http://www.sandwell.gov.uk/info/200202/performance_and_spending/1079/payments_over_500,19-Mar-2024,Childrens Services,DEBORAH UDAKIS CONSULTANCY LTD,Childrens Services,590.00,Externally Purchased Professional Services ,2324P12_CR00123,139858
Sandwell Metropolitan Borough Council,http://www.sandwell.gov.uk/info/200202/performance_and_spending/1079/payments_over_500,08-Mar-2024,Childrens Services,DIRECTION TRAINING & MANAGEMENT,Childrens Services,500.00,Externally Purchased Professional Services ,2324P12_CR00124,01727395
Sandwell Metropolitan Borough Council,http://www.sandwell.gov.uk/info/200202/performance_and_spending/1079/payments_over_500,01-Mar-2024,Childrens Services,DROACH TRAVEL LTD,Childrens Services,53586.35,Public Transport,2324P12_CR00125,06002707
Sandwell Metropolitan Borough Council,http://www.sandwell.gov.uk/info/200202/performance_and_spending/1079/payments_over_500,01-Mar-2024,Childrens Services,DROACH TRAVEL LTD,Childrens Services,56254.18,Public Transport,2324P12_CR00126,06002707
Sandwell Metropolitan Borough Council,http://www.sandwell.gov.uk/info/200202/performance_and_spending/1079/payments_over_500,01-Mar-2024,Childrens Services,DV247 LIMITED,Childrens Services,2295.29,Equipment & Furniture ,2324P12_CR00127,113728
Sandwell Metropolitan Borough Council,http://www.sandwell.gov.uk/info/200202/performance_and_spending/1079/payments_over_500,20-Mar-2024,Childrens Services,EAGLE DESIGN LIMITED,Childrens Services,1400.00,Advertising & Publicity,2324P12_CR00128,1932
Sandwell Metropolitan Borough Council,http://www.sandwell.gov.uk/info/200202/performance_and_spending/1079/payments_over_500,08-Mar-2024,Childrens Services,EARLS GYMNASTICS CLUB,Childrens Services,945.00,Externally Purchased Professional Services ,2324P12_CR00129,96950
Sandwell Metropolitan Borough Council,http://www.sandwell.gov.uk/info/200202/performance_and_spending/1079/payments_over_500,01-Mar-2024,Childrens Services,EGANS COACH TRAVEL LTD T/A KINGS NORTON COACHES,Childrens Services,135742.10,Public Transport,2324P12_CR00130,164676
Sandwell Metropolitan Borough Council,http://www.sandwell.gov.uk/info/200202/performance_and_spending/1079/payments_over_500,01-Mar-2024,Childrens Services,EGANS COACH TRAVEL LTD T/A KINGS NORTON COACHES,Childrens Services,70107.55,Public Transport,2324P12_CR00131,164676
Sandwell Metropolitan Borough Council,http://www.sandwell.gov.uk/info/200202/performance_and_spending/1079/payments_over_500,01-Mar-2024,Childrens Services,EGANS COACH TRAVEL LTD T/A KINGS NORTON COACHES,Childrens Services,71811.10,Public Transport,2324P12_CR00132,164676
Sandwell Metropolitan Borough Council,http://www.sandwell.gov.uk/info/200202/performance_and_spending/1079/payments_over_500,01-Mar-2024,Childrens Services,EGANS COACH TRAVEL LTD T/A KINGS NORTON COACHES,Childrens Services,77544.68,Public Transport,2324P12_CR00133,164676
Sandwell Metropolitan Borough Council,http://www.sandwell.gov.uk/info/200202/performance_and_spending/1079/payments_over_500,01-Mar-2024,Childrens Services,EGANS COACH TRAVEL LTD T/A KINGS NORTON COACHES,Childrens Services,77544.68,Public Transport,2324P12_CR00134,164676
Sandwell Metropolitan Borough Council,http://www.sandwell.gov.uk/info/200202/performance_and_spending/1079/payments_over_500,01-Mar-2024,Childrens Services,EGANS COACH TRAVEL LTD T/A KINGS NORTON COACHES,Childrens Services,77544.68,Public Transport,2324P12_CR00135,164676
Sandwell Metropolitan Borough Council,http://www.sandwell.gov.uk/info/200202/performance_and_spending/1079/payments_over_500,20-Mar-2024,Childrens Services,EGANS COACH TRAVEL LTD T/A KINGS NORTON COACHES,Childrens Services,141224.05,Public Transport,2324P12_CR00136,164676
Sandwell Metropolitan Borough Council,http://www.sandwell.gov.uk/info/200202/performance_and_spending/1079/payments_over_500,22-Mar-2024,Childrens Services,FIRST RESPONSE TRAINING & CONSULTANCY SERVICES LTD,Childrens Services,615.00,Externally Purchased Professional Services ,2324P12_CR00137,22441
Sandwell Metropolitan Borough Council,http://www.sandwell.gov.uk/info/200202/performance_and_spending/1079/payments_over_500,01-Mar-2024,Childrens Services,FRIAR PARK MILLENNIUM CENTRE,Childrens Services,500.00,Hire of Facilities,2324P12_CR00138,28476
Sandwell Metropolitan Borough Council,http://www.sandwell.gov.uk/info/200202/performance_and_spending/1079/payments_over_500,01-Mar-2024,Childrens Services,FUTURE FIRST INDEPENDENT SCHOOL,Childrens Services,2100.00,External Contract Hire,2324P12_CR00139,106165
Sandwell Metropolitan Borough Council,http://www.sandwell.gov.uk/info/200202/performance_and_spending/1079/payments_over_500,01-Mar-2024,Childrens Services,GILANI ENTERPRISES LIMITED,Childrens Services,1866.67,Rents,2324P12_CR00140,2696
Sandwell Metropolitan Borough Council,http://www.sandwell.gov.uk/info/200202/performance_and_spending/1079/payments_over_500,01-Mar-2024,Childrens Services,GILANI ENTERPRISES LIMITED,Childrens Services,1866.67,Rents,2324P12_CR00141,2696
Sandwell Metropolitan Borough Council,http://www.sandwell.gov.uk/info/200202/performance_and_spending/1079/payments_over_500,01-Mar-2024,Childrens Services,GILANI ENTERPRISES LIMITED,Childrens Services,1866.67,Rents,2324P12_CR00142,2696
Sandwell Metropolitan Borough Council,http://www.sandwell.gov.uk/info/200202/performance_and_spending/1079/payments_over_500,01-Mar-2024,Childrens Services,GILANI ENTERPRISES LIMITED,Childrens Services,1866.67,Rents,2324P12_CR00143,2696
Sandwell Metropolitan Borough Council,http://www.sandwell.gov.uk/info/200202/performance_and_spending/1079/payments_over_500,01-Mar-2024,Childrens Services,GILANI ENTERPRISES LIMITED,Childrens Services,1866.67,Rents,2324P12_CR00144,2696
Sandwell Metropolitan Borough Council,http://www.sandwell.gov.uk/info/200202/performance_and_spending/1079/payments_over_500,01-Mar-2024,Childrens Services,GILANI ENTERPRISES LIMITED,Childrens Services,1866.67,Rents,2324P12_CR00145,2696
Sandwell Metropolitan Borough Council,http://www.sandwell.gov.uk/info/200202/performance_and_spending/1079/payments_over_500,01-Mar-2024,Childrens Services,GILANI ENTERPRISES LIMITED,Childrens Services,2800.00,Rents,2324P12_CR00146,2696
Sandwell Metropolitan Borough Council,http://www.sandwell.gov.uk/info/200202/performance_and_spending/1079/payments_over_500,01-Mar-2024,Childrens Services,GILANI ENTERPRISES LIMITED,Childrens Services,1133.33,Rents,2324P12_CR00147,2696
Sandwell Metropolitan Borough Council,http://www.sandwell.gov.uk/info/200202/performance_and_spending/1079/payments_over_500,01-Mar-2024,Childrens Services,GILANI ENTERPRISES LIMITED,Childrens Services,2408.33,Rents,2324P12_CR00148,2696
Sandwell Metropolitan Borough Council,http://www.sandwell.gov.uk/info/200202/performance_and_spending/1079/payments_over_500,01-Mar-2024,Childrens Services,GLOBAL MEDIA GROUP SERVICES LTD,Childrens Services,2052.00,Advertising & Publicity,2324P12_CR00149,86878
Sandwell Metropolitan Borough Council,http://www.sandwell.gov.uk/info/200202/performance_and_spending/1079/payments_over_500,14-Mar-2024,Childrens Services,GREEN DESTINATIONS LTD,Childrens Services,131135.20,Public Transport,2324P12_CR00150,109275
Sandwell Metropolitan Borough Council,http://www.sandwell.gov.uk/info/200202/performance_and_spending/1079/payments_over_500,01-Mar-2024,Childrens Services,GROUNDWORK WEST MIDLANDS,Childrens Services,11630.34,Externally Purchased Professional Services ,2324P12_CR00151,92743
Sandwell Metropolitan Borough Council,http://www.sandwell.gov.uk/info/200202/performance_and_spending/1079/payments_over_500,01-Mar-2024,Childrens Services,HAPPY APPLE CO LTD,Childrens Services,900.00,Advertising & Publicity,2324P12_CR00152,7299
Sandwell Metropolitan Borough Council,http://www.sandwell.gov.uk/info/200202/performance_and_spending/1079/payments_over_500,01-Mar-2024,Childrens Services,HARGATE PRIMARY SCHOOL,Childrens Services,500.00,Grants,2324P12_CR00153,04010481
Sandwell Metropolitan Borough Council,http://www.sandwell.gov.uk/info/200202/performance_and_spending/1079/payments_over_500,01-Mar-2024,Childrens Services,HARGATE PRIMARY SCHOOL,Childrens Services,500.00,Grants,2324P12_CR00154,04010481
Sandwell Metropolitan Borough Council,http://www.sandwell.gov.uk/info/200202/performance_and_spending/1079/payments_over_500,01-Mar-2024,Childrens Services,HARGATE PRIMARY SCHOOL,Childrens Services,500.00,Grants,2324P12_CR00155,04010481
Sandwell Metropolitan Borough Council,http://www.sandwell.gov.uk/info/200202/performance_and_spending/1079/payments_over_500,12-Mar-2024,Childrens Services,HARGATE PRIMARY SCHOOL,Childrens Services,625.00,Externally Purchased Professional Services ,2324P12_CR00156,04010481
Sandwell Metropolitan Borough Council,http://www.sandwell.gov.uk/info/200202/performance_and_spending/1079/payments_over_500,01-Mar-2024,Childrens Services,HAWK INCENTIVES LTD,Childrens Services,20000.00,Operational Services ,2324P12_CR00157,148982
Sandwell Metropolitan Borough Council,http://www.sandwell.gov.uk/info/200202/performance_and_spending/1079/payments_over_500,01-Mar-2024,Childrens Services,HILL INTERIOR CONTRACTS LTD,Childrens Services,20266.00,Building Maintenance & Improvements,2324P12_CR00158,17158
Sandwell Metropolitan Borough Council,http://www.sandwell.gov.uk/info/200202/performance_and_spending/1079/payments_over_500,01-Mar-2024,Childrens Services,HM PRISON AND PROBATION SERVICE,Childrens Services,5004.00,Other Establishments,2324P12_CR00159,134815
Sandwell Metropolitan Borough Council,http://www.sandwell.gov.uk/info/200202/performance_and_spending/1079/payments_over_500,01-Mar-2024,Childrens Services,HM PRISON AND PROBATION SERVICE,Childrens Services,25978.00,Other Establishments,2324P12_CR00160,134815
Sandwell Metropolitan Borough Council,http://www.sandwell.gov.uk/info/200202/performance_and_spending/1079/payments_over_500,01-Mar-2024,Childrens Services,HM PRISON AND PROBATION SERVICE,Childrens Services,25978.00,Other Establishments,2324P12_CR00161,134815
Sandwell Metropolitan Borough Council,http://www.sandwell.gov.uk/info/200202/performance_and_spending/1079/payments_over_500,01-Mar-2024,Childrens Services,INGESTRE ORANGERY AND GARDENS,Childrens Services,650.00,Materials & Consumables,2324P12_CR00162,127331
Sandwell Metropolitan Borough Council,http://www.sandwell.gov.uk/info/200202/performance_and_spending/1079/payments_over_500,01-Mar-2024,Childrens Services,INGESTRE ORANGERY AND GARDENS,Childrens Services,650.00,Materials & Consumables,2324P12_CR00163,127331
Sandwell Metropolitan Borough Council,http://www.sandwell.gov.uk/info/200202/performance_and_spending/1079/payments_over_500,01-Mar-2024,Childrens Services,INGESTRE ORANGERY AND GARDENS,Childrens Services,650.00,Materials & Consumables,2324P12_CR00164,127331
Sandwell Metropolitan Borough Council,http://www.sandwell.gov.uk/info/200202/performance_and_spending/1079/payments_over_500,01-Mar-2024,Childrens Services,IRON MAIDENS COMMERCIAL LAUNDRY LIMITED,Childrens Services,1220.61,Laundry,2324P12_CR00165,124628
Sandwell Metropolitan Borough Council,http://www.sandwell.gov.uk/info/200202/performance_and_spending/1079/payments_over_500,01-Mar-2024,Childrens Services,LOCAL EDUCATION AND DEVELOPMENT,Childrens Services,4458.78,Discretionary Awards,2324P12_CR00166,148259
Sandwell Metropolitan Borough Council,http://www.sandwell.gov.uk/info/200202/performance_and_spending/1079/payments_over_500,01-Mar-2024,Childrens Services,LOCAL EDUCATION AND DEVELOPMENT,Childrens Services,1486.26,Discretionary Awards,2324P12_CR00167,148259
Sandwell Metropolitan Borough Council,http://www.sandwell.gov.uk/info/200202/performance_and_spending/1079/payments_over_500,01-Mar-2024,Childrens Services,LUDICOLOGY LTD,Childrens Services,9932.00,Externally Purchased Professional Services ,2324P12_CR00168,137301
Sandwell Metropolitan Borough Council,http://www.sandwell.gov.uk/info/200202/performance_and_spending/1079/payments_over_500,09-Mar-2024,Childrens Services,MALLINA GROUP,Childrens Services,990.00,Advertising & Publicity,2324P12_CR00169,117298
Sandwell Metropolitan Borough Council,http://www.sandwell.gov.uk/info/200202/performance_and_spending/1079/payments_over_500,01-Mar-2024,Childrens Services,MUSIC BUGS HALESOWEN,Childrens Services,1200.00,Externally Purchased Professional Services ,2324P12_CR00170,98972
Sandwell Metropolitan Borough Council,http://www.sandwell.gov.uk/info/200202/performance_and_spending/1079/payments_over_500,14-Mar-2024,Childrens Services,NATIONAL CHILDRENS BUREAU,Childrens Services,840.00,Advertising & Publicity,2324P12_CR00171,01612311
Sandwell Metropolitan Borough Council,http://www.sandwell.gov.uk/info/200202/performance_and_spending/1079/payments_over_500,01-Mar-2024,Childrens Services,NET BUILDER LIMITED,Childrens Services,557.30,Externally Purchased Professional Services ,2324P12_CR00172,139019
Sandwell Metropolitan Borough Council,http://www.sandwell.gov.uk/info/200202/performance_and_spending/1079/payments_over_500,01-Mar-2024,Childrens Services,NEWAVE LTD,Childrens Services,3125.00,Agency Staff,2324P12_CR00173,101666
Sandwell Metropolitan Borough Council,http://www.sandwell.gov.uk/info/200202/performance_and_spending/1079/payments_over_500,01-Mar-2024,Childrens Services,NEWAVE LTD,Childrens Services,2586.00,Agency Staff,2324P12_CR00174,101666
Sandwell Metropolitan Borough Council,http://www.sandwell.gov.uk/info/200202/performance_and_spending/1079/payments_over_500,01-Mar-2024,Childrens Services,NEWAVE LTD,Childrens Services,2217.00,Agency Staff,2324P12_CR00175,101666
Sandwell Metropolitan Borough Council,http://www.sandwell.gov.uk/info/200202/performance_and_spending/1079/payments_over_500,01-Mar-2024,Childrens Services,NEWAVE LTD,Childrens Services,3739.00,Agency Staff,2324P12_CR00176,101666
Sandwell Metropolitan Borough Council,http://www.sandwell.gov.uk/info/200202/performance_and_spending/1079/payments_over_500,07-Mar-2024,Childrens Services,NEWBURY TRAVEL LTD,Childrens Services,900.00,Public Transport,2324P12_CR00177,06003081
Sandwell Metropolitan Borough Council,http://www.sandwell.gov.uk/info/200202/performance_and_spending/1079/payments_over_500,07-Mar-2024,Childrens Services,NEWBURY TRAVEL LTD,Childrens Services,900.00,Public Transport,2324P12_CR00178,06003081
Sandwell Metropolitan Borough Council,http://www.sandwell.gov.uk/info/200202/performance_and_spending/1079/payments_over_500,01-Mar-2024,Childrens Services,NEWVISION PROMOTIONS LTD,Childrens Services,785.00,Advertising & Publicity,2324P12_CR00179,01423582
Sandwell Metropolitan Borough Council,http://www.sandwell.gov.uk/info/200202/performance_and_spending/1079/payments_over_500,20-Mar-2024,Childrens Services,NORTH BIRMINGHAM TRAVEL LTD,Childrens Services,68962.00,Public Transport,2324P12_CR00180,72112
Sandwell Metropolitan Borough Council,http://www.sandwell.gov.uk/info/200202/performance_and_spending/1079/payments_over_500,20-Mar-2024,Childrens Services,NORTH BIRMINGHAM TRAVEL LTD,Childrens Services,47994.61,Public Transport,2324P12_CR00181,72112
Sandwell Metropolitan Borough Council,http://www.sandwell.gov.uk/info/200202/performance_and_spending/1079/payments_over_500,20-Mar-2024,Childrens Services,NORTH BIRMINGHAM TRAVEL LTD,Childrens Services,62917.21,Public Transport,2324P12_CR00182,72112
Sandwell Metropolitan Borough Council,http://www.sandwell.gov.uk/info/200202/performance_and_spending/1079/payments_over_500,22-Mar-2024,Childrens Services,NORTH BIRMINGHAM TRAVEL LTD,Childrens Services,147322.34,Public Transport,2324P12_CR00183,72112
Sandwell Metropolitan Borough Council,http://www.sandwell.gov.uk/info/200202/performance_and_spending/1079/payments_over_500,22-Mar-2024,Childrens Services,NORTH BIRMINGHAM TRAVEL LTD,Childrens Services,70498.16,Public Transport,2324P12_CR00184,72112
Sandwell Metropolitan Borough Council,http://www.sandwell.gov.uk/info/200202/performance_and_spending/1079/payments_over_500,22-Mar-2024,Childrens Services,NORTH BIRMINGHAM TRAVEL LTD,Childrens Services,55459.87,Public Transport,2324P12_CR00185,72112
Sandwell Metropolitan Borough Council,http://www.sandwell.gov.uk/info/200202/performance_and_spending/1079/payments_over_500,24-Mar-2024,Childrens Services,NORTH BIRMINGHAM TRAVEL LTD,Childrens Services,66089.68,Public Transport,2324P12_CR00186,72112
Sandwell Metropolitan Borough Council,http://www.sandwell.gov.uk/info/200202/performance_and_spending/1079/payments_over_500,24-Mar-2024,Childrens Services,NORTH BIRMINGHAM TRAVEL LTD,Childrens Services,133984.50,Public Transport,2324P12_CR00187,72112
Sandwell Metropolitan Borough Council,http://www.sandwell.gov.uk/info/200202/performance_and_spending/1079/payments_over_500,01-Mar-2024,Childrens Services,NORTH BIRMINGHAM TRAVEL LTD,Childrens Services,74549.46,Public Transport,2324P12_CR00188,72112
Sandwell Metropolitan Borough Council,http://www.sandwell.gov.uk/info/200202/performance_and_spending/1079/payments_over_500,01-Mar-2024,Childrens Services,NORTH BIRMINGHAM TRAVEL LTD,Childrens Services,84590.15,Public Transport,2324P12_CR00189,72112
Sandwell Metropolitan Borough Council,http://www.sandwell.gov.uk/info/200202/performance_and_spending/1079/payments_over_500,01-Mar-2024,Childrens Services,NOTTINGHAMSHIRE COUNTY COUNCIL,Childrens Services,1137.50,External Contract Hire,2324P12_CR00190,01218759
Sandwell Metropolitan Borough Council,http://www.sandwell.gov.uk/info/200202/performance_and_spending/1079/payments_over_500,15-Mar-2024,Childrens Services,NOTTINGHAMSHIRE WOMEN'S AID LTD,Childrens Services,2670.08,Rents,2324P12_CR00191,167961
Sandwell Metropolitan Borough Council,http://www.sandwell.gov.uk/info/200202/performance_and_spending/1079/payments_over_500,01-Mar-2024,Childrens Services,OLD PARK PRIMARY SCHOOL,Childrens Services,2013.00,Building Maintenance & Improvements,2324P12_CR00192,04024287
Sandwell Metropolitan Borough Council,http://www.sandwell.gov.uk/info/200202/performance_and_spending/1079/payments_over_500,01-Mar-2024,Childrens Services,OLD PARK PRIMARY SCHOOL,Childrens Services,1260.01,Gas,2324P12_CR00193,04024287
Sandwell Metropolitan Borough Council,http://www.sandwell.gov.uk/info/200202/performance_and_spending/1079/payments_over_500,14-Mar-2024,Childrens Services,ONE 4 YOU SERVICES LTD,Childrens Services,188576.76,Public Transport,2324P12_CR00194,81204
Sandwell Metropolitan Borough Council,http://www.sandwell.gov.uk/info/200202/performance_and_spending/1079/payments_over_500,15-Mar-2024,Childrens Services,OSBORNE TECHNOLOGIES LTD,Childrens Services,684.95,Security,2324P12_CR00195,129523
Sandwell Metropolitan Borough Council,http://www.sandwell.gov.uk/info/200202/performance_and_spending/1079/payments_over_500,01-Mar-2024,Childrens Services,PENNON WATER SERVICES T/A SOURCE FOR BUSINESS,Childrens Services,513.25,Water Services,2324P12_CR00196,131726
Sandwell Metropolitan Borough Council,http://www.sandwell.gov.uk/info/200202/performance_and_spending/1079/payments_over_500,01-Mar-2024,Childrens Services,PIONEER PEOPLE LIMITED,Childrens Services,515.40,Agency Staff,2324P12_CR00197,165385
Sandwell Metropolitan Borough Council,http://www.sandwell.gov.uk/info/200202/performance_and_spending/1079/payments_over_500,01-Mar-2024,Childrens Services,PIONEER PEOPLE LIMITED,Childrens Services,515.40,Agency Staff,2324P12_CR00198,165385
Sandwell Metropolitan Borough Council,http://www.sandwell.gov.uk/info/200202/performance_and_spending/1079/payments_over_500,01-Mar-2024,Childrens Services,SANDWELL ACADEMY TRUST LTD,Childrens Services,25245.00,Public Transport,2324P12_CR00199,62330
Sandwell Metropolitan Borough Council,http://www.sandwell.gov.uk/info/200202/performance_and_spending/1079/payments_over_500,01-Mar-2024,Childrens Services,SANDWELL CHILDREN'S TRUST,Childrens Services,941019.00,Externally Purchased Professional Services ,2324P12_CR00200,133302
Sandwell Metropolitan Borough Council,http://www.sandwell.gov.uk/info/200202/performance_and_spending/1079/payments_over_500,01-Mar-2024,Childrens Services,SANDWELL CHILDREN'S TRUST,Childrens Services,10000.00,Externally Purchased Professional Services ,2324P12_CR00201,133302
Sandwell Metropolitan Borough Council,http://www.sandwell.gov.uk/info/200202/performance_and_spending/1079/payments_over_500,01-Mar-2024,Childrens Services,SANDWELL CHILDREN'S TRUST,Childrens Services,1332455.00,Other Establishments,2324P12_CR00202,133302
Sandwell Metropolitan Borough Council,http://www.sandwell.gov.uk/info/200202/performance_and_spending/1079/payments_over_500,12-Mar-2024,Childrens Services,SANDWELL CHILDREN'S TRUST,Childrens Services,65443.54,LGS,2324P12_CR00203,133302
Sandwell Metropolitan Borough Council,http://www.sandwell.gov.uk/info/200202/performance_and_spending/1079/payments_over_500,18-Mar-2024,Childrens Services,SANDWELL CHILDREN'S TRUST,Childrens Services,12430769.23,Grant Payments,2324P12_CR00204,133302
Sandwell Metropolitan Borough Council,http://www.sandwell.gov.uk/info/200202/performance_and_spending/1079/payments_over_500,11-Mar-2024,Childrens Services,SCHOOL LIFE LTD,Childrens Services,8400.00,ICT ,2324P12_CR00205,129190
Sandwell Metropolitan Borough Council,http://www.sandwell.gov.uk/info/200202/performance_and_spending/1079/payments_over_500,01-Mar-2024,Childrens Services,SIPS EDUCATION LTD,Childrens Services,535.00,Contract Payments,2324P12_CR00206,110784
Sandwell Metropolitan Borough Council,http://www.sandwell.gov.uk/info/200202/performance_and_spending/1079/payments_over_500,01-Mar-2024,Childrens Services,THE ALBION FOUNDATION,Childrens Services,1140.00,Externally Purchased Professional Services ,2324P12_CR00207,21026659
Sandwell Metropolitan Borough Council,http://www.sandwell.gov.uk/info/200202/performance_and_spending/1079/payments_over_500,01-Mar-2024,Childrens Services,THE ALBION FOUNDATION,Childrens Services,1080.00,Externally Purchased Professional Services ,2324P12_CR00208,21026659
Sandwell Metropolitan Borough Council,http://www.sandwell.gov.uk/info/200202/performance_and_spending/1079/payments_over_500,01-Mar-2024,Childrens Services,THE ALBION FOUNDATION,Childrens Services,720.00,Externally Purchased Professional Services ,2324P12_CR00209,21026659
Sandwell Metropolitan Borough Council,http://www.sandwell.gov.uk/info/200202/performance_and_spending/1079/payments_over_500,01-Mar-2024,Childrens Services,THE FAMILY NURSERY COMPANY LTD,Childrens Services,7430.00,Grant Payments,2324P12_CR00210,89879
Sandwell Metropolitan Borough Council,http://www.sandwell.gov.uk/info/200202/performance_and_spending/1079/payments_over_500,01-Mar-2024,Childrens Services,TOPPS MANAGEMENT & SUPPORT SERVICES LTD,Childrens Services,5714.24,Discretionary Awards,2324P12_CR00211,68846
Sandwell Metropolitan Borough Council,http://www.sandwell.gov.uk/info/200202/performance_and_spending/1079/payments_over_500,01-Mar-2024,Childrens Services,TOPPS MANAGEMENT & SUPPORT SERVICES LTD,Childrens Services,6071.38,Discretionary Awards,2324P12_CR00212,68846
Sandwell Metropolitan Borough Council,http://www.sandwell.gov.uk/info/200202/performance_and_spending/1079/payments_over_500,01-Mar-2024,Childrens Services,TOPPS MANAGEMENT & SUPPORT SERVICES LTD,Childrens Services,5714.24,Discretionary Awards,2324P12_CR00213,68846
Sandwell Metropolitan Borough Council,http://www.sandwell.gov.uk/info/200202/performance_and_spending/1079/payments_over_500,01-Mar-2024,Childrens Services,TOTALENERGIES GAS & POWER LTD,Childrens Services,974.67,Electricity,2324P12_CR00214,107605
Sandwell Metropolitan Borough Council,http://www.sandwell.gov.uk/info/200202/performance_and_spending/1079/payments_over_500,01-Mar-2024,Childrens Services,TOTALENERGIES GAS & POWER LTD,Childrens Services,3927.25,Electricity,2324P12_CR00215,107605
Sandwell Metropolitan Borough Council,http://www.sandwell.gov.uk/info/200202/performance_and_spending/1079/payments_over_500,01-Mar-2024,Childrens Services,TOTALENERGIES GAS & POWER LTD,Childrens Services,802.23,Electricity,2324P12_CR00216,107605
Sandwell Metropolitan Borough Council,http://www.sandwell.gov.uk/info/200202/performance_and_spending/1079/payments_over_500,01-Mar-2024,Childrens Services,TOTALENERGIES GAS & POWER LTD,Childrens Services,3839.77,Electricity,2324P12_CR00217,107605
Sandwell Metropolitan Borough Council,http://www.sandwell.gov.uk/info/200202/performance_and_spending/1079/payments_over_500,01-Mar-2024,Childrens Services,TOTALENERGIES GAS & POWER LTD,Childrens Services,2777.04,Electricity,2324P12_CR00218,107605
Sandwell Metropolitan Borough Council,http://www.sandwell.gov.uk/info/200202/performance_and_spending/1079/payments_over_500,01-Mar-2024,Childrens Services,TOTALENERGIES GAS & POWER LTD,Childrens Services,2116.84,Electricity,2324P12_CR00219,107605
Sandwell Metropolitan Borough Council,http://www.sandwell.gov.uk/info/200202/performance_and_spending/1079/payments_over_500,01-Mar-2024,Childrens Services,TOTALENERGIES GAS & POWER LTD,Childrens Services,1800.88,Electricity,2324P12_CR00220,107605
Sandwell Metropolitan Borough Council,http://www.sandwell.gov.uk/info/200202/performance_and_spending/1079/payments_over_500,01-Mar-2024,Childrens Services,TOTALENERGIES GAS & POWER LTD,Childrens Services,1115.68,Gas,2324P12_CR00221,107605
Sandwell Metropolitan Borough Council,http://www.sandwell.gov.uk/info/200202/performance_and_spending/1079/payments_over_500,01-Mar-2024,Childrens Services,TOTALENERGIES GAS & POWER LTD,Childrens Services,1484.38,Gas,2324P12_CR00222,107605
Sandwell Metropolitan Borough Council,http://www.sandwell.gov.uk/info/200202/performance_and_spending/1079/payments_over_500,01-Mar-2024,Childrens Services,TOTALENERGIES GAS & POWER LTD,Childrens Services,1197.79,Gas,2324P12_CR00223,107605
Sandwell Metropolitan Borough Council,http://www.sandwell.gov.uk/info/200202/performance_and_spending/1079/payments_over_500,01-Mar-2024,Childrens Services,TOTALENERGIES GAS & POWER LTD,Childrens Services,1157.18,Gas,2324P12_CR00224,107605
Sandwell Metropolitan Borough Council,http://www.sandwell.gov.uk/info/200202/performance_and_spending/1079/payments_over_500,01-Mar-2024,Childrens Services,TOTALENERGIES GAS & POWER LTD,Childrens Services,679.31,Electricity,2324P12_CR00225,107605
Sandwell Metropolitan Borough Council,http://www.sandwell.gov.uk/info/200202/performance_and_spending/1079/payments_over_500,01-Mar-2024,Childrens Services,TOTALENERGIES GAS & POWER LTD,Childrens Services,3275.96,Electricity,2324P12_CR00226,107605
Sandwell Metropolitan Borough Council,http://www.sandwell.gov.uk/info/200202/performance_and_spending/1079/payments_over_500,01-Mar-2024,Childrens Services,TOTALENERGIES GAS & POWER LTD,Childrens Services,2362.93,Electricity,2324P12_CR00227,107605
Sandwell Metropolitan Borough Council,http://www.sandwell.gov.uk/info/200202/performance_and_spending/1079/payments_over_500,01-Mar-2024,Childrens Services,TOTALENERGIES GAS & POWER LTD,Childrens Services,1227.16,Gas,2324P12_CR00228,107605
Sandwell Metropolitan Borough Council,http://www.sandwell.gov.uk/info/200202/performance_and_spending/1079/payments_over_500,01-Mar-2024,Childrens Services,TOTALENERGIES GAS & POWER LTD,Childrens Services,1114.79,Gas,2324P12_CR00229,107605
Sandwell Metropolitan Borough Council,http://www.sandwell.gov.uk/info/200202/performance_and_spending/1079/payments_over_500,01-Mar-2024,Childrens Services,TOTALENERGIES GAS & POWER LTD,Childrens Services,1277.70,Gas,2324P12_CR00230,107605
Sandwell Metropolitan Borough Council,http://www.sandwell.gov.uk/info/200202/performance_and_spending/1079/payments_over_500,01-Mar-2024,Childrens Services,TOTALENERGIES GAS & POWER LTD,Childrens Services,1085.14,Electricity,2324P12_CR00231,107605
Sandwell Metropolitan Borough Council,http://www.sandwell.gov.uk/info/200202/performance_and_spending/1079/payments_over_500,01-Mar-2024,Childrens Services,TOTALENERGIES GAS & POWER LTD,Childrens Services,1482.38,Electricity,2324P12_CR00232,107605
Sandwell Metropolitan Borough Council,http://www.sandwell.gov.uk/info/200202/performance_and_spending/1079/payments_over_500,01-Mar-2024,Childrens Services,TOTALENERGIES GAS & POWER LTD,Childrens Services,751.69,Electricity,2324P12_CR00233,107605
Sandwell Metropolitan Borough Council,http://www.sandwell.gov.uk/info/200202/performance_and_spending/1079/payments_over_500,01-Mar-2024,Childrens Services,TOTALENERGIES GAS & POWER LTD,Childrens Services,814.88,Electricity,2324P12_CR00234,107605
Sandwell Metropolitan Borough Council,http://www.sandwell.gov.uk/info/200202/performance_and_spending/1079/payments_over_500,01-Mar-2024,Childrens Services,TOTALENERGIES GAS & POWER LTD,Childrens Services,1797.76,Electricity,2324P12_CR00235,107605
Sandwell Metropolitan Borough Council,http://www.sandwell.gov.uk/info/200202/performance_and_spending/1079/payments_over_500,01-Mar-2024,Childrens Services,TOTALENERGIES GAS & POWER LTD,Childrens Services,828.14,Gas,2324P12_CR00236,107605
Sandwell Metropolitan Borough Council,http://www.sandwell.gov.uk/info/200202/performance_and_spending/1079/payments_over_500,01-Mar-2024,Childrens Services,TOTALENERGIES GAS & POWER LTD,Childrens Services,1141.40,Gas,2324P12_CR00237,107605
Sandwell Metropolitan Borough Council,http://www.sandwell.gov.uk/info/200202/performance_and_spending/1079/payments_over_500,01-Mar-2024,Childrens Services,TOTALENERGIES GAS & POWER LTD,Childrens Services,1077.59,Gas,2324P12_CR00238,107605
Sandwell Metropolitan Borough Council,http://www.sandwell.gov.uk/info/200202/performance_and_spending/1079/payments_over_500,01-Mar-2024,Childrens Services,TOTALENERGIES GAS & POWER LTD,Childrens Services,641.75,Electricity,2324P12_CR00239,107605
Sandwell Metropolitan Borough Council,http://www.sandwell.gov.uk/info/200202/performance_and_spending/1079/payments_over_500,01-Mar-2024,Childrens Services,TOTALENERGIES GAS & POWER LTD,Childrens Services,745.84,Electricity,2324P12_CR00240,107605
Sandwell Metropolitan Borough Council,http://www.sandwell.gov.uk/info/200202/performance_and_spending/1079/payments_over_500,01-Mar-2024,Childrens Services,TOTALENERGIES GAS & POWER LTD,Childrens Services,1523.89,Electricity,2324P12_CR00241,107605
Sandwell Metropolitan Borough Council,http://www.sandwell.gov.uk/info/200202/performance_and_spending/1079/payments_over_500,01-Mar-2024,Childrens Services,TOTALENERGIES GAS & POWER LTD,Childrens Services,1294.48,Electricity,2324P12_CR00242,107605
Sandwell Metropolitan Borough Council,http://www.sandwell.gov.uk/info/200202/performance_and_spending/1079/payments_over_500,01-Mar-2024,Childrens Services,TOTALENERGIES GAS & POWER LTD,Childrens Services,758.61,Electricity,2324P12_CR00243,107605
Sandwell Metropolitan Borough Council,http://www.sandwell.gov.uk/info/200202/performance_and_spending/1079/payments_over_500,08-Mar-2024,Childrens Services,TRH WALSALL LTD,Childrens Services,1568.00,Rents,2324P12_CR00244,85648
Sandwell Metropolitan Borough Council,http://www.sandwell.gov.uk/info/200202/performance_and_spending/1079/payments_over_500,08-Mar-2024,Childrens Services,TRH WALSALL LTD,Childrens Services,933.52,Rents,2324P12_CR00245,85648
Sandwell Metropolitan Borough Council,http://www.sandwell.gov.uk/info/200202/performance_and_spending/1079/payments_over_500,08-Mar-2024,Childrens Services,TRH WALSALL LTD,Childrens Services,933.52,Rents,2324P12_CR00246,85648
Sandwell Metropolitan Borough Council,http://www.sandwell.gov.uk/info/200202/performance_and_spending/1079/payments_over_500,08-Mar-2024,Childrens Services,TRH WALSALL LTD,Childrens Services,1333.60,Rents,2324P12_CR00247,85648
Sandwell Metropolitan Borough Council,http://www.sandwell.gov.uk/info/200202/performance_and_spending/1079/payments_over_500,08-Mar-2024,Childrens Services,TRH WALSALL LTD,Childrens Services,933.52,Rents,2324P12_CR00248,85648
Sandwell Metropolitan Borough Council,http://www.sandwell.gov.uk/info/200202/performance_and_spending/1079/payments_over_500,08-Mar-2024,Childrens Services,TRH WALSALL LTD,Childrens Services,1260.00,Rents,2324P12_CR00249,85648
Sandwell Metropolitan Borough Council,http://www.sandwell.gov.uk/info/200202/performance_and_spending/1079/payments_over_500,08-Mar-2024,Childrens Services,TRH WALSALL LTD,Childrens Services,1568.00,Rents,2324P12_CR00250,85648
Sandwell Metropolitan Borough Council,http://www.sandwell.gov.uk/info/200202/performance_and_spending/1079/payments_over_500,08-Mar-2024,Childrens Services,TRH WALSALL LTD,Childrens Services,1054.32,Rents,2324P12_CR00251,85648
Sandwell Metropolitan Borough Council,http://www.sandwell.gov.uk/info/200202/performance_and_spending/1079/payments_over_500,01-Mar-2024,Childrens Services,TRIPLE P UK LTD,Childrens Services,10860.00,Externally Purchased Professional Services ,2324P12_CR00252,83730
Sandwell Metropolitan Borough Council,http://www.sandwell.gov.uk/info/200202/performance_and_spending/1079/payments_over_500,01-Mar-2024,Childrens Services,TRIPLE P UK LTD,Childrens Services,2420.00,Externally Purchased Professional Services ,2324P12_CR00253,83730
Sandwell Metropolitan Borough Council,http://www.sandwell.gov.uk/info/200202/performance_and_spending/1079/payments_over_500,14-Mar-2024,Childrens Services,UNIFORM PLUS,Childrens Services,1268.49,Protective Clothing & Uniforms,2324P12_CR00254,04010703
Sandwell Metropolitan Borough Council,http://www.sandwell.gov.uk/info/200202/performance_and_spending/1079/payments_over_500,22-Mar-2024,Childrens Services,UP & UNDER OUTDOOR GEAR LTD,Childrens Services,1644.72,Equipment & Furniture ,2324P12_CR00255,72873
Sandwell Metropolitan Borough Council,http://www.sandwell.gov.uk/info/200202/performance_and_spending/1079/payments_over_500,01-Mar-2024,Childrens Services,VENN GROUP LTD,Childrens Services,1575.00,Agency Staff,2324P12_CR00256,49728
Sandwell Metropolitan Borough Council,http://www.sandwell.gov.uk/info/200202/performance_and_spending/1079/payments_over_500,01-Mar-2024,Childrens Services,VENN GROUP LTD,Childrens Services,1064.25,Agency Staff,2324P12_CR00257,49728
Sandwell Metropolitan Borough Council,http://www.sandwell.gov.uk/info/200202/performance_and_spending/1079/payments_over_500,01-Mar-2024,Childrens Services,VENN GROUP LTD,Childrens Services,1575.00,Agency Staff,2324P12_CR00258,49728
Sandwell Metropolitan Borough Council,http://www.sandwell.gov.uk/info/200202/performance_and_spending/1079/payments_over_500,01-Mar-2024,Childrens Services,VENN GROUP LTD,Childrens Services,1750.10,Agency Staff,2324P12_CR00259,49728
Sandwell Metropolitan Borough Council,http://www.sandwell.gov.uk/info/200202/performance_and_spending/1079/payments_over_500,01-Mar-2024,Childrens Services,VENN GROUP LTD,Childrens Services,1750.10,Agency Staff,2324P12_CR00260,49728
Sandwell Metropolitan Borough Council,http://www.sandwell.gov.uk/info/200202/performance_and_spending/1079/payments_over_500,01-Mar-2024,Childrens Services,VENN GROUP LTD,Childrens Services,1750.10,Agency Staff,2324P12_CR00261,49728
Sandwell Metropolitan Borough Council,http://www.sandwell.gov.uk/info/200202/performance_and_spending/1079/payments_over_500,01-Mar-2024,Childrens Services,WEST MIDLANDS TRAVEL LIMITED,Childrens Services,5994.00,Public Transport,2324P12_CR00262,01736688
Sandwell Metropolitan Borough Council,http://www.sandwell.gov.uk/info/200202/performance_and_spending/1079/payments_over_500,01-Mar-2024,Childrens Services,WILD LIVES FOREST SCHOOL,Childrens Services,600.00,Externally Purchased Professional Services ,2324P12_CR00263,165176
Sandwell Metropolitan Borough Council,http://www.sandwell.gov.uk/info/200202/performance_and_spending/1079/payments_over_500,18-Mar-2024,Childrens Services,WILD LIVES FOREST SCHOOL,Childrens Services,800.00,Externally Purchased Professional Services ,2324P12_CR00264,165176
Sandwell Metropolitan Borough Council,http://www.sandwell.gov.uk/info/200202/performance_and_spending/1079/payments_over_500,26-Mar-2024,Childrens Services,WMA COMMUNITY FITNESS CENTRE,Childrens Services,500.00,Externally Purchased Professional Services ,2324P12_CR00265,141572
Sandwell Metropolitan Borough Council,http://www.sandwell.gov.uk/info/200202/performance_and_spending/1079/payments_over_500,01-Mar-2024,Childrens Services,WYRE FOREST DISTRICT COUNCIL,Childrens Services,4320.00,Waste Disposal Charges,2324P12_CR00266,5163
Sandwell Metropolitan Borough Council,http://www.sandwell.gov.uk/info/200202/performance_and_spending/1079/payments_over_500,01-Mar-2024,Childrens Services,WYRE FOREST DISTRICT COUNCIL,Childrens Services,4320.00,Externally Purchased Professional Services ,2324P12_CR00267,5163
Sandwell Metropolitan Borough Council,http://www.sandwell.gov.uk/info/200202/performance_and_spending/1079/payments_over_500,01-Mar-2024,Childrens Services,YMCA BLACK COUNTRY GROUP,Childrens Services,17000.00,Grants,2324P12_CR00268,109842
Sandwell Metropolitan Borough Council,http://www.sandwell.gov.uk/info/200202/performance_and_spending/1079/payments_over_500,01-Mar-2024,Childrens Services,REDACTED PERSONAL DATA T/A VIDEO INTERACTION GUIDANCE (VIGHK),Childrens Services,4500.00,Externally Purchased Professional Services ,2324P12_CR00269,REDACTED PERSONAL DATA
Sandwell Metropolitan Borough Council,http://www.sandwell.gov.uk/info/200202/performance_and_spending/1079/payments_over_500,01-Mar-2024,Childrens Services,PAUL STRINGER,Childrens Services,1250.00,Externally Purchased Professional Services ,2324P12_CR00270,155655
Sandwell Metropolitan Borough Council,http://www.sandwell.gov.uk/info/200202/performance_and_spending/1079/payments_over_500,01-Mar-2024,Childrens Services,DANIELLE CAGA,Childrens Services,780.00,Externally Purchased Professional Services ,2324P12_CR00271,167347
Sandwell Metropolitan Borough Council,http://www.sandwell.gov.uk/info/200202/performance_and_spending/1079/payments_over_500,01-Mar-2024,Childrens Services,MARK LAMSDALE,Childrens Services,2000.00,Advertising & Publicity,2324P12_CR00272,26316
Sandwell Metropolitan Borough Council,http://www.sandwell.gov.uk/info/200202/performance_and_spending/1079/payments_over_500,01-Mar-2024,Childrens Services,DANIELLE CAGA,Childrens Services,885.00,Externally Purchased Professional Services ,2324P12_CR00273,167347
Sandwell Metropolitan Borough Council,http://www.sandwell.gov.uk/info/200202/performance_and_spending/1079/payments_over_500,12-Mar-2024,Childrens Services,REDACTED PERSONAL DATA,Childrens Services,1007.20,Rents,2324P12_CR00274,REDACTED PERSONAL DATA
Sandwell Metropolitan Borough Council,http://www.sandwell.gov.uk/info/200202/performance_and_spending/1079/payments_over_500,12-Mar-2024,Childrens Services,REDACTED PERSONAL DATA,Childrens Services,727.27,External Contract Hire,2324P12_CR00275,REDACTED PERSONAL DATA
Sandwell Metropolitan Borough Council,http://www.sandwell.gov.uk/info/200202/performance_and_spending/1079/payments_over_500,12-Mar-2024,Childrens Services,REDACTED PERSONAL DATA,Childrens Services,545.45,External Contract Hire,2324P12_CR00276,REDACTED PERSONAL DATA
Sandwell Metropolitan Borough Council,http://www.sandwell.gov.uk/info/200202/performance_and_spending/1079/payments_over_500,12-Mar-2024,Childrens Services,REDACTED PERSONAL DATA,Childrens Services,727.28,External Contract Hire,2324P12_CR00277,REDACTED PERSONAL DATA
Sandwell Metropolitan Borough Council,http://www.sandwell.gov.uk/info/200202/performance_and_spending/1079/payments_over_500,12-Mar-2024,Childrens Services,REDACTED PERSONAL DATA,Childrens Services,545.45,External Contract Hire,2324P12_CR00278,REDACTED PERSONAL DATA
Sandwell Metropolitan Borough Council,http://www.sandwell.gov.uk/info/200202/performance_and_spending/1079/payments_over_500,12-Mar-2024,Childrens Services,REDACTED PERSONAL DATA,Childrens Services,545.45,External Contract Hire,2324P12_CR00279,REDACTED PERSONAL DATA
Sandwell Metropolitan Borough Council,http://www.sandwell.gov.uk/info/200202/performance_and_spending/1079/payments_over_500,12-Mar-2024,Childrens Services,REDACTED PERSONAL DATA,Childrens Services,545.45,External Contract Hire,2324P12_CR00280,REDACTED PERSONAL DATA
Sandwell Metropolitan Borough Council,http://www.sandwell.gov.uk/info/200202/performance_and_spending/1079/payments_over_500,12-Mar-2024,Childrens Services,REDACTED PERSONAL DATA,Childrens Services,1090.90,External Contract Hire,2324P12_CR00281,REDACTED PERSONAL DATA
Sandwell Metropolitan Borough Council,http://www.sandwell.gov.uk/info/200202/performance_and_spending/1079/payments_over_500,12-Mar-2024,Childrens Services,REDACTED PERSONAL DATA,Childrens Services,727.27,External Contract Hire,2324P12_CR00282,REDACTED PERSONAL DATA
Sandwell Metropolitan Borough Council,http://www.sandwell.gov.uk/info/200202/performance_and_spending/1079/payments_over_500,12-Mar-2024,Childrens Services,REDACTED PERSONAL DATA,Childrens Services,545.45,External Contract Hire,2324P12_CR00283,REDACTED PERSONAL DATA
Sandwell Metropolitan Borough Council,http://www.sandwell.gov.uk/info/200202/performance_and_spending/1079/payments_over_500,12-Mar-2024,Childrens Services,REDACTED PERSONAL DATA,Childrens Services,545.45,External Contract Hire,2324P12_CR00284,REDACTED PERSONAL DATA
Sandwell Metropolitan Borough Council,http://www.sandwell.gov.uk/info/200202/performance_and_spending/1079/payments_over_500,12-Mar-2024,Childrens Services,REDACED PERSONAL DATA,Childrens Services,545.45,External Contract Hire,2324P12_CR00285,REDACTED PERSONAL DATA
Sandwell Metropolitan Borough Council,http://www.sandwell.gov.uk/info/200202/performance_and_spending/1079/payments_over_500,12-Mar-2024,Childrens Services,REDACTED PERSONAL DATA,Childrens Services,545.45,External Contract Hire,2324P12_CR00286,REDACTED PERSONAL DATA
Sandwell Metropolitan Borough Council,http://www.sandwell.gov.uk/info/200202/performance_and_spending/1079/payments_over_500,12-Mar-2024,Childrens Services,REDACTED PERSONAL DATA,Childrens Services,545.45,External Contract Hire,2324P12_CR00287,REDACTED PERSONAL DATA
Sandwell Metropolitan Borough Council,http://www.sandwell.gov.uk/info/200202/performance_and_spending/1079/payments_over_500,12-Mar-2024,Childrens Services,REDACTED PERSONAL DATA,Childrens Services,545.45,External Contract Hire,2324P12_CR00288,REDACTED PERSONAL DATA
Sandwell Metropolitan Borough Council,http://www.sandwell.gov.uk/info/200202/performance_and_spending/1079/payments_over_500,12-Mar-2024,Childrens Services,REDACTED PERSONAL DATA,Childrens Services,727.28,External Contract Hire,2324P12_CR00289,REDACTED PERSONAL DATA
Sandwell Metropolitan Borough Council,http://www.sandwell.gov.uk/info/200202/performance_and_spending/1079/payments_over_500,12-Mar-2024,Childrens Services,REDACTED PERSONAL DATA,Childrens Services,727.27,External Contract Hire,2324P12_CR00290,REDACTED PERSONAL DATA
Sandwell Metropolitan Borough Council,http://www.sandwell.gov.uk/info/200202/performance_and_spending/1079/payments_over_500,12-Mar-2024,Childrens Services,REDACTED PERSONAL DATA,Childrens Services,545.45,External Contract Hire,2324P12_CR00291,REDACTED PERSONAL DATA
Sandwell Metropolitan Borough Council,http://www.sandwell.gov.uk/info/200202/performance_and_spending/1079/payments_over_500,12-Mar-2024,Childrens Services,REDACTED PERSONAL DATA,Childrens Services,545.45,External Contract Hire,2324P12_CR00292,REDACTED PERSONAL DATA
Sandwell Metropolitan Borough Council,http://www.sandwell.gov.uk/info/200202/performance_and_spending/1079/payments_over_500,12-Mar-2024,Childrens Services,REDACTED PERSONAL DATA,Childrens Services,545.45,External Contract Hire,2324P12_CR00293,REDACTED PERSONAL DATA
Sandwell Metropolitan Borough Council,http://www.sandwell.gov.uk/info/200202/performance_and_spending/1079/payments_over_500,12-Mar-2024,Childrens Services,REDACTED PERSONAL DATA,Childrens Services,727.27,External Contract Hire,2324P12_CR00294,REDACTED PERSONAL DATA
Sandwell Metropolitan Borough Council,http://www.sandwell.gov.uk/info/200202/performance_and_spending/1079/payments_over_500,12-Mar-2024,Childrens Services,REDACTED PERSONAL DATA,Childrens Services,545.45,External Contract Hire,2324P12_CR00295,REDACTED PERSONAL DATA
Sandwell Metropolitan Borough Council,http://www.sandwell.gov.uk/info/200202/performance_and_spending/1079/payments_over_500,12-Mar-2024,Childrens Services,REDACTED PERSONAL DATA,Childrens Services,727.27,External Contract Hire,2324P12_CR00296,REDACTED PERSONAL DATA
Sandwell Metropolitan Borough Council,http://www.sandwell.gov.uk/info/200202/performance_and_spending/1079/payments_over_500,12-Mar-2024,Childrens Services,REDACTED PERSONAL DATA,Childrens Services,545.45,External Contract Hire,2324P12_CR00297,REDACTED PERSONAL DATA
Sandwell Metropolitan Borough Council,http://www.sandwell.gov.uk/info/200202/performance_and_spending/1079/payments_over_500,12-Mar-2024,Childrens Services,REDACTED PERSONAL DATA,Childrens Services,545.45,External Contract Hire,2324P12_CR00298,REDACTED PERSONAL DATA
Sandwell Metropolitan Borough Council,http://www.sandwell.gov.uk/info/200202/performance_and_spending/1079/payments_over_500,12-Mar-2024,Childrens Services,REDACTED PERSONAL DATA,Childrens Services,545.45,External Contract Hire,2324P12_CR00299,REDACTED PERSONAL DATA
Sandwell Metropolitan Borough Council,http://www.sandwell.gov.uk/info/200202/performance_and_spending/1079/payments_over_500,12-Mar-2024,Childrens Services,REDACTED PERSONAL DATA,Childrens Services,727.27,External Contract Hire,2324P12_CR00300,REDACTED PERSONAL DATA
Sandwell Metropolitan Borough Council,http://www.sandwell.gov.uk/info/200202/performance_and_spending/1079/payments_over_500,12-Mar-2024,Childrens Services,REDACTED PERSONAL DATA,Childrens Services,545.45,External Contract Hire,2324P12_CR00301,REDACTED PERSONAL DATA
Sandwell Metropolitan Borough Council,http://www.sandwell.gov.uk/info/200202/performance_and_spending/1079/payments_over_500,11-Mar-2024,Childrens Services,REDACTED PERSONAL DATA,Childrens Services,955.80,External Contract Hire,2324P12_CR00302,REDACTED PERSONAL DATA
Sandwell Metropolitan Borough Council,http://www.sandwell.gov.uk/info/200202/performance_and_spending/1079/payments_over_500,08-Mar-2024,Childrens Services,4 COMMUNITY TRUST CIC,Childrens Services,18700.00,Grant Payments,2324P12_CR00303,137880
Sandwell Metropolitan Borough Council,http://www.sandwell.gov.uk/info/200202/performance_and_spending/1079/payments_over_500,08-Mar-2024,Childrens Services,4 COMMUNITY TRUST CIC,Childrens Services,6160.00,Grant Payments,2324P12_CR00304,137880
Sandwell Metropolitan Borough Council,http://www.sandwell.gov.uk/info/200202/performance_and_spending/1079/payments_over_500,08-Mar-2024,Childrens Services,4 COMMUNITY TRUST CIC,Childrens Services,4675.00,Grant Payments,2324P12_CR00305,137880
Sandwell Metropolitan Borough Council,http://www.sandwell.gov.uk/info/200202/performance_and_spending/1079/payments_over_500,12-Mar-2024,Childrens Services,BRANDHALL PRIMARY SCHOOL   ,Childrens Services,2362.00,Grant Payments,2324P12_CR00306,60971
Sandwell Metropolitan Borough Council,http://www.sandwell.gov.uk/info/200202/performance_and_spending/1079/payments_over_500,12-Mar-2024,Childrens Services,BRUSHSTROKES,Childrens Services,35000.00,Grant Payments,2324P12_CR00307,21029374
Sandwell Metropolitan Borough Council,http://www.sandwell.gov.uk/info/200202/performance_and_spending/1079/payments_over_500,13-Mar-2024,Childrens Services,CENTRE SPOT C.I.C,Childrens Services,12176.00,Grant Payments,2324P12_CR00308,98361
Sandwell Metropolitan Borough Council,http://www.sandwell.gov.uk/info/200202/performance_and_spending/1079/payments_over_500,12-Mar-2024,Childrens Services,CITIZENS ADVICE SANDWELL & WALSALL,Childrens Services,60000.00,Grant Payments,2324P12_CR00309,01760899
Sandwell Metropolitan Borough Council,http://www.sandwell.gov.uk/info/200202/performance_and_spending/1079/payments_over_500,08-Mar-2024,Childrens Services,COMMUNITY ACTION PROJECT,Childrens Services,4770.00,Grant Payments,2324P12_CR00310,01702622
Sandwell Metropolitan Borough Council,http://www.sandwell.gov.uk/info/200202/performance_and_spending/1079/payments_over_500,06-Mar-2024,Childrens Services,COMMUNITY CONNECT FOUNDATION,Childrens Services,7000.00,Grant Payments,2324P12_CR00311,01685391
Sandwell Metropolitan Borough Council,http://www.sandwell.gov.uk/info/200202/performance_and_spending/1079/payments_over_500,08-Mar-2024,Childrens Services,CREATIVE ACTIVE LIVES CIC,Childrens Services,5800.00,Grant Payments,2324P12_CR00312,138641
Sandwell Metropolitan Borough Council,http://www.sandwell.gov.uk/info/200202/performance_and_spending/1079/payments_over_500,11-Mar-2024,Childrens Services,DYNAMIC KIDS C.I.C,Childrens Services,10975.00,Grant Payments,2324P12_CR00313,165444
Sandwell Metropolitan Borough Council,http://www.sandwell.gov.uk/info/200202/performance_and_spending/1079/payments_over_500,08-Mar-2024,Childrens Services,EARLS GYMNASTICS CLUB,Childrens Services,4000.00,Grant Payments,2324P12_CR00314,96950
Sandwell Metropolitan Borough Council,http://www.sandwell.gov.uk/info/200202/performance_and_spending/1079/payments_over_500,06-Mar-2024,Childrens Services,ECO CHEST LTD T/A LITTLE BEARS PLAYHOUSE,Childrens Services,4080.00,Grant Payments,2324P12_CR00315,168229
Sandwell Metropolitan Borough Council,http://www.sandwell.gov.uk/info/200202/performance_and_spending/1079/payments_over_500,15-Mar-2024,Childrens Services,ELP SPORTS LTD,Childrens Services,5997.00,Grant Payments,2324P12_CR00316,165615
Sandwell Metropolitan Borough Council,http://www.sandwell.gov.uk/info/200202/performance_and_spending/1079/payments_over_500,08-Mar-2024,Childrens Services,EMPOWERING PEOPLE IN CHANGE C.I.C,Childrens Services,2080.00,Grant Payments,2324P12_CR00317,165445
Sandwell Metropolitan Borough Council,http://www.sandwell.gov.uk/info/200202/performance_and_spending/1079/payments_over_500,08-Mar-2024,Childrens Services,EXCELR8 SCE C.I.C,Childrens Services,4284.00,Grant Payments,2324P12_CR00318,153112
Sandwell Metropolitan Borough Council,http://www.sandwell.gov.uk/info/200202/performance_and_spending/1079/payments_over_500,06-Mar-2024,Childrens Services,FANTASTIC JOURNEYS C.I.C,Childrens Services,1208.00,Grant Payments,2324P12_CR00319,163596
Sandwell Metropolitan Borough Council,http://www.sandwell.gov.uk/info/200202/performance_and_spending/1079/payments_over_500,06-Mar-2024,Childrens Services,FRIAR PARK MILLENNIUM CENTRE,Childrens Services,16617.00,Grant Payments,2324P12_CR00320,28476
Sandwell Metropolitan Borough Council,http://www.sandwell.gov.uk/info/200202/performance_and_spending/1079/payments_over_500,08-Mar-2024,Childrens Services,G.A.P ENTERTAINMENT C.I.C,Childrens Services,6854.00,Grant Payments,2324P12_CR00321,153273
Sandwell Metropolitan Borough Council,http://www.sandwell.gov.uk/info/200202/performance_and_spending/1079/payments_over_500,08-Mar-2024,Childrens Services,GREAT BRIDGE COMMUNITY FORUM,Childrens Services,4217.00,Grant Payments,2324P12_CR00322,21026008
Sandwell Metropolitan Borough Council,http://www.sandwell.gov.uk/info/200202/performance_and_spending/1079/payments_over_500,15-Mar-2024,Childrens Services,GROUNDWORK WEST MIDLANDS,Childrens Services,60000.00,Grant Payments,2324P12_CR00323,92743
Sandwell Metropolitan Borough Council,http://www.sandwell.gov.uk/info/200202/performance_and_spending/1079/payments_over_500,08-Mar-2024,Childrens Services,GROVE VALE PRIMARY SCHOOL,Childrens Services,4900.00,Grant Payments,2324P12_CR00324,60993
Sandwell Metropolitan Borough Council,http://www.sandwell.gov.uk/info/200202/performance_and_spending/1079/payments_over_500,08-Mar-2024,Childrens Services,IDEAL FOR ALL LIMITED,Childrens Services,7758.00,Grant Payments,2324P12_CR00325,01678484
Sandwell Metropolitan Borough Council,http://www.sandwell.gov.uk/info/200202/performance_and_spending/1079/payments_over_500,06-Mar-2024,Childrens Services,KIDS,Childrens Services,4935.00,Grant Payments,2324P12_CR00326,80825
Sandwell Metropolitan Borough Council,http://www.sandwell.gov.uk/info/200202/performance_and_spending/1079/payments_over_500,13-Mar-2024,Childrens Services,LIFE IN COMMUNITY CIC,Childrens Services,5290.00,Grant Payments,2324P12_CR00327,151510
Sandwell Metropolitan Borough Council,http://www.sandwell.gov.uk/info/200202/performance_and_spending/1079/payments_over_500,08-Mar-2024,Childrens Services,LIMITLESS YOUTH ACADEMY C.I.C,Childrens Services,6344.00,Grant Payments,2324P12_CR00328,165489
Sandwell Metropolitan Borough Council,http://www.sandwell.gov.uk/info/200202/performance_and_spending/1079/payments_over_500,08-Mar-2024,Childrens Services,LION FARM ACTION CENTRE (SANDWELL) LTD,Childrens Services,6718.00,Grant Payments,2324P12_CR00329,21023409
Sandwell Metropolitan Borough Council,http://www.sandwell.gov.uk/info/200202/performance_and_spending/1079/payments_over_500,06-Mar-2024,Childrens Services,MALE FAMILY GROUP T/A WARRENS HALL FARM RIDING STABLES,Childrens Services,2990.00,Grant Payments,2324P12_CR00330,87755
Sandwell Metropolitan Borough Council,http://www.sandwell.gov.uk/info/200202/performance_and_spending/1079/payments_over_500,11-Mar-2024,Childrens Services,OLDBURY UNITED C.I.C,Childrens Services,6515.00,Grant Payments,2324P12_CR00331,153379
Sandwell Metropolitan Borough Council,http://www.sandwell.gov.uk/info/200202/performance_and_spending/1079/payments_over_500,06-Mar-2024,Childrens Services,PILOT IMS LTD,Childrens Services,8464.00,Grant Payments,2324P12_CR00332,59674
Sandwell Metropolitan Borough Council,http://www.sandwell.gov.uk/info/200202/performance_and_spending/1079/payments_over_500,18-Mar-2024,Childrens Services,PRECIOUS TIMES DAY NURSERY,Childrens Services,3542.00,Grant Payments,2324P12_CR00333,165946
Sandwell Metropolitan Borough Council,http://www.sandwell.gov.uk/info/200202/performance_and_spending/1079/payments_over_500,13-Mar-2024,Childrens Services,PREMIER SOCCER COACHING T/A PREMIER EDUCATION,Childrens Services,2840.00,Grant Payments,2324P12_CR00334,163599
Sandwell Metropolitan Borough Council,http://www.sandwell.gov.uk/info/200202/performance_and_spending/1079/payments_over_500,08-Mar-2024,Childrens Services,RB SPORTS ACTIVITIES LTD,Childrens Services,4000.00,Grant Payments,2324P12_CR00335,126163
Sandwell Metropolitan Borough Council,http://www.sandwell.gov.uk/info/200202/performance_and_spending/1079/payments_over_500,08-Mar-2024,Childrens Services,SADWICA DAY NURSERY,Childrens Services,2858.00,Grant Payments,2324P12_CR00336,01667892
Sandwell Metropolitan Borough Council,http://www.sandwell.gov.uk/info/200202/performance_and_spending/1079/payments_over_500,06-Mar-2024,Childrens Services,SANDWELL CHILDREN'S TRUST,Childrens Services,2300.00,Grant Payments,2324P12_CR00337,133302
Sandwell Metropolitan Borough Council,http://www.sandwell.gov.uk/info/200202/performance_and_spending/1079/payments_over_500,14-Mar-2024,Childrens Services,SANDWELL LEISURE TRUST,Childrens Services,4121.00,Grant Payments,2324P12_CR00338,23305
Sandwell Metropolitan Borough Council,http://www.sandwell.gov.uk/info/200202/performance_and_spending/1079/payments_over_500,08-Mar-2024,Childrens Services,SANDWELL YOUNG CARERS,Childrens Services,3777.00,Grant Payments,2324P12_CR00339,08482635
Sandwell Metropolitan Borough Council,http://www.sandwell.gov.uk/info/200202/performance_and_spending/1079/payments_over_500,12-Mar-2024,Childrens Services,SINGLEPOINT PLUS LIMITED,Childrens Services,60000.00,Grant Payments,2324P12_CR00340,141896
Sandwell Metropolitan Borough Council,http://www.sandwell.gov.uk/info/200202/performance_and_spending/1079/payments_over_500,12-Mar-2024,Childrens Services,SINGLEPOINT PLUS LIMITED,Childrens Services,35000.00,Grant Payments,2324P12_CR00341,141896
Sandwell Metropolitan Borough Council,http://www.sandwell.gov.uk/info/200202/performance_and_spending/1079/payments_over_500,08-Mar-2024,Childrens Services,SPORTING SPIRIT CIC,Childrens Services,6300.00,Grant Payments,2324P12_CR00342,130989
Sandwell Metropolitan Borough Council,http://www.sandwell.gov.uk/info/200202/performance_and_spending/1079/payments_over_500,08-Mar-2024,Childrens Services,SPORTING YOUR FUTURES,Childrens Services,13800.00,Grant Payments,2324P12_CR00343,153219
Sandwell Metropolitan Borough Council,http://www.sandwell.gov.uk/info/200202/performance_and_spending/1079/payments_over_500,13-Mar-2024,Childrens Services,SPORTS 4 LIFE UK,Childrens Services,5557.00,Grant Payments,2324P12_CR00344,153208
Sandwell Metropolitan Borough Council,http://www.sandwell.gov.uk/info/200202/performance_and_spending/1079/payments_over_500,08-Mar-2024,Childrens Services,SPORTS PLUS SCHEME LTD,Childrens Services,27600.00,Grant Payments,2324P12_CR00345,46504
Sandwell Metropolitan Borough Council,http://www.sandwell.gov.uk/info/200202/performance_and_spending/1079/payments_over_500,11-Mar-2024,Childrens Services,THE ALBION FOUNDATION,Childrens Services,21247.00,Grant Payments,2324P12_CR00346,21026659
Sandwell Metropolitan Borough Council,http://www.sandwell.gov.uk/info/200202/performance_and_spending/1079/payments_over_500,06-Mar-2024,Childrens Services,THE BRANCH,Childrens Services,11646.00,Grant Payments,2324P12_CR00347,08588514
Sandwell Metropolitan Borough Council,http://www.sandwell.gov.uk/info/200202/performance_and_spending/1079/payments_over_500,06-Mar-2024,Childrens Services,TIME STEP DANCE,Childrens Services,6138.00,Grant Payments,2324P12_CR00348,141570
Sandwell Metropolitan Borough Council,http://www.sandwell.gov.uk/info/200202/performance_and_spending/1079/payments_over_500,11-Mar-2024,Childrens Services,WEST SMETHWICK ENTERPRISE AND STEPPING STONES PRE-SCHOOL,Childrens Services,3048.00,Grant Payments,2324P12_CR00349,01722169
Sandwell Metropolitan Borough Council,http://www.sandwell.gov.uk/info/200202/performance_and_spending/1079/payments_over_500,14-Mar-2024,Childrens Services,YEMENI COMMUNITY ASSOCIATION IN SANDWELL,Childrens Services,2875.00,Grant Payments,2324P12_CR00350,01711292
Sandwell Metropolitan Borough Council,http://www.sandwell.gov.uk/info/200202/performance_and_spending/1079/payments_over_500,06-Mar-2024,Childrens Services,CHESS-MATE,Childrens Services,3659.00,Grant Payments,2324P12_CR00351,168220
Sandwell Metropolitan Borough Council,http://www.sandwell.gov.uk/info/200202/performance_and_spending/1079/payments_over_500,01-Mar-2024,Childrens Services Capital,HAYSTOUN CONSTRUCTION LTD,Childrens Services Capital,5438.98,CIP - Acquisition of Land & Existing Buildings,2324P12_CR00352,11849
Sandwell Metropolitan Borough Council,http://www.sandwell.gov.uk/info/200202/performance_and_spending/1079/payments_over_500,06-Mar-2024,Corporate Management,THE ROYAL BRITISH LEGION,Corporate Management,520.00,"Printing, Stationery & General Office Expenses",2324P12_CR00353,114356
Sandwell Metropolitan Borough Council,http://www.sandwell.gov.uk/info/200202/performance_and_spending/1079/payments_over_500,01-Mar-2024,Regeneration And The Economy Capital,BROWNE JACOBSON LLP,Regeneration And The Economy Capital,9004.90,Consultancy,2324P12_CR00354,109574
Sandwell Metropolitan Borough Council,http://www.sandwell.gov.uk/info/200202/performance_and_spending/1079/payments_over_500,08-Mar-2024,Resources Capital,GSS (NI) LTD T/A PLOTBOX,Resources Capital,5160.00,Externally Purchased Professional Services ,2324P12_CR00355,167469
Sandwell Metropolitan Borough Council,http://www.sandwell.gov.uk/info/200202/performance_and_spending/1079/payments_over_500,08-Mar-2024,Regeneration And The Economy Capital,JOHN A BATES (CONTRACTORS) LTD,Regeneration And The Economy Capital,29517.92,Operational Services ,2324P12_CR00356,77001148
Sandwell Metropolitan Borough Council,http://www.sandwell.gov.uk/info/200202/performance_and_spending/1079/payments_over_500,08-Mar-2024,Regeneration And The Economy Capital,JOHN A BATES (CONTRACTORS) LTD,Regeneration And The Economy Capital,12120.30,Operational Services ,2324P12_CR00357,77001148
Sandwell Metropolitan Borough Council,http://www.sandwell.gov.uk/info/200202/performance_and_spending/1079/payments_over_500,08-Mar-2024,Regeneration And The Economy Capital,JOHN A BATES (CONTRACTORS) LTD,Regeneration And The Economy Capital,8922.16,Operational Services ,2324P12_CR00358,77001148
Sandwell Metropolitan Borough Council,http://www.sandwell.gov.uk/info/200202/performance_and_spending/1079/payments_over_500,21-Mar-2024,Regeneration And The Economy Capital,JOHN A BATES (CONTRACTORS) LTD,Regeneration And The Economy Capital,33947.68,Operational Services ,2324P12_CR00359,77001148
Sandwell Metropolitan Borough Council,http://www.sandwell.gov.uk/info/200202/performance_and_spending/1079/payments_over_500,21-Mar-2024,Regeneration And The Economy Capital,JOHN A BATES (CONTRACTORS) LTD,Regeneration And The Economy Capital,44936.31,Operational Services ,2324P12_CR00360,77001148
Sandwell Metropolitan Borough Council,http://www.sandwell.gov.uk/info/200202/performance_and_spending/1079/payments_over_500,21-Mar-2024,Regeneration And The Economy Capital,JOHN A BATES (CONTRACTORS) LTD,Regeneration And The Economy Capital,110849.97,Operational Services ,2324P12_CR00361,77001148
Sandwell Metropolitan Borough Council,http://www.sandwell.gov.uk/info/200202/performance_and_spending/1079/payments_over_500,21-Mar-2024,Regeneration And The Economy Capital,JOHN A BATES (CONTRACTORS) LTD,Regeneration And The Economy Capital,2249.88,Operational Services ,2324P12_CR00362,77001148
Sandwell Metropolitan Borough Council,http://www.sandwell.gov.uk/info/200202/performance_and_spending/1079/payments_over_500,22-Mar-2024,Regeneration And The Economy Capital,JOHN A BATES (CONTRACTORS) LTD,Regeneration And The Economy Capital,76765.72,Operational Services ,2324P12_CR00363,77001148
Sandwell Metropolitan Borough Council,http://www.sandwell.gov.uk/info/200202/performance_and_spending/1079/payments_over_500,19-Mar-2024,Regeneration And The Economy Capital,R W SERVICES CONTRACTORS LIMITED,Regeneration And The Economy Capital,50042.58,CIP - Infrastructure,2324P12_CR00364,68320
Sandwell Metropolitan Borough Council,http://www.sandwell.gov.uk/info/200202/performance_and_spending/1079/payments_over_500,20-Mar-2024,Regeneration And The Economy Capital,SOUTH STAFFS SURVEYS LTD T/A STAFSURV,Regeneration And The Economy Capital,795.00,Professional Fees (Asset),2324P12_CR00365,01075121
Sandwell Metropolitan Borough Council,http://www.sandwell.gov.uk/info/200202/performance_and_spending/1079/payments_over_500,19-Mar-2024,Regeneration And The Economy Capital,SWG CONSTRUCTION (BUILD & RENOVATE) LTD,Regeneration And The Economy Capital,166013.12,"CIP - New Construction,Conversion, Enhancement & Reno",2324P12_CR00366,166518
Sandwell Metropolitan Borough Council,http://www.sandwell.gov.uk/info/200202/performance_and_spending/1079/payments_over_500,01-Mar-2024,Regeneration And The Economy Capital,WATERMAN ASPEN LTD,Regeneration And The Economy Capital,950.00,CIP - Infrastructure,2324P12_CR00367,84354
Sandwell Metropolitan Borough Council,http://www.sandwell.gov.uk/info/200202/performance_and_spending/1079/payments_over_500,21-Mar-2024,FINANCE (Inc SIU),BROWNE JACOBSON LLP,FINANCE (Inc SIU),665.20,Externally Purchased Professional Services ,2324P12_CR00368,109574
Sandwell Metropolitan Borough Council,http://www.sandwell.gov.uk/info/200202/performance_and_spending/1079/payments_over_500,14-Mar-2024,FINANCE (Inc SIU),BROWNE JACOBSON LLP,FINANCE (Inc SIU),1029.50,Externally Purchased Professional Services ,2324P12_CR00369,109574
Sandwell Metropolitan Borough Council,http://www.sandwell.gov.uk/info/200202/performance_and_spending/1079/payments_over_500,13-Mar-2024,FINANCE (Inc SIU),BROWNE JACOBSON LLP,FINANCE (Inc SIU),3496.50,Externally Purchased Professional Services ,2324P12_CR00370,109574
Sandwell Metropolitan Borough Council,http://www.sandwell.gov.uk/info/200202/performance_and_spending/1079/payments_over_500,04-Mar-2024,FINANCE (Inc SIU),BROWNE JACOBSON LLP,FINANCE (Inc SIU),819.00,Externally Purchased Professional Services ,2324P12_CR00371,109574
Sandwell Metropolitan Borough Council,http://www.sandwell.gov.uk/info/200202/performance_and_spending/1079/payments_over_500,14-Mar-2024,FINANCE (Inc SIU),CADENT GAS LTD,FINANCE (Inc SIU),1810.63,Insurance,2324P12_CR00372,131864
Sandwell Metropolitan Borough Council,http://www.sandwell.gov.uk/info/200202/performance_and_spending/1079/payments_over_500,11-Mar-2024,FINANCE (Inc SIU),G4S INVESTIGATION SOLUTIONS (UK),FINANCE (Inc SIU),670.80,Insurance,2324P12_CR00373,168041
Sandwell Metropolitan Borough Council,http://www.sandwell.gov.uk/info/200202/performance_and_spending/1079/payments_over_500,06-Mar-2024,FINANCE (Inc SIU),GOWING LAW SOLICITORS,FINANCE (Inc SIU),1010.00,Insurance,2324P12_CR00374,163069
Sandwell Metropolitan Borough Council,http://www.sandwell.gov.uk/info/200202/performance_and_spending/1079/payments_over_500,01-Mar-2024,FINANCE (Inc SIU),KENNEDYS LAW LLP,FINANCE (Inc SIU),1064.77,Externally Purchased Professional Services ,2324P12_CR00375,118426
Sandwell Metropolitan Borough Council,http://www.sandwell.gov.uk/info/200202/performance_and_spending/1079/payments_over_500,06-Mar-2024,FINANCE (Inc SIU),LANGLEY PRIMARY SCHOOL,FINANCE (Inc SIU),1106.25,Insurance,2324P12_CR00376,61011
Sandwell Metropolitan Borough Council,http://www.sandwell.gov.uk/info/200202/performance_and_spending/1079/payments_over_500,27-Mar-2024,FINANCE (Inc SIU),MORRISH SOLICITORS LLP,FINANCE (Inc SIU),5000.00,Insurance,2324P12_CR00377,137763
Sandwell Metropolitan Borough Council,http://www.sandwell.gov.uk/info/200202/performance_and_spending/1079/payments_over_500,20-Mar-2024,FINANCE (Inc SIU),SATCHELL MORAN SOLICITORS,FINANCE (Inc SIU),500.00,Insurance,2324P12_CR00378,154265
Sandwell Metropolitan Borough Council,http://www.sandwell.gov.uk/info/200202/performance_and_spending/1079/payments_over_500,05-Mar-2024,FINANCE (Inc SIU),TIVIDALE COMMUNITY PRIMARY SCHOOL,FINANCE (Inc SIU),9996.27,Insurance,2324P12_CR00379,20555
Sandwell Metropolitan Borough Council,http://www.sandwell.gov.uk/info/200202/performance_and_spending/1079/payments_over_500,21-Mar-2024,FINANCE (Inc SIU),YOUR LAWYERS.,FINANCE (Inc SIU),16715.05,Insurance,2324P12_CR00380,137458
Sandwell Metropolitan Borough Council,http://www.sandwell.gov.uk/info/200202/performance_and_spending/1079/payments_over_500,15-Mar-2024,FINANCE (Inc SIU),BOND TURNER,FINANCE (Inc SIU),1250.00,Insurance,2324P12_CR00381,152400
Sandwell Metropolitan Borough Council,http://www.sandwell.gov.uk/info/200202/performance_and_spending/1079/payments_over_500,07-Mar-2024,FINANCE (Inc SIU),BOND TURNER,FINANCE (Inc SIU),1500.00,Insurance,2324P12_CR00382,152400
Sandwell Metropolitan Borough Council,http://www.sandwell.gov.uk/info/200202/performance_and_spending/1079/payments_over_500,12-Mar-2024,FINANCE (Inc SIU),REDACTED PERSONAL DATA,FINANCE (Inc SIU),10000.00,Insurance,2324P12_CR00383,REDACTED PERSONAL DATA
Sandwell Metropolitan Borough Council,http://www.sandwell.gov.uk/info/200202/performance_and_spending/1079/payments_over_500,01-Mar-2024,FINANCE (Inc SIU),ALPHATEC SOFTWARE LTD,FINANCE (Inc SIU),9025.56,Externally Purchased Professional Services ,2324P12_CR00384,137296
Sandwell Metropolitan Borough Council,http://www.sandwell.gov.uk/info/200202/performance_and_spending/1079/payments_over_500,01-Mar-2024,FINANCE (Inc SIU),AMBIENT PEOPLE LTD,FINANCE (Inc SIU),3450.00,Agency Staff,2324P12_CR00385,165446
Sandwell Metropolitan Borough Council,http://www.sandwell.gov.uk/info/200202/performance_and_spending/1079/payments_over_500,01-Mar-2024,FINANCE (Inc SIU),AMBIENT PEOPLE LTD,FINANCE (Inc SIU),3450.00,Agency Staff,2324P12_CR00386,165446
Sandwell Metropolitan Borough Council,http://www.sandwell.gov.uk/info/200202/performance_and_spending/1079/payments_over_500,13-Mar-2024,FINANCE (Inc SIU),AMBIENT PEOPLE LTD,FINANCE (Inc SIU),3450.00,Agency Staff,2324P12_CR00387,165446
Sandwell Metropolitan Borough Council,http://www.sandwell.gov.uk/info/200202/performance_and_spending/1079/payments_over_500,13-Mar-2024,FINANCE (Inc SIU),AMBIENT PEOPLE LTD,FINANCE (Inc SIU),3450.00,Agency Staff,2324P12_CR00388,165446
Sandwell Metropolitan Borough Council,http://www.sandwell.gov.uk/info/200202/performance_and_spending/1079/payments_over_500,01-Mar-2024,FINANCE (Inc SIU),EKAL SOLUTIONS LIMITED,FINANCE (Inc SIU),2925.00,Agency Staff,2324P12_CR00389,166571
Sandwell Metropolitan Borough Council,http://www.sandwell.gov.uk/info/200202/performance_and_spending/1079/payments_over_500,01-Mar-2024,FINANCE (Inc SIU),G4S CASH SOLUTIONS (UK) LTD,FINANCE (Inc SIU),831.47,Cash Collections,2324P12_CR00390,01606348
Sandwell Metropolitan Borough Council,http://www.sandwell.gov.uk/info/200202/performance_and_spending/1079/payments_over_500,01-Mar-2024,FINANCE (Inc SIU),GATENBYSANDERSON LTD,FINANCE (Inc SIU),19607.50,Agency Staff,2324P12_CR00391,50038
Sandwell Metropolitan Borough Council,http://www.sandwell.gov.uk/info/200202/performance_and_spending/1079/payments_over_500,13-Mar-2024,FINANCE (Inc SIU),GATENBYSANDERSON LTD,FINANCE (Inc SIU),6325.00,Agency Staff,2324P12_CR00392,50038
Sandwell Metropolitan Borough Council,http://www.sandwell.gov.uk/info/200202/performance_and_spending/1079/payments_over_500,13-Mar-2024,FINANCE (Inc SIU),GATENBYSANDERSON LTD,FINANCE (Inc SIU),6325.00,Agency Staff,2324P12_CR00393,50038
Sandwell Metropolitan Borough Council,http://www.sandwell.gov.uk/info/200202/performance_and_spending/1079/payments_over_500,15-Mar-2024,FINANCE (Inc SIU),HAWK INCENTIVES LTD,FINANCE (Inc SIU),4800.00,Catering Provisions,2324P12_CR00394,148982
Sandwell Metropolitan Borough Council,http://www.sandwell.gov.uk/info/200202/performance_and_spending/1079/payments_over_500,26-Mar-2024,FINANCE (Inc SIU),INTEC FOR BUSINESS LTD,FINANCE (Inc SIU),10860.65,Licences,2324P12_CR00395,01635829
Sandwell Metropolitan Borough Council,http://www.sandwell.gov.uk/info/200202/performance_and_spending/1079/payments_over_500,01-Mar-2024,FINANCE (Inc SIU),MACILDOWIE ASSOCIATES LTD,FINANCE (Inc SIU),2948.40,Agency Staff,2324P12_CR00396,164797
Sandwell Metropolitan Borough Council,http://www.sandwell.gov.uk/info/200202/performance_and_spending/1079/payments_over_500,01-Mar-2024,FINANCE (Inc SIU),MACILDOWIE ASSOCIATES LTD,FINANCE (Inc SIU),1404.00,Agency Staff,2324P12_CR00397,164797
Sandwell Metropolitan Borough Council,http://www.sandwell.gov.uk/info/200202/performance_and_spending/1079/payments_over_500,01-Mar-2024,FINANCE (Inc SIU),MACILDOWIE ASSOCIATES LTD,FINANCE (Inc SIU),3660.00,Agency Staff,2324P12_CR00398,164797
Sandwell Metropolitan Borough Council,http://www.sandwell.gov.uk/info/200202/performance_and_spending/1079/payments_over_500,10-Mar-2024,FINANCE (Inc SIU),MACILDOWIE ASSOCIATES LTD,FINANCE (Inc SIU),3074.40,Agency Staff,2324P12_CR00399,164797
Sandwell Metropolitan Borough Council,http://www.sandwell.gov.uk/info/200202/performance_and_spending/1079/payments_over_500,10-Mar-2024,FINANCE (Inc SIU),MACILDOWIE ASSOCIATES LTD,FINANCE (Inc SIU),549.00,Agency Staff,2324P12_CR00400,164797
Sandwell Metropolitan Borough Council,http://www.sandwell.gov.uk/info/200202/performance_and_spending/1079/payments_over_500,10-Mar-2024,FINANCE (Inc SIU),MACILDOWIE ASSOCIATES LTD,FINANCE (Inc SIU),732.00,Agency Staff,2324P12_CR00401,164797
Sandwell Metropolitan Borough Council,http://www.sandwell.gov.uk/info/200202/performance_and_spending/1079/payments_over_500,10-Mar-2024,FINANCE (Inc SIU),MACILDOWIE ASSOCIATES LTD,FINANCE (Inc SIU),1947.00,Agency Staff,2324P12_CR00402,164797
Sandwell Metropolitan Borough Council,http://www.sandwell.gov.uk/info/200202/performance_and_spending/1079/payments_over_500,01-Mar-2024,FINANCE (Inc SIU),MACILDOWIE ASSOCIATES LTD,FINANCE (Inc SIU),3685.50,Agency Staff,2324P12_CR00403,164797
Sandwell Metropolitan Borough Council,http://www.sandwell.gov.uk/info/200202/performance_and_spending/1079/payments_over_500,01-Mar-2024,FINANCE (Inc SIU),MACILDOWIE ASSOCIATES LTD,FINANCE (Inc SIU),3685.50,Agency Staff,2324P12_CR00404,164797
Sandwell Metropolitan Borough Council,http://www.sandwell.gov.uk/info/200202/performance_and_spending/1079/payments_over_500,01-Mar-2024,FINANCE (Inc SIU),MARSH LIMITED,FINANCE (Inc SIU),13049.06,Insurance,2324P12_CR00405,01165486
Sandwell Metropolitan Borough Council,http://www.sandwell.gov.uk/info/200202/performance_and_spending/1079/payments_over_500,01-Mar-2024,FINANCE (Inc SIU),MENZIES DESIGN AND PRINT LTD,FINANCE (Inc SIU),685.00,"Printing, Stationery & General Office Expenses",2324P12_CR00406,113639
Sandwell Metropolitan Borough Council,http://www.sandwell.gov.uk/info/200202/performance_and_spending/1079/payments_over_500,01-Mar-2024,FINANCE (Inc SIU),NEC SOFTWARE SOLUTIONS UK LTD,FINANCE (Inc SIU),8800.00,Private Contractors,2324P12_CR00407,56043
Sandwell Metropolitan Borough Council,http://www.sandwell.gov.uk/info/200202/performance_and_spending/1079/payments_over_500,14-Mar-2024,FINANCE (Inc SIU),NEC SOFTWARE SOLUTIONS UK LTD,FINANCE (Inc SIU),1225.67,Private Contractors,2324P12_CR00408,56043
Sandwell Metropolitan Borough Council,http://www.sandwell.gov.uk/info/200202/performance_and_spending/1079/payments_over_500,14-Mar-2024,FINANCE (Inc SIU),NEC SOFTWARE SOLUTIONS UK LTD,FINANCE (Inc SIU),137197.00,Private Contractors,2324P12_CR00409,56043
Sandwell Metropolitan Borough Council,http://www.sandwell.gov.uk/info/200202/performance_and_spending/1079/payments_over_500,14-Mar-2024,FINANCE (Inc SIU),NEC SOFTWARE SOLUTIONS UK LTD,FINANCE (Inc SIU),9120.00,Private Contractors,2324P12_CR00410,56043
Sandwell Metropolitan Borough Council,http://www.sandwell.gov.uk/info/200202/performance_and_spending/1079/payments_over_500,14-Mar-2024,FINANCE (Inc SIU),NEC SOFTWARE SOLUTIONS UK LTD,FINANCE (Inc SIU),56646.00,Private Contractors,2324P12_CR00411,56043
Sandwell Metropolitan Borough Council,http://www.sandwell.gov.uk/info/200202/performance_and_spending/1079/payments_over_500,14-Mar-2024,FINANCE (Inc SIU),NEC SOFTWARE SOLUTIONS UK LTD,FINANCE (Inc SIU),112611.00,Private Contractors,2324P12_CR00412,56043
Sandwell Metropolitan Borough Council,http://www.sandwell.gov.uk/info/200202/performance_and_spending/1079/payments_over_500,14-Mar-2024,FINANCE (Inc SIU),NEC SOFTWARE SOLUTIONS UK LTD,FINANCE (Inc SIU),51000.00,Private Contractors,2324P12_CR00413,56043
Sandwell Metropolitan Borough Council,http://www.sandwell.gov.uk/info/200202/performance_and_spending/1079/payments_over_500,14-Mar-2024,FINANCE (Inc SIU),NEC SOFTWARE SOLUTIONS UK LTD,FINANCE (Inc SIU),60172.00,Private Contractors,2324P12_CR00414,56043
Sandwell Metropolitan Borough Council,http://www.sandwell.gov.uk/info/200202/performance_and_spending/1079/payments_over_500,14-Mar-2024,FINANCE (Inc SIU),NEC SOFTWARE SOLUTIONS UK LTD,FINANCE (Inc SIU),500.00,Private Contractors,2324P12_CR00415,56043
Sandwell Metropolitan Borough Council,http://www.sandwell.gov.uk/info/200202/performance_and_spending/1079/payments_over_500,01-Mar-2024,FINANCE (Inc SIU),ORACLE CORPORATION UK LTD,FINANCE (Inc SIU),644.11,Externally Purchased Professional Services ,2324P12_CR00416,01539742
Sandwell Metropolitan Borough Council,http://www.sandwell.gov.uk/info/200202/performance_and_spending/1079/payments_over_500,01-Mar-2024,FINANCE (Inc SIU),ORACLE CORPORATION UK LTD,FINANCE (Inc SIU),4456.13,Externally Purchased Professional Services ,2324P12_CR00417,01539742
Sandwell Metropolitan Borough Council,http://www.sandwell.gov.uk/info/200202/performance_and_spending/1079/payments_over_500,01-Mar-2024,FINANCE (Inc SIU),ORACLE CORPORATION UK LTD,FINANCE (Inc SIU),166574.05,Externally Purchased Professional Services ,2324P12_CR00418,01539742
Sandwell Metropolitan Borough Council,http://www.sandwell.gov.uk/info/200202/performance_and_spending/1079/payments_over_500,01-Mar-2024,FINANCE (Inc SIU),ORACLE CORPORATION UK LTD,FINANCE (Inc SIU),42419.74,ICT ,2324P12_CR00419,01539742
Sandwell Metropolitan Borough Council,http://www.sandwell.gov.uk/info/200202/performance_and_spending/1079/payments_over_500,01-Mar-2024,FINANCE (Inc SIU),PAYPOINT PLC,FINANCE (Inc SIU),500.00,Fuel ,2324P12_CR00420,112333
Sandwell Metropolitan Borough Council,http://www.sandwell.gov.uk/info/200202/performance_and_spending/1079/payments_over_500,01-Mar-2024,FINANCE (Inc SIU),PAYPOINT PLC,FINANCE (Inc SIU),1000.00,Fuel ,2324P12_CR00421,112333
Sandwell Metropolitan Borough Council,http://www.sandwell.gov.uk/info/200202/performance_and_spending/1079/payments_over_500,19-Mar-2024,FINANCE (Inc SIU),PAYPOINT PLC,FINANCE (Inc SIU),704.50,Fuel ,2324P12_CR00422,112333
Sandwell Metropolitan Borough Council,http://www.sandwell.gov.uk/info/200202/performance_and_spending/1079/payments_over_500,01-Mar-2024,FINANCE (Inc SIU),PERMANENT FUTURES LTD,FINANCE (Inc SIU),3375.00,Agency Staff,2324P12_CR00423,45209
Sandwell Metropolitan Borough Council,http://www.sandwell.gov.uk/info/200202/performance_and_spending/1079/payments_over_500,01-Mar-2024,FINANCE (Inc SIU),PERMANENT FUTURES LTD,FINANCE (Inc SIU),3375.00,Agency Staff,2324P12_CR00424,45209
Sandwell Metropolitan Borough Council,http://www.sandwell.gov.uk/info/200202/performance_and_spending/1079/payments_over_500,01-Mar-2024,FINANCE (Inc SIU),PHOENIX SOFTWARE LTD,FINANCE (Inc SIU),6117.90,Licences,2324P12_CR00425,01504689
Sandwell Metropolitan Borough Council,http://www.sandwell.gov.uk/info/200202/performance_and_spending/1079/payments_over_500,01-Mar-2024,FINANCE (Inc SIU),PHOENIX SOFTWARE LTD,FINANCE (Inc SIU),1619.18,Licences,2324P12_CR00426,01504689
Sandwell Metropolitan Borough Council,http://www.sandwell.gov.uk/info/200202/performance_and_spending/1079/payments_over_500,01-Mar-2024,FINANCE (Inc SIU),PORTFOLIO PAYROLL LTD,FINANCE (Inc SIU),1140.00,Agency Staff,2324P12_CR00427,167281
Sandwell Metropolitan Borough Council,http://www.sandwell.gov.uk/info/200202/performance_and_spending/1079/payments_over_500,01-Mar-2024,FINANCE (Inc SIU),PORTFOLIO PAYROLL LTD,FINANCE (Inc SIU),1140.00,Agency Staff,2324P12_CR00428,167281
Sandwell Metropolitan Borough Council,http://www.sandwell.gov.uk/info/200202/performance_and_spending/1079/payments_over_500,03-Mar-2024,FINANCE (Inc SIU),PORTFOLIO PAYROLL LTD,FINANCE (Inc SIU),1140.00,Agency Staff,2324P12_CR00429,167281
Sandwell Metropolitan Borough Council,http://www.sandwell.gov.uk/info/200202/performance_and_spending/1079/payments_over_500,13-Mar-2024,FINANCE (Inc SIU),PORTFOLIO PAYROLL LTD,FINANCE (Inc SIU),1140.00,Agency Staff,2324P12_CR00430,167281
Sandwell Metropolitan Borough Council,http://www.sandwell.gov.uk/info/200202/performance_and_spending/1079/payments_over_500,13-Mar-2024,FINANCE (Inc SIU),PORTFOLIO PAYROLL LTD,FINANCE (Inc SIU),1368.00,Agency Staff,2324P12_CR00431,167281
Sandwell Metropolitan Borough Council,http://www.sandwell.gov.uk/info/200202/performance_and_spending/1079/payments_over_500,01-Mar-2024,FINANCE (Inc SIU),RESTORE DIGITAL LIMITED,FINANCE (Inc SIU),859.06,ICT ,2324P12_CR00432,13549
Sandwell Metropolitan Borough Council,http://www.sandwell.gov.uk/info/200202/performance_and_spending/1079/payments_over_500,01-Mar-2024,FINANCE (Inc SIU),RESTORE DIGITAL LIMITED,FINANCE (Inc SIU),2023.57,ICT ,2324P12_CR00433,13549
Sandwell Metropolitan Borough Council,http://www.sandwell.gov.uk/info/200202/performance_and_spending/1079/payments_over_500,01-Mar-2024,FINANCE (Inc SIU),SOCITM ADVISORY LTD,FINANCE (Inc SIU),62581.82,Consultancy,2324P12_CR00434,162370
Sandwell Metropolitan Borough Council,http://www.sandwell.gov.uk/info/200202/performance_and_spending/1079/payments_over_500,01-Mar-2024,FINANCE (Inc SIU),SOCITM ADVISORY LTD,FINANCE (Inc SIU),9833.33,Consultancy,2324P12_CR00435,162370
Sandwell Metropolitan Borough Council,http://www.sandwell.gov.uk/info/200202/performance_and_spending/1079/payments_over_500,01-Mar-2024,FINANCE (Inc SIU),SOCITM ADVISORY LTD,FINANCE (Inc SIU),19796.43,Consultancy,2324P12_CR00436,162370
Sandwell Metropolitan Borough Council,http://www.sandwell.gov.uk/info/200202/performance_and_spending/1079/payments_over_500,01-Mar-2024,FINANCE (Inc SIU),SOCITM ADVISORY LTD,FINANCE (Inc SIU),15300.00,Consultancy,2324P12_CR00437,162370
Sandwell Metropolitan Borough Council,http://www.sandwell.gov.uk/info/200202/performance_and_spending/1079/payments_over_500,01-Mar-2024,FINANCE (Inc SIU),SOCITM ADVISORY LTD,FINANCE (Inc SIU),15367.50,Externally Purchased Professional Services ,2324P12_CR00438,162370
Sandwell Metropolitan Borough Council,http://www.sandwell.gov.uk/info/200202/performance_and_spending/1079/payments_over_500,01-Mar-2024,FINANCE (Inc SIU),SOCITM ADVISORY LTD,FINANCE (Inc SIU),19796.43,Consultancy,2324P12_CR00439,162370
Sandwell Metropolitan Borough Council,http://www.sandwell.gov.uk/info/200202/performance_and_spending/1079/payments_over_500,01-Mar-2024,FINANCE (Inc SIU),THE OYSTER PARTNERSHIP LTD,FINANCE (Inc SIU),2800.00,Agency Staff,2324P12_CR00440,148917
Sandwell Metropolitan Borough Council,http://www.sandwell.gov.uk/info/200202/performance_and_spending/1079/payments_over_500,03-Mar-2024,FINANCE (Inc SIU),THE OYSTER PARTNERSHIP LTD,FINANCE (Inc SIU),3500.00,Agency Staff,2324P12_CR00441,148917
Sandwell Metropolitan Borough Council,http://www.sandwell.gov.uk/info/200202/performance_and_spending/1079/payments_over_500,01-Mar-2024,FINANCE (Inc SIU),WOLVERHAMPTON CITY COUNCIL  ,FINANCE (Inc SIU),153750.00,Pensions,2324P12_CR00442,120965
Sandwell Metropolitan Borough Council,http://www.sandwell.gov.uk/info/200202/performance_and_spending/1079/payments_over_500,01-Mar-2024,FINANCE (Inc SIU),WOLVERHAMPTON CITY COUNCIL  ,FINANCE (Inc SIU),153750.00,Pensions,2324P12_CR00443,120965
Sandwell Metropolitan Borough Council,http://www.sandwell.gov.uk/info/200202/performance_and_spending/1079/payments_over_500,14-Mar-2024,FINANCE (Inc SIU),WONDE LTD,FINANCE (Inc SIU),376785.00,SH Payments,2324P12_CR00444,149233
Sandwell Metropolitan Borough Council,http://www.sandwell.gov.uk/info/200202/performance_and_spending/1079/payments_over_500,06-Mar-2024,FINANCE (Inc SIU),WORTH TECHNICAL ACCOUNTING SOLUTIONS LTD,FINANCE (Inc SIU),2500.00,Externally Purchased Professional Services ,2324P12_CR00445,163103
Sandwell Metropolitan Borough Council,http://www.sandwell.gov.uk/info/200202/performance_and_spending/1079/payments_over_500,01-Mar-2024,FINANCE (Inc SIU),REDACTED PERSONAL DATA,FINANCE (Inc SIU),700.00,Grant Payments,2324P12_CR00446,REDACTED PERSONAL DATA
Sandwell Metropolitan Borough Council,http://www.sandwell.gov.uk/info/200202/performance_and_spending/1079/payments_over_500,01-Mar-2024,FINANCE (Inc SIU),4 COMMUNITY TRUST CIC,FINANCE (Inc SIU),2500.00,Grant Payments,2324P12_CR00447,137880
Sandwell Metropolitan Borough Council,http://www.sandwell.gov.uk/info/200202/performance_and_spending/1079/payments_over_500,01-Mar-2024,FINANCE (Inc SIU),CHRIST CHURCH THE QUINTON PARISH CHURCH COUNCIL,FINANCE (Inc SIU),2000.00,Grant Payments,2324P12_CR00448,68890
Sandwell Metropolitan Borough Council,http://www.sandwell.gov.uk/info/200202/performance_and_spending/1079/payments_over_500,01-Mar-2024,FINANCE (Inc SIU),MANNA HOUSE CIO,FINANCE (Inc SIU),3000.00,Grant Payments,2324P12_CR00449,163299
Sandwell Metropolitan Borough Council,http://www.sandwell.gov.uk/info/200202/performance_and_spending/1079/payments_over_500,01-Mar-2024,FINANCE (Inc SIU),MURRAY HALL COMMUNITY TRUST,FINANCE (Inc SIU),3000.00,Grant Payments,2324P12_CR00450,01627284
Sandwell Metropolitan Borough Council,http://www.sandwell.gov.uk/info/200202/performance_and_spending/1079/payments_over_500,01-Mar-2024,FINANCE (Inc SIU),NORTH SMETHWICK DEVELOPMENT TRUST,FINANCE (Inc SIU),2500.00,Grant Payments,2324P12_CR00451,01346623
Sandwell Metropolitan Borough Council,http://www.sandwell.gov.uk/info/200202/performance_and_spending/1079/payments_over_500,01-Mar-2024,FINANCE (Inc SIU),OPEN HEAVEN CHURCH (WEDNESBURY),FINANCE (Inc SIU),2500.00,Grant Payments,2324P12_CR00452,47147
Sandwell Metropolitan Borough Council,http://www.sandwell.gov.uk/info/200202/performance_and_spending/1079/payments_over_500,01-Mar-2024,FINANCE (Inc SIU),SMETHWICK CHURCH ACTION NETWORK,FINANCE (Inc SIU),2500.00,Grant Payments,2324P12_CR00453,118380
Sandwell Metropolitan Borough Council,http://www.sandwell.gov.uk/info/200202/performance_and_spending/1079/payments_over_500,01-Mar-2024,Housing & Assets Total,BCH PROPERTY LIMITED,Housing & Assets Total,637.00,Rents,2324P12_CR00454,01011861
Sandwell Metropolitan Borough Council,http://www.sandwell.gov.uk/info/200202/performance_and_spending/1079/payments_over_500,01-Mar-2024,Housing & Assets Total,BCH PROPERTY LIMITED,Housing & Assets Total,637.00,Rents,2324P12_CR00455,01011861
Sandwell Metropolitan Borough Council,http://www.sandwell.gov.uk/info/200202/performance_and_spending/1079/payments_over_500,01-Mar-2024,Housing & Assets Total,BIRMINGHAM CITY UNIVERSITY,Housing & Assets Total,4626.00,Externally Purchased Professional Services ,2324P12_CR00456,01564602
Sandwell Metropolitan Borough Council,http://www.sandwell.gov.uk/info/200202/performance_and_spending/1079/payments_over_500,01-Mar-2024,Housing & Assets Total,BRUSHSTROKES,Housing & Assets Total,35500.00,Grant Payments,2324P12_CR00457,21029374
Sandwell Metropolitan Borough Council,http://www.sandwell.gov.uk/info/200202/performance_and_spending/1079/payments_over_500,01-Mar-2024,Housing & Assets Total,CERTAS ENERGY LIMITED,Housing & Assets Total,2081.48,Oil,2324P12_CR00458,80421
Sandwell Metropolitan Borough Council,http://www.sandwell.gov.uk/info/200202/performance_and_spending/1079/payments_over_500,01-Mar-2024,Housing & Assets Total,CIVICA UK LTD,Housing & Assets Total,17158.80,ICT ,2324P12_CR00459,26200
Sandwell Metropolitan Borough Council,http://www.sandwell.gov.uk/info/200202/performance_and_spending/1079/payments_over_500,01-Mar-2024,Housing & Assets Total,CKP LTD T/A HAGLEY HOTEL,Housing & Assets Total,2800.00,Rents,2324P12_CR00460,143677
Sandwell Metropolitan Borough Council,http://www.sandwell.gov.uk/info/200202/performance_and_spending/1079/payments_over_500,01-Mar-2024,Housing & Assets Total,COMMUNITY FIRST PARTNERSHIP LIMITED,Housing & Assets Total,5000.00,Externally Purchased Professional Services ,2324P12_CR00461,34777
Sandwell Metropolitan Borough Council,http://www.sandwell.gov.uk/info/200202/performance_and_spending/1079/payments_over_500,14-Mar-2024,Housing & Assets Total,CONTRACT LETTINGS LTD,Housing & Assets Total,541.80,Rents,2324P12_CR00462,76625
Sandwell Metropolitan Borough Council,http://www.sandwell.gov.uk/info/200202/performance_and_spending/1079/payments_over_500,14-Mar-2024,Housing & Assets Total,CONTRACT LETTINGS LTD,Housing & Assets Total,541.80,Rents,2324P12_CR00463,76625
Sandwell Metropolitan Borough Council,http://www.sandwell.gov.uk/info/200202/performance_and_spending/1079/payments_over_500,14-Mar-2024,Housing & Assets Total,CONTRACT LETTINGS LTD,Housing & Assets Total,738.60,Rents,2324P12_CR00464,76625
Sandwell Metropolitan Borough Council,http://www.sandwell.gov.uk/info/200202/performance_and_spending/1079/payments_over_500,14-Mar-2024,Housing & Assets Total,CONTRACT LETTINGS LTD,Housing & Assets Total,678.60,Rents,2324P12_CR00465,76625
Sandwell Metropolitan Borough Council,http://www.sandwell.gov.uk/info/200202/performance_and_spending/1079/payments_over_500,14-Mar-2024,Housing & Assets Total,CONTRACT LETTINGS LTD,Housing & Assets Total,678.60,Rents,2324P12_CR00466,76625
Sandwell Metropolitan Borough Council,http://www.sandwell.gov.uk/info/200202/performance_and_spending/1079/payments_over_500,14-Mar-2024,Housing & Assets Total,CONTRACT LETTINGS LTD,Housing & Assets Total,738.60,Rents,2324P12_CR00467,76625
Sandwell Metropolitan Borough Council,http://www.sandwell.gov.uk/info/200202/performance_and_spending/1079/payments_over_500,14-Mar-2024,Housing & Assets Total,CONTRACT LETTINGS LTD,Housing & Assets Total,763.22,Rents,2324P12_CR00468,76625
Sandwell Metropolitan Borough Council,http://www.sandwell.gov.uk/info/200202/performance_and_spending/1079/payments_over_500,14-Mar-2024,Housing & Assets Total,CONTRACT LETTINGS LTD,Housing & Assets Total,701.22,Rents,2324P12_CR00469,76625
Sandwell Metropolitan Borough Council,http://www.sandwell.gov.uk/info/200202/performance_and_spending/1079/payments_over_500,14-Mar-2024,Housing & Assets Total,CONTRACT LETTINGS LTD,Housing & Assets Total,701.22,Rents,2324P12_CR00470,76625
Sandwell Metropolitan Borough Council,http://www.sandwell.gov.uk/info/200202/performance_and_spending/1079/payments_over_500,14-Mar-2024,Housing & Assets Total,CONTRACT LETTINGS LTD,Housing & Assets Total,763.22,Rents,2324P12_CR00471,76625
Sandwell Metropolitan Borough Council,http://www.sandwell.gov.uk/info/200202/performance_and_spending/1079/payments_over_500,14-Mar-2024,Housing & Assets Total,CONTRACT LETTINGS LTD,Housing & Assets Total,559.86,Rents,2324P12_CR00472,76625
Sandwell Metropolitan Borough Council,http://www.sandwell.gov.uk/info/200202/performance_and_spending/1079/payments_over_500,14-Mar-2024,Housing & Assets Total,CONTRACT LETTINGS LTD,Housing & Assets Total,559.86,Rents,2324P12_CR00473,76625
Sandwell Metropolitan Borough Council,http://www.sandwell.gov.uk/info/200202/performance_and_spending/1079/payments_over_500,14-Mar-2024,Housing & Assets Total,CONTRACT LETTINGS LTD,Housing & Assets Total,763.22,Rents,2324P12_CR00474,76625
Sandwell Metropolitan Borough Council,http://www.sandwell.gov.uk/info/200202/performance_and_spending/1079/payments_over_500,14-Mar-2024,Housing & Assets Total,CONTRACT LETTINGS LTD,Housing & Assets Total,701.22,Rents,2324P12_CR00475,76625
Sandwell Metropolitan Borough Council,http://www.sandwell.gov.uk/info/200202/performance_and_spending/1079/payments_over_500,14-Mar-2024,Housing & Assets Total,CONTRACT LETTINGS LTD,Housing & Assets Total,701.22,Rents,2324P12_CR00476,76625
Sandwell Metropolitan Borough Council,http://www.sandwell.gov.uk/info/200202/performance_and_spending/1079/payments_over_500,14-Mar-2024,Housing & Assets Total,CONTRACT LETTINGS LTD,Housing & Assets Total,763.22,Rents,2324P12_CR00477,76625
Sandwell Metropolitan Borough Council,http://www.sandwell.gov.uk/info/200202/performance_and_spending/1079/payments_over_500,14-Mar-2024,Housing & Assets Total,CONTRACT LETTINGS LTD,Housing & Assets Total,559.86,Rents,2324P12_CR00478,76625
Sandwell Metropolitan Borough Council,http://www.sandwell.gov.uk/info/200202/performance_and_spending/1079/payments_over_500,14-Mar-2024,Housing & Assets Total,CONTRACT LETTINGS LTD,Housing & Assets Total,559.86,Rents,2324P12_CR00479,76625
Sandwell Metropolitan Borough Council,http://www.sandwell.gov.uk/info/200202/performance_and_spending/1079/payments_over_500,14-Mar-2024,Housing & Assets Total,CONTRACT LETTINGS LTD,Housing & Assets Total,1230.00,Rents,2324P12_CR00480,76625
Sandwell Metropolitan Borough Council,http://www.sandwell.gov.uk/info/200202/performance_and_spending/1079/payments_over_500,14-Mar-2024,Housing & Assets Total,CONTRACT LETTINGS LTD,Housing & Assets Total,713.98,Rents,2324P12_CR00481,76625
Sandwell Metropolitan Borough Council,http://www.sandwell.gov.uk/info/200202/performance_and_spending/1079/payments_over_500,14-Mar-2024,Housing & Assets Total,CONTRACT LETTINGS LTD,Housing & Assets Total,655.98,Rents,2324P12_CR00482,76625
Sandwell Metropolitan Borough Council,http://www.sandwell.gov.uk/info/200202/performance_and_spending/1079/payments_over_500,14-Mar-2024,Housing & Assets Total,CONTRACT LETTINGS LTD,Housing & Assets Total,655.98,Rents,2324P12_CR00483,76625
Sandwell Metropolitan Borough Council,http://www.sandwell.gov.uk/info/200202/performance_and_spending/1079/payments_over_500,14-Mar-2024,Housing & Assets Total,CONTRACT LETTINGS LTD,Housing & Assets Total,713.98,Rents,2324P12_CR00484,76625
Sandwell Metropolitan Borough Council,http://www.sandwell.gov.uk/info/200202/performance_and_spending/1079/payments_over_500,14-Mar-2024,Housing & Assets Total,CONTRACT LETTINGS LTD,Housing & Assets Total,523.74,Rents,2324P12_CR00485,76625
Sandwell Metropolitan Borough Council,http://www.sandwell.gov.uk/info/200202/performance_and_spending/1079/payments_over_500,14-Mar-2024,Housing & Assets Total,CONTRACT LETTINGS LTD,Housing & Assets Total,523.74,Rents,2324P12_CR00486,76625
Sandwell Metropolitan Borough Council,http://www.sandwell.gov.uk/info/200202/performance_and_spending/1079/payments_over_500,01-Mar-2024,Housing & Assets Total,COOKE RUDLING LIMITED,Housing & Assets Total,1162.50,Externally Purchased Professional Services ,2324P12_CR00487,01577073
Sandwell Metropolitan Borough Council,http://www.sandwell.gov.uk/info/200202/performance_and_spending/1079/payments_over_500,01-Mar-2024,Housing & Assets Total,COOKE RUDLING LIMITED,Housing & Assets Total,1575.00,Externally Purchased Professional Services ,2324P12_CR00488,01577073
Sandwell Metropolitan Borough Council,http://www.sandwell.gov.uk/info/200202/performance_and_spending/1079/payments_over_500,01-Mar-2024,Housing & Assets Total,GILANI ENTERPRISES LIMITED,Housing & Assets Total,2800.00,Rents,2324P12_CR00489,2696
Sandwell Metropolitan Borough Council,http://www.sandwell.gov.uk/info/200202/performance_and_spending/1079/payments_over_500,01-Mar-2024,Housing & Assets Total,GILANI ENTERPRISES LIMITED,Housing & Assets Total,2800.00,Rents,2324P12_CR00490,2696
Sandwell Metropolitan Borough Council,http://www.sandwell.gov.uk/info/200202/performance_and_spending/1079/payments_over_500,01-Mar-2024,Housing & Assets Total,GILANI ENTERPRISES LIMITED,Housing & Assets Total,2800.00,Rents,2324P12_CR00491,2696
Sandwell Metropolitan Borough Council,http://www.sandwell.gov.uk/info/200202/performance_and_spending/1079/payments_over_500,01-Mar-2024,Housing & Assets Total,GILANI ENTERPRISES LIMITED,Housing & Assets Total,1200.00,Rents,2324P12_CR00492,2696
Sandwell Metropolitan Borough Council,http://www.sandwell.gov.uk/info/200202/performance_and_spending/1079/payments_over_500,01-Mar-2024,Housing & Assets Total,GILANI ENTERPRISES LIMITED,Housing & Assets Total,2800.00,Rents,2324P12_CR00493,2696
Sandwell Metropolitan Borough Council,http://www.sandwell.gov.uk/info/200202/performance_and_spending/1079/payments_over_500,01-Mar-2024,Housing & Assets Total,GILANI ENTERPRISES LIMITED,Housing & Assets Total,2800.00,Rents,2324P12_CR00494,2696
Sandwell Metropolitan Borough Council,http://www.sandwell.gov.uk/info/200202/performance_and_spending/1079/payments_over_500,01-Mar-2024,Housing & Assets Total,HOME FARM NURSERIES (PINVIN) LIMITED,Housing & Assets Total,2712.00,CIP - Infrastructure,2324P12_CR00495,77003445
Sandwell Metropolitan Borough Council,http://www.sandwell.gov.uk/info/200202/performance_and_spending/1079/payments_over_500,01-Mar-2024,Housing & Assets Total,LIVING HAVEN LTD,Housing & Assets Total,139395.00,Rents,2324P12_CR00496,165315
Sandwell Metropolitan Borough Council,http://www.sandwell.gov.uk/info/200202/performance_and_spending/1079/payments_over_500,01-Mar-2024,Housing & Assets Total,MIDLAND FORESTRY LIMITED,Housing & Assets Total,829.44,Externally Purchased Professional Services ,2324P12_CR00497,45812
Sandwell Metropolitan Borough Council,http://www.sandwell.gov.uk/info/200202/performance_and_spending/1079/payments_over_500,01-Mar-2024,Housing & Assets Total,MIDLAND FORESTRY LIMITED,Housing & Assets Total,671.89,Externally Purchased Professional Services ,2324P12_CR00498,45812
Sandwell Metropolitan Borough Council,http://www.sandwell.gov.uk/info/200202/performance_and_spending/1079/payments_over_500,01-Mar-2024,Housing & Assets Total,MIDLAND FORESTRY LIMITED,Housing & Assets Total,688.11,Externally Purchased Professional Services ,2324P12_CR00499,45812
Sandwell Metropolitan Borough Council,http://www.sandwell.gov.uk/info/200202/performance_and_spending/1079/payments_over_500,01-Mar-2024,Housing & Assets Total,MIDLAND FORESTRY LIMITED,Housing & Assets Total,739.08,Externally Purchased Professional Services ,2324P12_CR00500,45812
Sandwell Metropolitan Borough Council,http://www.sandwell.gov.uk/info/200202/performance_and_spending/1079/payments_over_500,01-Mar-2024,Housing & Assets Total,MIDLAND FORESTRY LIMITED,Housing & Assets Total,1244.16,Externally Purchased Professional Services ,2324P12_CR00501,45812
Sandwell Metropolitan Borough Council,http://www.sandwell.gov.uk/info/200202/performance_and_spending/1079/payments_over_500,01-Mar-2024,Housing & Assets Total,MIDLAND FORESTRY LIMITED,Housing & Assets Total,616.28,Externally Purchased Professional Services ,2324P12_CR00502,45812
Sandwell Metropolitan Borough Council,http://www.sandwell.gov.uk/info/200202/performance_and_spending/1079/payments_over_500,01-Mar-2024,Housing & Assets Total,MIDLAND FORESTRY LIMITED,Housing & Assets Total,1010.16,Externally Purchased Professional Services ,2324P12_CR00503,45812
Sandwell Metropolitan Borough Council,http://www.sandwell.gov.uk/info/200202/performance_and_spending/1079/payments_over_500,01-Mar-2024,Housing & Assets Total,MIDLAND FORESTRY LIMITED,Housing & Assets Total,1399.32,Externally Purchased Professional Services ,2324P12_CR00504,45812
Sandwell Metropolitan Borough Council,http://www.sandwell.gov.uk/info/200202/performance_and_spending/1079/payments_over_500,01-Mar-2024,Housing & Assets Total,MIDLAND FORESTRY LIMITED,Housing & Assets Total,1417.92,Externally Purchased Professional Services ,2324P12_CR00505,45812
Sandwell Metropolitan Borough Council,http://www.sandwell.gov.uk/info/200202/performance_and_spending/1079/payments_over_500,01-Mar-2024,Housing & Assets Total,MIDLAND FORESTRY LIMITED,Housing & Assets Total,2537.06,Externally Purchased Professional Services ,2324P12_CR00506,45812
Sandwell Metropolitan Borough Council,http://www.sandwell.gov.uk/info/200202/performance_and_spending/1079/payments_over_500,01-Mar-2024,Housing & Assets Total,MIDLAND FORESTRY LIMITED,Housing & Assets Total,762.24,Externally Purchased Professional Services ,2324P12_CR00507,45812
Sandwell Metropolitan Borough Council,http://www.sandwell.gov.uk/info/200202/performance_and_spending/1079/payments_over_500,01-Mar-2024,Housing & Assets Total,MIDLAND FORESTRY LIMITED,Housing & Assets Total,961.52,Externally Purchased Professional Services ,2324P12_CR00508,45812
Sandwell Metropolitan Borough Council,http://www.sandwell.gov.uk/info/200202/performance_and_spending/1079/payments_over_500,01-Mar-2024,Housing & Assets Total,MIDLAND FORESTRY LIMITED,Housing & Assets Total,1865.10,Externally Purchased Professional Services ,2324P12_CR00509,45812
Sandwell Metropolitan Borough Council,http://www.sandwell.gov.uk/info/200202/performance_and_spending/1079/payments_over_500,01-Mar-2024,Housing & Assets Total,MIDLAND FORESTRY LIMITED,Housing & Assets Total,3774.18,Externally Purchased Professional Services ,2324P12_CR00510,45812
Sandwell Metropolitan Borough Council,http://www.sandwell.gov.uk/info/200202/performance_and_spending/1079/payments_over_500,01-Mar-2024,Housing & Assets Total,MIDLAND FORESTRY LIMITED,Housing & Assets Total,611.64,Externally Purchased Professional Services ,2324P12_CR00511,45812
Sandwell Metropolitan Borough Council,http://www.sandwell.gov.uk/info/200202/performance_and_spending/1079/payments_over_500,01-Mar-2024,Housing & Assets Total,MIDLAND FORESTRY LIMITED,Housing & Assets Total,688.11,Externally Purchased Professional Services ,2324P12_CR00512,45812
Sandwell Metropolitan Borough Council,http://www.sandwell.gov.uk/info/200202/performance_and_spending/1079/payments_over_500,01-Mar-2024,Housing & Assets Total,MIDLAND FORESTRY LIMITED,Housing & Assets Total,8827.36,Externally Purchased Professional Services ,2324P12_CR00513,45812
Sandwell Metropolitan Borough Council,http://www.sandwell.gov.uk/info/200202/performance_and_spending/1079/payments_over_500,22-Mar-2024,Housing & Assets Total,MIDLAND FORESTRY LIMITED,Housing & Assets Total,8300.00,Externally Purchased Professional Services ,2324P12_CR00514,45812
Sandwell Metropolitan Borough Council,http://www.sandwell.gov.uk/info/200202/performance_and_spending/1079/payments_over_500,01-Mar-2024,Housing & Assets Total,PROFILE SECURITY SERVICES LTD,Housing & Assets Total,8703.64,Security,2324P12_CR00515,131253
Sandwell Metropolitan Borough Council,http://www.sandwell.gov.uk/info/200202/performance_and_spending/1079/payments_over_500,01-Mar-2024,Housing & Assets Total,PROFILE SECURITY SERVICES LTD,Housing & Assets Total,8703.64,Security,2324P12_CR00516,131253
Sandwell Metropolitan Borough Council,http://www.sandwell.gov.uk/info/200202/performance_and_spending/1079/payments_over_500,01-Mar-2024,Housing & Assets Total,SHARP,Housing & Assets Total,2142.05,Externally Purchased Professional Services ,2324P12_CR00517,08280972
Sandwell Metropolitan Borough Council,http://www.sandwell.gov.uk/info/200202/performance_and_spending/1079/payments_over_500,01-Mar-2024,Housing & Assets Total,TRH WALSALL LTD,Housing & Assets Total,670.95,Rents,2324P12_CR00518,85648
Sandwell Metropolitan Borough Council,http://www.sandwell.gov.uk/info/200202/performance_and_spending/1079/payments_over_500,01-Mar-2024,Housing & Assets Total,TRH WALSALL LTD,Housing & Assets Total,670.95,Rents,2324P12_CR00519,85648
Sandwell Metropolitan Borough Council,http://www.sandwell.gov.uk/info/200202/performance_and_spending/1079/payments_over_500,01-Mar-2024,Housing & Assets Total,TRH WALSALL LTD,Housing & Assets Total,670.95,Rents,2324P12_CR00520,85648
Sandwell Metropolitan Borough Council,http://www.sandwell.gov.uk/info/200202/performance_and_spending/1079/payments_over_500,01-Mar-2024,Housing & Assets Total,TRH WALSALL LTD,Housing & Assets Total,670.95,Rents,2324P12_CR00521,85648
Sandwell Metropolitan Borough Council,http://www.sandwell.gov.uk/info/200202/performance_and_spending/1079/payments_over_500,01-Mar-2024,Housing & Assets Total,TRH WALSALL LTD,Housing & Assets Total,670.95,Rents,2324P12_CR00522,85648
Sandwell Metropolitan Borough Council,http://www.sandwell.gov.uk/info/200202/performance_and_spending/1079/payments_over_500,01-Mar-2024,Housing & Assets Total,TRH WALSALL LTD,Housing & Assets Total,670.95,Rents,2324P12_CR00523,85648
Sandwell Metropolitan Borough Council,http://www.sandwell.gov.uk/info/200202/performance_and_spending/1079/payments_over_500,01-Mar-2024,Housing & Assets Total,TRIDENT REACH THE PEOPLE CHARITY,Housing & Assets Total,19215.00,Externally Purchased Professional Services ,2324P12_CR00524,90422
Sandwell Metropolitan Borough Council,http://www.sandwell.gov.uk/info/200202/performance_and_spending/1079/payments_over_500,01-Mar-2024,Housing & Assets Total,TRIDENT REACH THE PEOPLE CHARITY,Housing & Assets Total,19215.00,Externally Purchased Professional Services ,2324P12_CR00525,90422
Sandwell Metropolitan Borough Council,http://www.sandwell.gov.uk/info/200202/performance_and_spending/1079/payments_over_500,01-Mar-2024,Housing & Assets Total,TRIDENT REACH THE PEOPLE CHARITY,Housing & Assets Total,19215.00,Externally Purchased Professional Services ,2324P12_CR00526,90422
Sandwell Metropolitan Borough Council,http://www.sandwell.gov.uk/info/200202/performance_and_spending/1079/payments_over_500,01-Mar-2024,Housing & Assets Total,TRIDENT REACH THE PEOPLE CHARITY,Housing & Assets Total,19215.00,Externally Purchased Professional Services ,2324P12_CR00527,90422
Sandwell Metropolitan Borough Council,http://www.sandwell.gov.uk/info/200202/performance_and_spending/1079/payments_over_500,01-Mar-2024,Housing & Assets Total,TRIDENT REACH THE PEOPLE CHARITY,Housing & Assets Total,19215.00,Externally Purchased Professional Services ,2324P12_CR00528,90422
Sandwell Metropolitan Borough Council,http://www.sandwell.gov.uk/info/200202/performance_and_spending/1079/payments_over_500,01-Mar-2024,Housing & Assets Total,TRIDENT REACH THE PEOPLE CHARITY,Housing & Assets Total,19215.00,Externally Purchased Professional Services ,2324P12_CR00529,90422
Sandwell Metropolitan Borough Council,http://www.sandwell.gov.uk/info/200202/performance_and_spending/1079/payments_over_500,01-Mar-2024,Housing & Assets Total,TRIDENT REACH THE PEOPLE CHARITY,Housing & Assets Total,19215.00,Externally Purchased Professional Services ,2324P12_CR00530,90422
Sandwell Metropolitan Borough Council,http://www.sandwell.gov.uk/info/200202/performance_and_spending/1079/payments_over_500,01-Mar-2024,Housing & Assets Total,TRIDENT REACH THE PEOPLE CHARITY,Housing & Assets Total,19215.00,Externally Purchased Professional Services ,2324P12_CR00531,90422
Sandwell Metropolitan Borough Council,http://www.sandwell.gov.uk/info/200202/performance_and_spending/1079/payments_over_500,01-Mar-2024,Housing & Assets Total,VICARAGE LODGE BIRMINGHAM,Housing & Assets Total,1120.00,Rents,2324P12_CR00532,111819
Sandwell Metropolitan Borough Council,http://www.sandwell.gov.uk/info/200202/performance_and_spending/1079/payments_over_500,01-Mar-2024,Housing & Assets Total,VICARAGE LODGE BIRMINGHAM,Housing & Assets Total,1120.00,Rents,2324P12_CR00533,111819
Sandwell Metropolitan Borough Council,http://www.sandwell.gov.uk/info/200202/performance_and_spending/1079/payments_over_500,01-Mar-2024,Housing & Assets Total,VICARAGE LODGE BIRMINGHAM,Housing & Assets Total,1120.00,Rents,2324P12_CR00534,111819
Sandwell Metropolitan Borough Council,http://www.sandwell.gov.uk/info/200202/performance_and_spending/1079/payments_over_500,01-Mar-2024,Housing & Assets Total,VICARAGE LODGE BIRMINGHAM,Housing & Assets Total,1120.00,Rents,2324P12_CR00535,111819
Sandwell Metropolitan Borough Council,http://www.sandwell.gov.uk/info/200202/performance_and_spending/1079/payments_over_500,01-Mar-2024,Housing & Assets Total,VICARAGE LODGE BIRMINGHAM,Housing & Assets Total,1120.00,Rents,2324P12_CR00536,111819
Sandwell Metropolitan Borough Council,http://www.sandwell.gov.uk/info/200202/performance_and_spending/1079/payments_over_500,01-Mar-2024,Housing & Assets Total,VICARAGE LODGE BIRMINGHAM,Housing & Assets Total,1120.00,Rents,2324P12_CR00537,111819
Sandwell Metropolitan Borough Council,http://www.sandwell.gov.uk/info/200202/performance_and_spending/1079/payments_over_500,01-Mar-2024,Housing & Assets Total,VICARAGE LODGE BIRMINGHAM,Housing & Assets Total,1120.00,Rents,2324P12_CR00538,111819
Sandwell Metropolitan Borough Council,http://www.sandwell.gov.uk/info/200202/performance_and_spending/1079/payments_over_500,01-Mar-2024,Housing & Assets Total,VICARAGE LODGE BIRMINGHAM,Housing & Assets Total,700.00,Rents,2324P12_CR00539,111819
Sandwell Metropolitan Borough Council,http://www.sandwell.gov.uk/info/200202/performance_and_spending/1079/payments_over_500,01-Mar-2024,Housing & Assets Total,VICARAGE LODGE BIRMINGHAM,Housing & Assets Total,700.00,Rents,2324P12_CR00540,111819
Sandwell Metropolitan Borough Council,http://www.sandwell.gov.uk/info/200202/performance_and_spending/1079/payments_over_500,01-Mar-2024,Housing & Assets Total,VICARAGE LODGE BIRMINGHAM,Housing & Assets Total,700.00,Rents,2324P12_CR00541,111819
Sandwell Metropolitan Borough Council,http://www.sandwell.gov.uk/info/200202/performance_and_spending/1079/payments_over_500,01-Mar-2024,Housing & Assets Total,VICARAGE LODGE BIRMINGHAM,Housing & Assets Total,700.00,Rents,2324P12_CR00542,111819
Sandwell Metropolitan Borough Council,http://www.sandwell.gov.uk/info/200202/performance_and_spending/1079/payments_over_500,01-Mar-2024,Housing & Assets Total,VICARAGE LODGE BIRMINGHAM,Housing & Assets Total,1120.00,Rents,2324P12_CR00543,111819
Sandwell Metropolitan Borough Council,http://www.sandwell.gov.uk/info/200202/performance_and_spending/1079/payments_over_500,01-Mar-2024,Housing & Assets Total,VICARAGE LODGE BIRMINGHAM,Housing & Assets Total,1120.00,Rents,2324P12_CR00544,111819
Sandwell Metropolitan Borough Council,http://www.sandwell.gov.uk/info/200202/performance_and_spending/1079/payments_over_500,01-Mar-2024,Housing & Assets Total,VICARAGE LODGE BIRMINGHAM,Housing & Assets Total,1120.00,Rents,2324P12_CR00545,111819
Sandwell Metropolitan Borough Council,http://www.sandwell.gov.uk/info/200202/performance_and_spending/1079/payments_over_500,01-Mar-2024,Housing & Assets Total,VICARAGE LODGE BIRMINGHAM,Housing & Assets Total,1120.00,Rents,2324P12_CR00546,111819
Sandwell Metropolitan Borough Council,http://www.sandwell.gov.uk/info/200202/performance_and_spending/1079/payments_over_500,01-Mar-2024,Housing & Assets Total,WORD360 LTD,Housing & Assets Total,1130.70,Externally Purchased Professional Services ,2324P12_CR00547,01679409
Sandwell Metropolitan Borough Council,http://www.sandwell.gov.uk/info/200202/performance_and_spending/1079/payments_over_500,01-Mar-2024,Housing & Assets Total,WORD360 LTD,Housing & Assets Total,1846.31,Externally Purchased Professional Services ,2324P12_CR00548,01679409
Sandwell Metropolitan Borough Council,http://www.sandwell.gov.uk/info/200202/performance_and_spending/1079/payments_over_500,01-Mar-2024,Housing & Assets Total,WORD360 LTD,Housing & Assets Total,2016.58,Externally Purchased Professional Services ,2324P12_CR00549,01679409
Sandwell Metropolitan Borough Council,http://www.sandwell.gov.uk/info/200202/performance_and_spending/1079/payments_over_500,07-Mar-2024,Housing & Assets Total,REDACTED PERSONAL DATA,Housing & Assets Total,500.00,Rents,2324P12_CR00550,REDACTED PERSONAL DATA
Sandwell Metropolitan Borough Council,http://www.sandwell.gov.uk/info/200202/performance_and_spending/1079/payments_over_500,11-Mar-2024,Housing & Assets Total,REDACTED PERSONAL DATA,Housing & Assets Total,3006.00,Rents,2324P12_CR00551,REDACTED PERSONAL DATA
Sandwell Metropolitan Borough Council,http://www.sandwell.gov.uk/info/200202/performance_and_spending/1079/payments_over_500,01-Mar-2024,Housing & Assets Total,REDACTED PERSONAL DATA,Housing & Assets Total,500.00,Rents,2324P12_CR00552,REDACTED PERSONAL DATA
Sandwell Metropolitan Borough Council,http://www.sandwell.gov.uk/info/200202/performance_and_spending/1079/payments_over_500,01-Mar-2024,Housing & Assets Total,REDACTED PERSONAL DATA,Housing & Assets Total,500.00,Rents,2324P12_CR00553,REDACTED PERSONAL DATA
Sandwell Metropolitan Borough Council,http://www.sandwell.gov.uk/info/200202/performance_and_spending/1079/payments_over_500,01-Mar-2024,Housing & Assets Total,REDACTED PERSONAL DATA,Housing & Assets Total,500.00,Rents,2324P12_CR00554,REDACTED PERSONAL DATA
Sandwell Metropolitan Borough Council,http://www.sandwell.gov.uk/info/200202/performance_and_spending/1079/payments_over_500,01-Mar-2024,Housing & Assets Total,REDACTED PERSONAL DATA,Housing & Assets Total,500.00,Rents,2324P12_CR00555,REDACTED PERSONAL DATA
Sandwell Metropolitan Borough Council,http://www.sandwell.gov.uk/info/200202/performance_and_spending/1079/payments_over_500,01-Mar-2024,Housing & Assets Total,REDACTED PERSONAL DATA,Housing & Assets Total,500.00,Rents,2324P12_CR00556,REDACTED PERSONAL DATA
Sandwell Metropolitan Borough Council,http://www.sandwell.gov.uk/info/200202/performance_and_spending/1079/payments_over_500,01-Mar-2024,Housing & Assets Total,REDACTED PERSONAL DATA,Housing & Assets Total,500.00,Rents,2324P12_CR00557,REDACTED PERSONAL DATA
Sandwell Metropolitan Borough Council,http://www.sandwell.gov.uk/info/200202/performance_and_spending/1079/payments_over_500,01-Mar-2024,Housing & Assets Total,REDACED PERSONAL DATA,Housing & Assets Total,500.00,Rents,2324P12_CR00558,REDACTED PERSONAL DATA
Sandwell Metropolitan Borough Council,http://www.sandwell.gov.uk/info/200202/performance_and_spending/1079/payments_over_500,01-Mar-2024,Housing & Assets Total,REDACTED PERSONAL DATA,Housing & Assets Total,500.00,Rents,2324P12_CR00559,REDACTED PERSONAL DATA
Sandwell Metropolitan Borough Council,http://www.sandwell.gov.uk/info/200202/performance_and_spending/1079/payments_over_500,01-Mar-2024,Housing & Assets Total,REDACTED PERSONAL DATA,Housing & Assets Total,500.00,Rents,2324P12_CR00560,REDACTED PERSONAL DATA
Sandwell Metropolitan Borough Council,http://www.sandwell.gov.uk/info/200202/performance_and_spending/1079/payments_over_500,01-Mar-2024,Housing & Assets Total,REDACTED PERSONAL DATA,Housing & Assets Total,500.00,Rents,2324P12_CR00561,REDACTED PERSONAL DATA
Sandwell Metropolitan Borough Council,http://www.sandwell.gov.uk/info/200202/performance_and_spending/1079/payments_over_500,01-Mar-2024,Housing & Assets Total,REDACTED PERSONAL DATA,Housing & Assets Total,500.00,Rents,2324P12_CR00562,REDACTED PERSONAL DATA
Sandwell Metropolitan Borough Council,http://www.sandwell.gov.uk/info/200202/performance_and_spending/1079/payments_over_500,01-Mar-2024,Housing & Assets Total,REDACTED PERSONAL DATA,Housing & Assets Total,500.00,Rents,2324P12_CR00563,REDACTED PERSONAL DATA
Sandwell Metropolitan Borough Council,http://www.sandwell.gov.uk/info/200202/performance_and_spending/1079/payments_over_500,01-Mar-2024,Housing & Assets Total,REDACTED PERSONAL DATA,Housing & Assets Total,500.00,Rents,2324P12_CR00564,REDACTED PERSONAL DATA
Sandwell Metropolitan Borough Council,http://www.sandwell.gov.uk/info/200202/performance_and_spending/1079/payments_over_500,01-Mar-2024,Housing & Assets Total,REDACTED PERSONAL DATA,Housing & Assets Total,500.00,Rents,2324P12_CR00565,REDACTED PERSONAL DATA
Sandwell Metropolitan Borough Council,http://www.sandwell.gov.uk/info/200202/performance_and_spending/1079/payments_over_500,01-Mar-2024,Housing & Assets Total,REDACTED PERSONAL DATA,Housing & Assets Total,603.15,Rents,2324P12_CR00566,REDACTED PERSONAL DATA
Sandwell Metropolitan Borough Council,http://www.sandwell.gov.uk/info/200202/performance_and_spending/1079/payments_over_500,04-Mar-2024,Housing & Assets Total,REDACTED PERSONAL DATA,Housing & Assets Total,500.00,Rents,2324P12_CR00567,REDACTED PERSONAL DATA
Sandwell Metropolitan Borough Council,http://www.sandwell.gov.uk/info/200202/performance_and_spending/1079/payments_over_500,04-Mar-2024,Housing & Assets Total,REDACTED PERSONAL DATA,Housing & Assets Total,500.00,Rents,2324P12_CR00568,REDACTED PERSONAL DATA
Sandwell Metropolitan Borough Council,http://www.sandwell.gov.uk/info/200202/performance_and_spending/1079/payments_over_500,04-Mar-2024,Housing & Assets Total,REDACTED PERSONAL DATA,Housing & Assets Total,500.00,Rents,2324P12_CR00569,REDACTED PERSONAL DATA
Sandwell Metropolitan Borough Council,http://www.sandwell.gov.uk/info/200202/performance_and_spending/1079/payments_over_500,04-Mar-2024,Housing & Assets Total,REDACTED PERSONAL DATA,Housing & Assets Total,500.00,Rents,2324P12_CR00570,REDACTED PERSONAL DATA
Sandwell Metropolitan Borough Council,http://www.sandwell.gov.uk/info/200202/performance_and_spending/1079/payments_over_500,04-Mar-2024,Housing & Assets Total,REDACTED PERSONAL DATA,Housing & Assets Total,500.00,Rents,2324P12_CR00571,REDACTED PERSONAL DATA
Sandwell Metropolitan Borough Council,http://www.sandwell.gov.uk/info/200202/performance_and_spending/1079/payments_over_500,04-Mar-2024,Housing & Assets Total,REDACTED PERSONAL DATA,Housing & Assets Total,500.00,Rents,2324P12_CR00572,REDACTED PERSONAL DATA
Sandwell Metropolitan Borough Council,http://www.sandwell.gov.uk/info/200202/performance_and_spending/1079/payments_over_500,04-Mar-2024,Housing & Assets Total,REDACTED PERSONAL DATA,Housing & Assets Total,500.00,Rents,2324P12_CR00573,REDACTED PERSONAL DATA
Sandwell Metropolitan Borough Council,http://www.sandwell.gov.uk/info/200202/performance_and_spending/1079/payments_over_500,04-Mar-2024,Housing & Assets Total,REDACTED PERSONAL DATA,Housing & Assets Total,500.00,Rents,2324P12_CR00574,REDACTED PERSONAL DATA
Sandwell Metropolitan Borough Council,http://www.sandwell.gov.uk/info/200202/performance_and_spending/1079/payments_over_500,04-Mar-2024,Housing & Assets Total,REDACED PERSONAL DATA,Housing & Assets Total,500.00,Rents,2324P12_CR00575,REDACTED PERSONAL DATA
Sandwell Metropolitan Borough Council,http://www.sandwell.gov.uk/info/200202/performance_and_spending/1079/payments_over_500,04-Mar-2024,Housing & Assets Total,REDACTED PERSONAL DATA,Housing & Assets Total,500.00,Rents,2324P12_CR00576,REDACTED PERSONAL DATA
Sandwell Metropolitan Borough Council,http://www.sandwell.gov.uk/info/200202/performance_and_spending/1079/payments_over_500,04-Mar-2024,Housing & Assets Total,REDACTED PERSONAL DATA,Housing & Assets Total,500.00,Rents,2324P12_CR00577,REDACTED PERSONAL DATA
Sandwell Metropolitan Borough Council,http://www.sandwell.gov.uk/info/200202/performance_and_spending/1079/payments_over_500,04-Mar-2024,Housing & Assets Total,REDACTED PERSONAL DATA,Housing & Assets Total,500.00,Rents,2324P12_CR00578,REDACTED PERSONAL DATA
Sandwell Metropolitan Borough Council,http://www.sandwell.gov.uk/info/200202/performance_and_spending/1079/payments_over_500,04-Mar-2024,Housing & Assets Total,REDACTED PERSONAL DATA,Housing & Assets Total,500.00,Rents,2324P12_CR00579,REDACTED PERSONAL DATA
Sandwell Metropolitan Borough Council,http://www.sandwell.gov.uk/info/200202/performance_and_spending/1079/payments_over_500,04-Mar-2024,Housing & Assets Total,REDACTED PERSONAL DATA,Housing & Assets Total,700.00,Rents,2324P12_CR00580,REDACTED PERSONAL DATA
Sandwell Metropolitan Borough Council,http://www.sandwell.gov.uk/info/200202/performance_and_spending/1079/payments_over_500,04-Mar-2024,Housing & Assets Total,REDACTED PERSONAL DATA,Housing & Assets Total,500.00,Rents,2324P12_CR00581,REDACTED PERSONAL DATA
Sandwell Metropolitan Borough Council,http://www.sandwell.gov.uk/info/200202/performance_and_spending/1079/payments_over_500,28-Mar-2024,Housing & Assets Total,BALIJIT KAUR,Housing & Assets Total,500.00,Rents,2324P12_CR00582,101860
Sandwell Metropolitan Borough Council,http://www.sandwell.gov.uk/info/200202/performance_and_spending/1079/payments_over_500,28-Mar-2024,Housing & Assets Total,BALWANT SINGH,Housing & Assets Total,500.00,Rents,2324P12_CR00583,84433
Sandwell Metropolitan Borough Council,http://www.sandwell.gov.uk/info/200202/performance_and_spending/1079/payments_over_500,28-Mar-2024,Housing & Assets Total,ELEANOR MCGEE,Housing & Assets Total,550.00,Rents,2324P12_CR00584,109162
Sandwell Metropolitan Borough Council,http://www.sandwell.gov.uk/info/200202/performance_and_spending/1079/payments_over_500,26-Mar-2024,Housing & Assets Total,BIRMINGHAM EMPOWERMENT FORUM,Housing & Assets Total,7200.00,Grant Payments,2324P12_CR00585,122935
Sandwell Metropolitan Borough Council,http://www.sandwell.gov.uk/info/200202/performance_and_spending/1079/payments_over_500,05-Mar-2024,Housing & Assets Total,FRIAR PARK MILLENNIUM CENTRE,Housing & Assets Total,12500.00,Grant Payments,2324P12_CR00586,28476
Sandwell Metropolitan Borough Council,http://www.sandwell.gov.uk/info/200202/performance_and_spending/1079/payments_over_500,26-Mar-2024,Housing & Assets Total,SANDWELL CONSORTIUM CIC,Housing & Assets Total,29900.00,Grant Payments,2324P12_CR00587,104616
Sandwell Metropolitan Borough Council,http://www.sandwell.gov.uk/info/200202/performance_and_spending/1079/payments_over_500,01-Mar-2024,Housing & Communities,A R DEMOLITION LTD,Housing & Communities,2644.95,"CIP - New Construction,Conversion, Enhancement & Reno",2324P12_CR00588,166459
Sandwell Metropolitan Borough Council,http://www.sandwell.gov.uk/info/200202/performance_and_spending/1079/payments_over_500,05-Mar-2024,Housing & Communities,SANDWELL LEISURE TRUST,Housing & Communities,2450.00,CIP - Fixtures & Fittings,2324P12_CR00589,23305
Sandwell Metropolitan Borough Council,http://www.sandwell.gov.uk/info/200202/performance_and_spending/1079/payments_over_500,05-Mar-2024,Housing & Communities,SANDWELL LEISURE TRUST,Housing & Communities,1574.80,CIP - Fixtures & Fittings,2324P12_CR00590,23305
Sandwell Metropolitan Borough Council,http://www.sandwell.gov.uk/info/200202/performance_and_spending/1079/payments_over_500,01-Mar-2024,Housing Revenue Account Capital,A R DEMOLITION LTD,Housing Revenue Account Capital,1300.95,"CIP - New Construction,Conversion, Enhancement & Reno",2324P12_CR00591,166459
Sandwell Metropolitan Borough Council,http://www.sandwell.gov.uk/info/200202/performance_and_spending/1079/payments_over_500,01-Mar-2024,Housing Revenue Account Capital,"ACIVICO (DESIGN,CONSTRUCTION AND FACILITIES MANAGEMENT) LTD",Housing Revenue Account Capital,1950.00,"CIP - New Construction,Conversion, Enhancement & Reno",2324P12_CR00592,148500
Sandwell Metropolitan Borough Council,http://www.sandwell.gov.uk/info/200202/performance_and_spending/1079/payments_over_500,01-Mar-2024,Housing Revenue Account Capital,"ACIVICO (DESIGN,CONSTRUCTION AND FACILITIES MANAGEMENT) LTD",Housing Revenue Account Capital,9943.56,"CIP - New Construction,Conversion, Enhancement & Reno",2324P12_CR00593,148500
Sandwell Metropolitan Borough Council,http://www.sandwell.gov.uk/info/200202/performance_and_spending/1079/payments_over_500,01-Mar-2024,Housing Revenue Account Capital,"ACIVICO (DESIGN,CONSTRUCTION AND FACILITIES MANAGEMENT) LTD",Housing Revenue Account Capital,7891.88,"CIP - New Construction,Conversion, Enhancement & Reno",2324P12_CR00594,148500
Sandwell Metropolitan Borough Council,http://www.sandwell.gov.uk/info/200202/performance_and_spending/1079/payments_over_500,01-Mar-2024,Housing Revenue Account Capital,AECOM LTD,Housing Revenue Account Capital,2500.00,CIP - Infrastructure,2324P12_CR00595,01752754
Sandwell Metropolitan Borough Council,http://www.sandwell.gov.uk/info/200202/performance_and_spending/1079/payments_over_500,04-Mar-2024,Housing Revenue Account Capital,HAYSTOUN CONSTRUCTION LTD,Housing Revenue Account Capital,9686.10,CIP - Infrastructure,2324P12_CR00596,11849
Sandwell Metropolitan Borough Council,http://www.sandwell.gov.uk/info/200202/performance_and_spending/1079/payments_over_500,26-Mar-2024,Housing Revenue Account Capital,J.HARPER & SONS (LEOMINSTER) LIMITED,Housing Revenue Account Capital,143382.31,"CIP - New Construction,Conversion, Enhancement & Reno",2324P12_CR00597,111814
Sandwell Metropolitan Borough Council,http://www.sandwell.gov.uk/info/200202/performance_and_spending/1079/payments_over_500,19-Mar-2024,Housing Revenue Account Capital,JOHNSON POOLE & BLOOMER LTD,Housing Revenue Account Capital,21458.40,"CIP - New Construction,Conversion, Enhancement & Reno",2324P12_CR00598,01649573
Sandwell Metropolitan Borough Council,http://www.sandwell.gov.uk/info/200202/performance_and_spending/1079/payments_over_500,06-Mar-2024,Housing Revenue Account Capital,LIFT & ENGINEERING SERVICES LTD,Housing Revenue Account Capital,62772.00,Contract Payments,2324P12_CR00599,77003962
Sandwell Metropolitan Borough Council,http://www.sandwell.gov.uk/info/200202/performance_and_spending/1079/payments_over_500,04-Mar-2024,Housing Revenue Account Capital,LOVELL PARTNERSHIPS  LTD,Housing Revenue Account Capital,867984.35,"CIP - New Construction,Conversion, Enhancement & Reno",2324P12_CR00600,77007398
Sandwell Metropolitan Borough Council,http://www.sandwell.gov.uk/info/200202/performance_and_spending/1079/payments_over_500,06-Mar-2024,Housing Revenue Account Capital,LOVELL PARTNERSHIPS  LTD,Housing Revenue Account Capital,258791.91,"CIP - New Construction,Conversion, Enhancement & Reno",2324P12_CR00601,77007398
Sandwell Metropolitan Borough Council,http://www.sandwell.gov.uk/info/200202/performance_and_spending/1079/payments_over_500,01-Mar-2024,Housing Revenue Account Capital,PARCOR LTD,Housing Revenue Account Capital,14748.60,"CIP - New Construction,Conversion, Enhancement & Reno",2324P12_CR00602,163117
Sandwell Metropolitan Borough Council,http://www.sandwell.gov.uk/info/200202/performance_and_spending/1079/payments_over_500,01-Mar-2024,Housing Revenue Account Capital,PHOENIX GAS SERVICES LIMITED,Housing Revenue Account Capital,5230.17,Contract Payments,2324P12_CR00603,126729
Sandwell Metropolitan Borough Council,http://www.sandwell.gov.uk/info/200202/performance_and_spending/1079/payments_over_500,01-Mar-2024,Housing Revenue Account Capital,PHOENIX GAS SERVICES LIMITED,Housing Revenue Account Capital,3189.05,Contract Payments,2324P12_CR00604,126729
Sandwell Metropolitan Borough Council,http://www.sandwell.gov.uk/info/200202/performance_and_spending/1079/payments_over_500,01-Mar-2024,Housing Revenue Account Capital,PHOENIX GAS SERVICES LIMITED,Housing Revenue Account Capital,3114.32,Contract Payments,2324P12_CR00605,126729
Sandwell Metropolitan Borough Council,http://www.sandwell.gov.uk/info/200202/performance_and_spending/1079/payments_over_500,01-Mar-2024,Housing Revenue Account Capital,PHOENIX GAS SERVICES LIMITED,Housing Revenue Account Capital,4361.94,Contract Payments,2324P12_CR00606,126729
Sandwell Metropolitan Borough Council,http://www.sandwell.gov.uk/info/200202/performance_and_spending/1079/payments_over_500,01-Mar-2024,Housing Revenue Account Capital,PHOENIX GAS SERVICES LIMITED,Housing Revenue Account Capital,4718.61,Contract Payments,2324P12_CR00607,126729
Sandwell Metropolitan Borough Council,http://www.sandwell.gov.uk/info/200202/performance_and_spending/1079/payments_over_500,01-Mar-2024,Housing Revenue Account Capital,PHOENIX GAS SERVICES LIMITED,Housing Revenue Account Capital,3532.93,Contract Payments,2324P12_CR00608,126729
Sandwell Metropolitan Borough Council,http://www.sandwell.gov.uk/info/200202/performance_and_spending/1079/payments_over_500,01-Mar-2024,Housing Revenue Account Capital,PR PROPERTY MAINTENANCE,Housing Revenue Account Capital,8544.40,Deferred Charges/Grant Payments,2324P12_CR00609,33836
Sandwell Metropolitan Borough Council,http://www.sandwell.gov.uk/info/200202/performance_and_spending/1079/payments_over_500,01-Mar-2024,Housing Revenue Account Capital,PR PROPERTY MAINTENANCE,Housing Revenue Account Capital,38904.87,Deferred Charges/Grant Payments,2324P12_CR00610,33836
Sandwell Metropolitan Borough Council,http://www.sandwell.gov.uk/info/200202/performance_and_spending/1079/payments_over_500,01-Mar-2024,Housing Revenue Account Capital,PREMIER MOBILITY UK LTD,Housing Revenue Account Capital,2796.41,Deferred Charges/Grant Payments,2324P12_CR00611,167259
Sandwell Metropolitan Borough Council,http://www.sandwell.gov.uk/info/200202/performance_and_spending/1079/payments_over_500,01-Mar-2024,Housing Revenue Account Capital,PREMIER MOBILITY UK LTD,Housing Revenue Account Capital,2152.69,Deferred Charges/Grant Payments,2324P12_CR00612,167259
Sandwell Metropolitan Borough Council,http://www.sandwell.gov.uk/info/200202/performance_and_spending/1079/payments_over_500,01-Mar-2024,Housing Revenue Account Capital,PREMIER MOBILITY UK LTD,Housing Revenue Account Capital,4813.43,Deferred Charges/Grant Payments,2324P12_CR00613,167259
Sandwell Metropolitan Borough Council,http://www.sandwell.gov.uk/info/200202/performance_and_spending/1079/payments_over_500,01-Mar-2024,Housing Revenue Account Capital,PREMIER MOBILITY UK LTD,Housing Revenue Account Capital,5080.93,Deferred Charges/Grant Payments,2324P12_CR00614,167259
Sandwell Metropolitan Borough Council,http://www.sandwell.gov.uk/info/200202/performance_and_spending/1079/payments_over_500,01-Mar-2024,Housing Revenue Account Capital,PREMIER MOBILITY UK LTD,Housing Revenue Account Capital,4977.03,Deferred Charges/Grant Payments,2324P12_CR00615,167259
Sandwell Metropolitan Borough Council,http://www.sandwell.gov.uk/info/200202/performance_and_spending/1079/payments_over_500,01-Mar-2024,Housing Revenue Account Capital,RIDGE & PARTNERS LLP,Housing Revenue Account Capital,2153.38,Consultancy,2324P12_CR00616,134994
Sandwell Metropolitan Borough Council,http://www.sandwell.gov.uk/info/200202/performance_and_spending/1079/payments_over_500,01-Mar-2024,Housing Revenue Account Capital,RIDGE & PARTNERS LLP,Housing Revenue Account Capital,7000.00,"CIP - New Construction,Conversion, Enhancement & Reno",2324P12_CR00617,134994
Sandwell Metropolitan Borough Council,http://www.sandwell.gov.uk/info/200202/performance_and_spending/1079/payments_over_500,01-Mar-2024,Housing Revenue Account Capital,RIDGE & PARTNERS LLP,Housing Revenue Account Capital,2080.00,"CIP - New Construction,Conversion, Enhancement & Reno",2324P12_CR00618,134994
Sandwell Metropolitan Borough Council,http://www.sandwell.gov.uk/info/200202/performance_and_spending/1079/payments_over_500,01-Mar-2024,Housing Revenue Account Capital,RIDGE & PARTNERS LLP,Housing Revenue Account Capital,7000.00,"CIP - New Construction,Conversion, Enhancement & Reno",2324P12_CR00619,134994
Sandwell Metropolitan Borough Council,http://www.sandwell.gov.uk/info/200202/performance_and_spending/1079/payments_over_500,11-Mar-2024,Housing Revenue Account Capital,SEDDON CONSTRUCTION LIMITED,Housing Revenue Account Capital,38212.32,"CIP - New Construction,Conversion, Enhancement & Reno",2324P12_CR00620,132999
Sandwell Metropolitan Borough Council,http://www.sandwell.gov.uk/info/200202/performance_and_spending/1079/payments_over_500,12-Mar-2024,Housing Revenue Account Capital,SEDDON CONSTRUCTION LIMITED,Housing Revenue Account Capital,538917.89,"CIP - New Construction,Conversion, Enhancement & Reno",2324P12_CR00621,132999
Sandwell Metropolitan Borough Council,http://www.sandwell.gov.uk/info/200202/performance_and_spending/1079/payments_over_500,12-Mar-2024,Housing Revenue Account Capital,SEDDON CONSTRUCTION LIMITED,Housing Revenue Account Capital,24470.16,"CIP - New Construction,Conversion, Enhancement & Reno",2324P12_CR00622,132999
Sandwell Metropolitan Borough Council,http://www.sandwell.gov.uk/info/200202/performance_and_spending/1079/payments_over_500,01-Mar-2024,Housing Revenue Account Capital,SEDDON CONSTRUCTION LIMITED,Housing Revenue Account Capital,140395.30,"CIP - New Construction,Conversion, Enhancement & Reno",2324P12_CR00623,132999
Sandwell Metropolitan Borough Council,http://www.sandwell.gov.uk/info/200202/performance_and_spending/1079/payments_over_500,01-Mar-2024,Housing Revenue Account Capital,SELECT WINDOWS (HOME IMPROVEMENTS) LIMITED,Housing Revenue Account Capital,605.64,Contract Payments,2324P12_CR00624,42616
Sandwell Metropolitan Borough Council,http://www.sandwell.gov.uk/info/200202/performance_and_spending/1079/payments_over_500,01-Mar-2024,Housing Revenue Account Capital,SELECT WINDOWS (HOME IMPROVEMENTS) LIMITED,Housing Revenue Account Capital,1646.57,Contract Payments,2324P12_CR00625,42616
Sandwell Metropolitan Borough Council,http://www.sandwell.gov.uk/info/200202/performance_and_spending/1079/payments_over_500,01-Mar-2024,Housing Revenue Account Capital,SELECT WINDOWS (HOME IMPROVEMENTS) LIMITED,Housing Revenue Account Capital,805.69,Contract Payments,2324P12_CR00626,42616
Sandwell Metropolitan Borough Council,http://www.sandwell.gov.uk/info/200202/performance_and_spending/1079/payments_over_500,01-Mar-2024,Housing Revenue Account Capital,SELECT WINDOWS (HOME IMPROVEMENTS) LIMITED,Housing Revenue Account Capital,1244.92,Contract Payments,2324P12_CR00627,42616
Sandwell Metropolitan Borough Council,http://www.sandwell.gov.uk/info/200202/performance_and_spending/1079/payments_over_500,01-Mar-2024,Housing Revenue Account Capital,SELECT WINDOWS (HOME IMPROVEMENTS) LIMITED,Housing Revenue Account Capital,3043.97,Contract Payments,2324P12_CR00628,42616
Sandwell Metropolitan Borough Council,http://www.sandwell.gov.uk/info/200202/performance_and_spending/1079/payments_over_500,01-Mar-2024,Housing Revenue Account Capital,SELECT WINDOWS (HOME IMPROVEMENTS) LIMITED,Housing Revenue Account Capital,1763.52,Contract Payments,2324P12_CR00629,42616
Sandwell Metropolitan Borough Council,http://www.sandwell.gov.uk/info/200202/performance_and_spending/1079/payments_over_500,01-Mar-2024,Housing Revenue Account Capital,SELECT WINDOWS (HOME IMPROVEMENTS) LIMITED,Housing Revenue Account Capital,693.96,Contract Payments,2324P12_CR00630,42616
Sandwell Metropolitan Borough Council,http://www.sandwell.gov.uk/info/200202/performance_and_spending/1079/payments_over_500,04-Mar-2024,Housing Revenue Account Capital,SURE MAINTENANCE LIMITED,Housing Revenue Account Capital,189605.70,"CIP - New Construction,Conversion, Enhancement & Reno",2324P12_CR00631,93926
Sandwell Metropolitan Borough Council,http://www.sandwell.gov.uk/info/200202/performance_and_spending/1079/payments_over_500,01-Mar-2024,Housing Revenue Account Capital,SURE MAINTENANCE LIMITED,Housing Revenue Account Capital,239415.00,"CIP - New Construction,Conversion, Enhancement & Reno",2324P12_CR00632,93926
Sandwell Metropolitan Borough Council,http://www.sandwell.gov.uk/info/200202/performance_and_spending/1079/payments_over_500,12-Mar-2024,Housing Revenue Account Capital,SYCAMORE WINDOWS & CONSERVATORIES LIMITED,Housing Revenue Account Capital,221367.61,"CIP - New Construction,Conversion, Enhancement & Reno",2324P12_CR00633,145272
Sandwell Metropolitan Borough Council,http://www.sandwell.gov.uk/info/200202/performance_and_spending/1079/payments_over_500,26-Mar-2024,Housing Revenue Account Capital,WELCH AND PHILLIPS BUILDING CONTRACTORS LTD,Housing Revenue Account Capital,93166.43,"CIP - New Construction,Conversion, Enhancement & Reno",2324P12_CR00634,167124
Sandwell Metropolitan Borough Council,http://www.sandwell.gov.uk/info/200202/performance_and_spending/1079/payments_over_500,01-Mar-2024,Housing Revenue Account Capital,WESSEX LIFT CO LTD,Housing Revenue Account Capital,532.82,Deferred Charges/Grant Payments,2324P12_CR00635,01095737
Sandwell Metropolitan Borough Council,http://www.sandwell.gov.uk/info/200202/performance_and_spending/1079/payments_over_500,01-Mar-2024,Housing Revenue Account Capital,BAILY GARNER,Housing Revenue Account Capital,2240.00,Professional Fees (Asset),2324P12_CR00636,01629732
Sandwell Metropolitan Borough Council,http://www.sandwell.gov.uk/info/200202/performance_and_spending/1079/payments_over_500,01-Mar-2024,Housing Revenue Account Capital,BAILY GARNER,Housing Revenue Account Capital,3430.00,Professional Fees (Asset),2324P12_CR00637,01629732
Sandwell Metropolitan Borough Council,http://www.sandwell.gov.uk/info/200202/performance_and_spending/1079/payments_over_500,01-Mar-2024,Housing Revenue Account Capital,PR PROPERTY MAINTENANCE,Housing Revenue Account Capital,670.45,Deferred Charges/Grant Payments,2324P12_CR00638,33836
Sandwell Metropolitan Borough Council,http://www.sandwell.gov.uk/info/200202/performance_and_spending/1079/payments_over_500,01-Mar-2024,Housing Revenue Account Capital,SMIRTHWAITE LIMITED,Housing Revenue Account Capital,4621.20,Deferred Charges/Grant Payments,2324P12_CR00639,01551366
Sandwell Metropolitan Borough Council,http://www.sandwell.gov.uk/info/200202/performance_and_spending/1079/payments_over_500,13-Mar-2024,Housing Revenue Account Capital,LIFT & ENGINEERING SERVICES LTD,Housing Revenue Account Capital,1057.45,"CIP - New Construction,Conversion, Enhancement & Reno",2324P12_CR00640,77003962
Sandwell Metropolitan Borough Council,http://www.sandwell.gov.uk/info/200202/performance_and_spending/1079/payments_over_500,13-Mar-2024,Housing Revenue Account Capital,LIFT & ENGINEERING SERVICES LTD,Housing Revenue Account Capital,547.35,"CIP - New Construction,Conversion, Enhancement & Reno",2324P12_CR00641,77003962
Sandwell Metropolitan Borough Council,http://www.sandwell.gov.uk/info/200202/performance_and_spending/1079/payments_over_500,13-Mar-2024,Housing Revenue Account Capital,LIFT & ENGINEERING SERVICES LTD,Housing Revenue Account Capital,547.35,"CIP - New Construction,Conversion, Enhancement & Reno",2324P12_CR00642,77003962
Sandwell Metropolitan Borough Council,http://www.sandwell.gov.uk/info/200202/performance_and_spending/1079/payments_over_500,13-Mar-2024,Housing Revenue Account Capital,LIFT & ENGINEERING SERVICES LTD,Housing Revenue Account Capital,1646.44,"CIP - New Construction,Conversion, Enhancement & Reno",2324P12_CR00643,77003962
Sandwell Metropolitan Borough Council,http://www.sandwell.gov.uk/info/200202/performance_and_spending/1079/payments_over_500,21-Mar-2024,Individual School Budgets With Inclusion,5 STAR DAY NURSERY - OLDBURY,Individual School Budgets With Inclusion,11492.06,Grant Payments,2324P12_CR00644,120730
Sandwell Metropolitan Borough Council,http://www.sandwell.gov.uk/info/200202/performance_and_spending/1079/payments_over_500,21-Mar-2024,Individual School Budgets With Inclusion,5 STAR DAY NURSERY LIMITED,Individual School Budgets With Inclusion,16434.79,Grant Payments,2324P12_CR00645,105382
Sandwell Metropolitan Borough Council,http://www.sandwell.gov.uk/info/200202/performance_and_spending/1079/payments_over_500,21-Mar-2024,Individual School Budgets With Inclusion,ABC DAY NURSERY & PRE SCHOOL LTD,Individual School Budgets With Inclusion,17893.37,Grant Payments,2324P12_CR00646,01472823
Sandwell Metropolitan Borough Council,http://www.sandwell.gov.uk/info/200202/performance_and_spending/1079/payments_over_500,21-Mar-2024,Individual School Budgets With Inclusion,ADVENTURE QUEST (GREAT BRIDGE) LTD,Individual School Budgets With Inclusion,16184.56,Grant Payments,2324P12_CR00647,153563
Sandwell Metropolitan Borough Council,http://www.sandwell.gov.uk/info/200202/performance_and_spending/1079/payments_over_500,21-Mar-2024,Individual School Budgets With Inclusion,AL KAHIR SCHOOL,Individual School Budgets With Inclusion,4970.17,Grant Payments,2324P12_CR00648,128728
Sandwell Metropolitan Borough Council,http://www.sandwell.gov.uk/info/200202/performance_and_spending/1079/payments_over_500,22-Mar-2024,Individual School Budgets With Inclusion,ALBERT PRITCHARD INFANT SCHOOL,Individual School Budgets With Inclusion,4311.00,Grant Payments,2324P12_CR00649,60962
Sandwell Metropolitan Borough Council,http://www.sandwell.gov.uk/info/200202/performance_and_spending/1079/payments_over_500,22-Mar-2024,Individual School Budgets With Inclusion,ALBERT PRITCHARD INFANT SCHOOL   ,Individual School Budgets With Inclusion,712.80,Grant Payments,2324P12_CR00650,60962
Sandwell Metropolitan Borough Council,http://www.sandwell.gov.uk/info/200202/performance_and_spending/1079/payments_over_500,22-Mar-2024,Individual School Budgets With Inclusion,ALL SAINTS CE PRIMARY SCHOOL  ,Individual School Budgets With Inclusion,950.40,Grant Payments,2324P12_CR00651,60964
Sandwell Metropolitan Borough Council,http://www.sandwell.gov.uk/info/200202/performance_and_spending/1079/payments_over_500,22-Mar-2024,Individual School Budgets With Inclusion,ALL SAINTS CE PRIMARY SCHOOL     ,Individual School Budgets With Inclusion,6682.05,Grant Payments,2324P12_CR00652,60964
Sandwell Metropolitan Borough Council,http://www.sandwell.gov.uk/info/200202/performance_and_spending/1079/payments_over_500,22-Mar-2024,Individual School Budgets With Inclusion,ANNIE LENNARD INFANT SCHOOL,Individual School Budgets With Inclusion,831.60,Grant Payments,2324P12_CR00653,60966
Sandwell Metropolitan Borough Council,http://www.sandwell.gov.uk/info/200202/performance_and_spending/1079/payments_over_500,21-Mar-2024,Individual School Budgets With Inclusion,BABY STEPS DAY CARE,Individual School Budgets With Inclusion,4387.68,Grant Payments,2324P12_CR00654,165672
Sandwell Metropolitan Borough Council,http://www.sandwell.gov.uk/info/200202/performance_and_spending/1079/payments_over_500,21-Mar-2024,Individual School Budgets With Inclusion,BANANA MOON DAY NURSERY,Individual School Budgets With Inclusion,10497.92,Grant Payments,2324P12_CR00655,124220
Sandwell Metropolitan Borough Council,http://www.sandwell.gov.uk/info/200202/performance_and_spending/1079/payments_over_500,22-Mar-2024,Individual School Budgets With Inclusion,BEARWOOD PRIMARY SCHOOL   ,Individual School Budgets With Inclusion,1306.80,Grant Payments,2324P12_CR00656,60967
Sandwell Metropolitan Borough Council,http://www.sandwell.gov.uk/info/200202/performance_and_spending/1079/payments_over_500,21-Mar-2024,Individual School Budgets With Inclusion,BLACKHEATH PRIMARY SCHOOL,Individual School Budgets With Inclusion,5748.00,Grant Payments,2324P12_CR00657,60968
Sandwell Metropolitan Borough Council,http://www.sandwell.gov.uk/info/200202/performance_and_spending/1079/payments_over_500,22-Mar-2024,Individual School Budgets With Inclusion,BLACKHEATH PRIMARY SCHOOL   ,Individual School Budgets With Inclusion,1069.20,Grant Payments,2324P12_CR00658,60968
Sandwell Metropolitan Borough Council,http://www.sandwell.gov.uk/info/200202/performance_and_spending/1079/payments_over_500,21-Mar-2024,Individual School Budgets With Inclusion,BLEAKHOUSE PRIMARY SCHOOL.,Individual School Budgets With Inclusion,8622.00,Grant Payments,2324P12_CR00659,60969
Sandwell Metropolitan Borough Council,http://www.sandwell.gov.uk/info/200202/performance_and_spending/1079/payments_over_500,22-Mar-2024,Individual School Budgets With Inclusion,BLEAKHOUSE PRIMARY SCHOOL.,Individual School Budgets With Inclusion,712.80,Grant Payments,2324P12_CR00660,60969
Sandwell Metropolitan Borough Council,http://www.sandwell.gov.uk/info/200202/performance_and_spending/1079/payments_over_500,21-Mar-2024,Individual School Budgets With Inclusion,BOOKWORMS DAYCARE LIMITED,Individual School Budgets With Inclusion,13544.93,Grant Payments,2324P12_CR00661,114741
Sandwell Metropolitan Borough Council,http://www.sandwell.gov.uk/info/200202/performance_and_spending/1079/payments_over_500,21-Mar-2024,Individual School Budgets With Inclusion,BRANDHALL PRIMARY SCHOOL   ,Individual School Budgets With Inclusion,16491.60,Grant Payments,2324P12_CR00662,60971
Sandwell Metropolitan Borough Council,http://www.sandwell.gov.uk/info/200202/performance_and_spending/1079/payments_over_500,22-Mar-2024,Individual School Budgets With Inclusion,BRANDHALL PRIMARY SCHOOL   ,Individual School Budgets With Inclusion,1544.40,Grant Payments,2324P12_CR00663,60971
Sandwell Metropolitan Borough Council,http://www.sandwell.gov.uk/info/200202/performance_and_spending/1079/payments_over_500,22-Mar-2024,Individual School Budgets With Inclusion,BRICKHOUSE PRIMARY SCHOOL ,Individual School Budgets With Inclusion,712.80,Grant Payments,2324P12_CR00664,60973
Sandwell Metropolitan Borough Council,http://www.sandwell.gov.uk/info/200202/performance_and_spending/1079/payments_over_500,21-Mar-2024,Individual School Budgets With Inclusion,BRIGHT LIGHTS DAY NURSERY,Individual School Budgets With Inclusion,13972.86,Grant Payments,2324P12_CR00665,89877
Sandwell Metropolitan Borough Council,http://www.sandwell.gov.uk/info/200202/performance_and_spending/1079/payments_over_500,21-Mar-2024,Individual School Budgets With Inclusion,BURNT TREE PRIMARY SCHOOL  ,Individual School Budgets With Inclusion,9484.20,Grant Payments,2324P12_CR00666,60974
Sandwell Metropolitan Borough Council,http://www.sandwell.gov.uk/info/200202/performance_and_spending/1079/payments_over_500,22-Mar-2024,Individual School Budgets With Inclusion,BURNT TREE PRIMARY SCHOOL   ,Individual School Budgets With Inclusion,950.40,Grant Payments,2324P12_CR00667,60974
Sandwell Metropolitan Borough Council,http://www.sandwell.gov.uk/info/200202/performance_and_spending/1079/payments_over_500,21-Mar-2024,Individual School Budgets With Inclusion,BUSY BEE NURSERY,Individual School Budgets With Inclusion,18189.43,Grant Payments,2324P12_CR00668,01222577
Sandwell Metropolitan Borough Council,http://www.sandwell.gov.uk/info/200202/performance_and_spending/1079/payments_over_500,21-Mar-2024,Individual School Budgets With Inclusion,CAP DAY NURSERY,Individual School Budgets With Inclusion,1047.42,Grant Payments,2324P12_CR00669,51154
Sandwell Metropolitan Borough Council,http://www.sandwell.gov.uk/info/200202/performance_and_spending/1079/payments_over_500,21-Mar-2024,Individual School Budgets With Inclusion,CAUSEWAY GREEN PRIMARY SCHOOL  ,Individual School Budgets With Inclusion,6035.40,Grant Payments,2324P12_CR00670,60976
Sandwell Metropolitan Borough Council,http://www.sandwell.gov.uk/info/200202/performance_and_spending/1079/payments_over_500,21-Mar-2024,Individual School Budgets With Inclusion,CHRIST CHURCH C OF E PRIMARY SCHOOL,Individual School Budgets With Inclusion,5173.20,Grant Payments,2324P12_CR00671,1705
Sandwell Metropolitan Borough Council,http://www.sandwell.gov.uk/info/200202/performance_and_spending/1079/payments_over_500,21-Mar-2024,Individual School Budgets With Inclusion,CONFEDERATION OF BANGLADESHI ORGANISATIONS (CBO) LIMITED,Individual School Budgets With Inclusion,2927.34,Grant Payments,2324P12_CR00672,10034
Sandwell Metropolitan Borough Council,http://www.sandwell.gov.uk/info/200202/performance_and_spending/1079/payments_over_500,21-Mar-2024,Individual School Budgets With Inclusion,CONIFERS DAY NURSERY LTD,Individual School Budgets With Inclusion,13243.07,Grant Payments,2324P12_CR00673,131957
Sandwell Metropolitan Borough Council,http://www.sandwell.gov.uk/info/200202/performance_and_spending/1079/payments_over_500,21-Mar-2024,Individual School Budgets With Inclusion,CROCKETTS LANE COMMUNITY PRIMARY SCHOOL  ,Individual School Budgets With Inclusion,5173.20,Grant Payments,2324P12_CR00674,60980
Sandwell Metropolitan Borough Council,http://www.sandwell.gov.uk/info/200202/performance_and_spending/1079/payments_over_500,22-Mar-2024,Individual School Budgets With Inclusion,CROCKETTS LANE COMMUNITY PRIMARY SCHOOL  ,Individual School Budgets With Inclusion,1188.00,Grant Payments,2324P12_CR00675,60980
Sandwell Metropolitan Borough Council,http://www.sandwell.gov.uk/info/200202/performance_and_spending/1079/payments_over_500,21-Mar-2024,Individual School Budgets With Inclusion,DAFFODILS NURSERY LTD,Individual School Budgets With Inclusion,11685.78,Grant Payments,2324P12_CR00676,120066
Sandwell Metropolitan Borough Council,http://www.sandwell.gov.uk/info/200202/performance_and_spending/1079/payments_over_500,21-Mar-2024,Individual School Budgets With Inclusion,DEVONSHIRE INFANTS ACADEMY,Individual School Budgets With Inclusion,8622.00,Grant Payments,2324P12_CR00677,118366
Sandwell Metropolitan Borough Council,http://www.sandwell.gov.uk/info/200202/performance_and_spending/1079/payments_over_500,22-Mar-2024,Individual School Budgets With Inclusion,DEVONSHIRE INFANTS ACADEMY,Individual School Budgets With Inclusion,1188.00,Grant Payments,2324P12_CR00678,118366
Sandwell Metropolitan Borough Council,http://www.sandwell.gov.uk/info/200202/performance_and_spending/1079/payments_over_500,21-Mar-2024,Individual School Budgets With Inclusion,EATON VALLEY PRIMARY SCHOOL,Individual School Budgets With Inclusion,13795.20,Grant Payments,2324P12_CR00679,60981
Sandwell Metropolitan Borough Council,http://www.sandwell.gov.uk/info/200202/performance_and_spending/1079/payments_over_500,21-Mar-2024,Individual School Budgets With Inclusion,FAIRYTALES NURSERY LTD,Individual School Budgets With Inclusion,15797.86,Grant Payments,2324P12_CR00680,106247
Sandwell Metropolitan Borough Council,http://www.sandwell.gov.uk/info/200202/performance_and_spending/1079/payments_over_500,21-Mar-2024,Individual School Budgets With Inclusion,FATIMA DAY NURSERY,Individual School Budgets With Inclusion,13284.32,Grant Payments,2324P12_CR00681,131343
Sandwell Metropolitan Borough Council,http://www.sandwell.gov.uk/info/200202/performance_and_spending/1079/payments_over_500,21-Mar-2024,Individual School Budgets With Inclusion,FERNDALE PRIMARY SCHOOL  ,Individual School Budgets With Inclusion,13795.20,Grant Payments,2324P12_CR00682,11562
Sandwell Metropolitan Borough Council,http://www.sandwell.gov.uk/info/200202/performance_and_spending/1079/payments_over_500,21-Mar-2024,Individual School Budgets With Inclusion,FIREFLIES NURSERY LIMITED,Individual School Budgets With Inclusion,9196.74,Grant Payments,2324P12_CR00683,124120
Sandwell Metropolitan Borough Council,http://www.sandwell.gov.uk/info/200202/performance_and_spending/1079/payments_over_500,21-Mar-2024,Individual School Budgets With Inclusion,FIRST STEPS DAY NURSERY,Individual School Budgets With Inclusion,22272.58,Grant Payments,2324P12_CR00684,51155
Sandwell Metropolitan Borough Council,http://www.sandwell.gov.uk/info/200202/performance_and_spending/1079/payments_over_500,21-Mar-2024,Individual School Budgets With Inclusion,FIRST STEPS DAY NURSERY,Individual School Budgets With Inclusion,858.92,Grant Payments,2324P12_CR00685,51155
Sandwell Metropolitan Borough Council,http://www.sandwell.gov.uk/info/200202/performance_and_spending/1079/payments_over_500,21-Mar-2024,Individual School Budgets With Inclusion,FIRST STEPS OLDBURY,Individual School Budgets With Inclusion,12910.64,Grant Payments,2324P12_CR00686,118886
Sandwell Metropolitan Borough Council,http://www.sandwell.gov.uk/info/200202/performance_and_spending/1079/payments_over_500,21-Mar-2024,Individual School Budgets With Inclusion,GENIUS GEMS,Individual School Budgets With Inclusion,23160.38,Grant Payments,2324P12_CR00687,160606
Sandwell Metropolitan Borough Council,http://www.sandwell.gov.uk/info/200202/performance_and_spending/1079/payments_over_500,21-Mar-2024,Individual School Budgets With Inclusion,GNG NURSERY,Individual School Budgets With Inclusion,12372.66,Grant Payments,2324P12_CR00688,114805
Sandwell Metropolitan Borough Council,http://www.sandwell.gov.uk/info/200202/performance_and_spending/1079/payments_over_500,22-Mar-2024,Individual School Budgets With Inclusion,GRACE MARY PRIMARY SCHOOL   ,Individual School Budgets With Inclusion,594.00,Grant Payments,2324P12_CR00689,60991
Sandwell Metropolitan Borough Council,http://www.sandwell.gov.uk/info/200202/performance_and_spending/1079/payments_over_500,21-Mar-2024,Individual School Budgets With Inclusion,GRACE MARY PRIMARY SCHOOL      ,Individual School Budgets With Inclusion,6897.60,Grant Payments,2324P12_CR00690,60991
Sandwell Metropolitan Borough Council,http://www.sandwell.gov.uk/info/200202/performance_and_spending/1079/payments_over_500,21-Mar-2024,Individual School Budgets With Inclusion,GREAT BRIDGE PRIMARY SCHOOL,Individual School Budgets With Inclusion,8622.00,Grant Payments,2324P12_CR00691,42484
Sandwell Metropolitan Borough Council,http://www.sandwell.gov.uk/info/200202/performance_and_spending/1079/payments_over_500,21-Mar-2024,Individual School Budgets With Inclusion,HALL GREEN PRIMARY SCHOOL  ,Individual School Budgets With Inclusion,12933.00,Grant Payments,2324P12_CR00692,60996
Sandwell Metropolitan Borough Council,http://www.sandwell.gov.uk/info/200202/performance_and_spending/1079/payments_over_500,22-Mar-2024,Individual School Budgets With Inclusion,HALL GREEN PRIMARY SCHOOL  ,Individual School Budgets With Inclusion,831.60,Grant Payments,2324P12_CR00693,60996
Sandwell Metropolitan Borough Council,http://www.sandwell.gov.uk/info/200202/performance_and_spending/1079/payments_over_500,21-Mar-2024,Individual School Budgets With Inclusion,HAMSTEAD JUNIOR SCHOOL    ,Individual School Budgets With Inclusion,7759.80,Grant Payments,2324P12_CR00694,60998
Sandwell Metropolitan Borough Council,http://www.sandwell.gov.uk/info/200202/performance_and_spending/1079/payments_over_500,22-Mar-2024,Individual School Budgets With Inclusion,HANBURY PRIMARY SCHOOL     ,Individual School Budgets With Inclusion,1069.20,Grant Payments,2324P12_CR00695,60995
Sandwell Metropolitan Borough Council,http://www.sandwell.gov.uk/info/200202/performance_and_spending/1079/payments_over_500,21-Mar-2024,Individual School Budgets With Inclusion,HAPPY DAYS NURSERY (GREETS GREEN),Individual School Budgets With Inclusion,7446.20,Grant Payments,2324P12_CR00696,125840
Sandwell Metropolitan Borough Council,http://www.sandwell.gov.uk/info/200202/performance_and_spending/1079/payments_over_500,21-Mar-2024,Individual School Budgets With Inclusion,HARGATE PRIMARY SCHOOL ,Individual School Budgets With Inclusion,8622.00,Grant Payments,2324P12_CR00697,60999
Sandwell Metropolitan Borough Council,http://www.sandwell.gov.uk/info/200202/performance_and_spending/1079/payments_over_500,22-Mar-2024,Individual School Budgets With Inclusion,HARGATE PRIMARY SCHOOL ,Individual School Budgets With Inclusion,1663.20,Grant Payments,2324P12_CR00698,60999
Sandwell Metropolitan Borough Council,http://www.sandwell.gov.uk/info/200202/performance_and_spending/1079/payments_over_500,21-Mar-2024,Individual School Budgets With Inclusion,HARVILLS HAWTHORN PRIMARY SCHOOL  ,Individual School Budgets With Inclusion,9484.20,Grant Payments,2324P12_CR00699,01782074
Sandwell Metropolitan Borough Council,http://www.sandwell.gov.uk/info/200202/performance_and_spending/1079/payments_over_500,22-Mar-2024,Individual School Budgets With Inclusion,HOLY TRINITY CE PRIMARY   ,Individual School Budgets With Inclusion,1069.20,Grant Payments,2324P12_CR00700,61004
Sandwell Metropolitan Borough Council,http://www.sandwell.gov.uk/info/200202/performance_and_spending/1079/payments_over_500,21-Mar-2024,Individual School Budgets With Inclusion,HOLYHEAD PRIMARY ACADEMY  ,Individual School Budgets With Inclusion,6897.60,Grant Payments,2324P12_CR00701,61005
Sandwell Metropolitan Borough Council,http://www.sandwell.gov.uk/info/200202/performance_and_spending/1079/payments_over_500,22-Mar-2024,Individual School Budgets With Inclusion,HOLYHEAD PRIMARY ACADEMY  ,Individual School Budgets With Inclusion,1425.60,Grant Payments,2324P12_CR00702,61005
Sandwell Metropolitan Borough Council,http://www.sandwell.gov.uk/info/200202/performance_and_spending/1079/payments_over_500,21-Mar-2024,Individual School Budgets With Inclusion,HUMPTY DUMPTYS DAY NURSERY,Individual School Budgets With Inclusion,17270.71,Grant Payments,2324P12_CR00703,08510771
Sandwell Metropolitan Borough Council,http://www.sandwell.gov.uk/info/200202/performance_and_spending/1079/payments_over_500,22-Mar-2024,Individual School Budgets With Inclusion,JOSEPH TURNER PRIMARY SCHOOL    ,Individual School Budgets With Inclusion,2019.60,Grant Payments,2324P12_CR00704,61006
Sandwell Metropolitan Borough Council,http://www.sandwell.gov.uk/info/200202/performance_and_spending/1079/payments_over_500,21-Mar-2024,Individual School Budgets With Inclusion,JUBILEE PARK ACADEMY TRUST,Individual School Budgets With Inclusion,1724.40,Grant Payments,2324P12_CR00705,113377
Sandwell Metropolitan Borough Council,http://www.sandwell.gov.uk/info/200202/performance_and_spending/1079/payments_over_500,22-Mar-2024,Individual School Budgets With Inclusion,JUBILEE PARK ACADEMY TRUST,Individual School Budgets With Inclusion,1306.80,Grant Payments,2324P12_CR00706,113377
Sandwell Metropolitan Borough Council,http://www.sandwell.gov.uk/info/200202/performance_and_spending/1079/payments_over_500,21-Mar-2024,Individual School Budgets With Inclusion,JUNIPER'S PRESCHOOL,Individual School Budgets With Inclusion,17620.63,Grant Payments,2324P12_CR00707,154579
Sandwell Metropolitan Borough Council,http://www.sandwell.gov.uk/info/200202/performance_and_spending/1079/payments_over_500,21-Mar-2024,Individual School Budgets With Inclusion,JUNIPER'S PRESCHOOL,Individual School Budgets With Inclusion,1717.84,Grant Payments,2324P12_CR00708,154579
Sandwell Metropolitan Borough Council,http://www.sandwell.gov.uk/info/200202/performance_and_spending/1079/payments_over_500,21-Mar-2024,Individual School Budgets With Inclusion,KANGAROO POUCH AT GREAT BRIDGE,Individual School Budgets With Inclusion,14315.22,Grant Payments,2324P12_CR00709,129771
Sandwell Metropolitan Borough Council,http://www.sandwell.gov.uk/info/200202/performance_and_spending/1079/payments_over_500,21-Mar-2024,Individual School Budgets With Inclusion,KANGAROO POUCH AT TIVIDALE,Individual School Budgets With Inclusion,9096.95,Grant Payments,2324P12_CR00710,113715
Sandwell Metropolitan Borough Council,http://www.sandwell.gov.uk/info/200202/performance_and_spending/1079/payments_over_500,21-Mar-2024,Individual School Budgets With Inclusion,KANGAROO POUCH CHARLEMONT,Individual School Budgets With Inclusion,5687.82,Grant Payments,2324P12_CR00711,117283
Sandwell Metropolitan Borough Council,http://www.sandwell.gov.uk/info/200202/performance_and_spending/1079/payments_over_500,21-Mar-2024,Individual School Budgets With Inclusion,KANGAROO POUCH LIMITED,Individual School Budgets With Inclusion,10184.18,Grant Payments,2324P12_CR00712,106981
Sandwell Metropolitan Borough Council,http://www.sandwell.gov.uk/info/200202/performance_and_spending/1079/payments_over_500,21-Mar-2024,Individual School Budgets With Inclusion,KING GEORGE V PRIMARY SCHOOL,Individual School Budgets With Inclusion,1724.40,Grant Payments,2324P12_CR00713,61009
Sandwell Metropolitan Borough Council,http://www.sandwell.gov.uk/info/200202/performance_and_spending/1079/payments_over_500,21-Mar-2024,Individual School Budgets With Inclusion,LANGLEY PRIMARY SCHOOL,Individual School Budgets With Inclusion,10078.20,Grant Payments,2324P12_CR00714,61011
Sandwell Metropolitan Borough Council,http://www.sandwell.gov.uk/info/200202/performance_and_spending/1079/payments_over_500,21-Mar-2024,Individual School Budgets With Inclusion,LAVENDER FARM DAY NURSERY,Individual School Budgets With Inclusion,40868.93,Grant Payments,2324P12_CR00715,65596
Sandwell Metropolitan Borough Council,http://www.sandwell.gov.uk/info/200202/performance_and_spending/1079/payments_over_500,21-Mar-2024,Individual School Budgets With Inclusion,LAVENDER FARM DAY NURSERY,Individual School Budgets With Inclusion,858.92,Grant Payments,2324P12_CR00716,65596
Sandwell Metropolitan Borough Council,http://www.sandwell.gov.uk/info/200202/performance_and_spending/1079/payments_over_500,21-Mar-2024,Individual School Budgets With Inclusion,LILLIPUT LODGE CHILDRENS DAY NURSERY,Individual School Budgets With Inclusion,10732.32,Grant Payments,2324P12_CR00717,2980
Sandwell Metropolitan Borough Council,http://www.sandwell.gov.uk/info/200202/performance_and_spending/1079/payments_over_500,21-Mar-2024,Individual School Budgets With Inclusion,LITTLE ACADEMY NURSERY,Individual School Budgets With Inclusion,2180.52,Grant Payments,2324P12_CR00718,81904
Sandwell Metropolitan Borough Council,http://www.sandwell.gov.uk/info/200202/performance_and_spending/1079/payments_over_500,21-Mar-2024,Individual School Budgets With Inclusion,LITTLE ANGELS DAY NURSERY LIMITED,Individual School Budgets With Inclusion,7480.76,Grant Payments,2324P12_CR00719,10207
Sandwell Metropolitan Borough Council,http://www.sandwell.gov.uk/info/200202/performance_and_spending/1079/payments_over_500,21-Mar-2024,Individual School Budgets With Inclusion,LITTLE EXPLORERS (WEST MIDLANDS) LTD,Individual School Budgets With Inclusion,25547.72,Grant Payments,2324P12_CR00720,114804
Sandwell Metropolitan Borough Council,http://www.sandwell.gov.uk/info/200202/performance_and_spending/1079/payments_over_500,21-Mar-2024,Individual School Budgets With Inclusion,LITTLE LEARNERS LTD,Individual School Budgets With Inclusion,18777.96,Grant Payments,2324P12_CR00721,01424133
Sandwell Metropolitan Borough Council,http://www.sandwell.gov.uk/info/200202/performance_and_spending/1079/payments_over_500,21-Mar-2024,Individual School Budgets With Inclusion,LITTLE LEARNERS LTD,Individual School Budgets With Inclusion,858.92,Grant Payments,2324P12_CR00722,01424133
Sandwell Metropolitan Borough Council,http://www.sandwell.gov.uk/info/200202/performance_and_spending/1079/payments_over_500,21-Mar-2024,Individual School Budgets With Inclusion,LITTLE LEGEND NURSERIES LTD,Individual School Budgets With Inclusion,6245.71,Grant Payments,2324P12_CR00723,117890
Sandwell Metropolitan Borough Council,http://www.sandwell.gov.uk/info/200202/performance_and_spending/1079/payments_over_500,21-Mar-2024,Individual School Budgets With Inclusion,LITTLE SAPLINGS CHILDCARE CENTRES,Individual School Budgets With Inclusion,8891.57,Grant Payments,2324P12_CR00724,131043
Sandwell Metropolitan Borough Council,http://www.sandwell.gov.uk/info/200202/performance_and_spending/1079/payments_over_500,21-Mar-2024,Individual School Budgets With Inclusion,LITTLE STEPPERS,Individual School Budgets With Inclusion,4901.90,Grant Payments,2324P12_CR00725,120240
Sandwell Metropolitan Borough Council,http://www.sandwell.gov.uk/info/200202/performance_and_spending/1079/payments_over_500,21-Mar-2024,Individual School Budgets With Inclusion,LITTLE VALERS PRE SCHOOL,Individual School Budgets With Inclusion,14036.18,Grant Payments,2324P12_CR00726,99107
Sandwell Metropolitan Borough Council,http://www.sandwell.gov.uk/info/200202/performance_and_spending/1079/payments_over_500,21-Mar-2024,Individual School Budgets With Inclusion,LITTLE WENDY HOUSE DAY NURSERY,Individual School Budgets With Inclusion,33898.86,Grant Payments,2324P12_CR00727,91544
Sandwell Metropolitan Borough Council,http://www.sandwell.gov.uk/info/200202/performance_and_spending/1079/payments_over_500,21-Mar-2024,Individual School Budgets With Inclusion,LOLA BELLES PRIVATE DAY NURSERY,Individual School Budgets With Inclusion,16562.95,Grant Payments,2324P12_CR00728,89271
Sandwell Metropolitan Borough Council,http://www.sandwell.gov.uk/info/200202/performance_and_spending/1079/payments_over_500,21-Mar-2024,Individual School Budgets With Inclusion,LYNG PRIMARY SCHOOL      ,Individual School Budgets With Inclusion,8622.00,Grant Payments,2324P12_CR00729,61026
Sandwell Metropolitan Borough Council,http://www.sandwell.gov.uk/info/200202/performance_and_spending/1079/payments_over_500,21-Mar-2024,Individual School Budgets With Inclusion,MINI MONKEYS LTD,Individual School Budgets With Inclusion,11231.89,Grant Payments,2324P12_CR00730,114818
Sandwell Metropolitan Borough Council,http://www.sandwell.gov.uk/info/200202/performance_and_spending/1079/payments_over_500,21-Mar-2024,Individual School Budgets With Inclusion,MINNS LIMITED,Individual School Budgets With Inclusion,7557.84,Grant Payments,2324P12_CR00731,120067
Sandwell Metropolitan Borough Council,http://www.sandwell.gov.uk/info/200202/performance_and_spending/1079/payments_over_500,21-Mar-2024,Individual School Budgets With Inclusion,MOAT FARM INFANTS SCHOOL ,Individual School Budgets With Inclusion,16381.80,Grant Payments,2324P12_CR00732,61031
Sandwell Metropolitan Borough Council,http://www.sandwell.gov.uk/info/200202/performance_and_spending/1079/payments_over_500,22-Mar-2024,Individual School Budgets With Inclusion,MOAT FARM INFANTS SCHOOL ,Individual School Budgets With Inclusion,950.40,Grant Payments,2324P12_CR00733,61031
Sandwell Metropolitan Borough Council,http://www.sandwell.gov.uk/info/200202/performance_and_spending/1079/payments_over_500,21-Mar-2024,Individual School Budgets With Inclusion,MOORLANDS LITTLE LEARNERS PLAYGROUP,Individual School Budgets With Inclusion,11512.15,Grant Payments,2324P12_CR00734,46390
Sandwell Metropolitan Borough Council,http://www.sandwell.gov.uk/info/200202/performance_and_spending/1079/payments_over_500,21-Mar-2024,Individual School Budgets With Inclusion,N & K VARMA LIMITED T/A (KIDDIES PLAYHOUSE TIPTON),Individual School Budgets With Inclusion,11733.55,Grant Payments,2324P12_CR00735,26124
Sandwell Metropolitan Borough Council,http://www.sandwell.gov.uk/info/200202/performance_and_spending/1079/payments_over_500,21-Mar-2024,Individual School Budgets With Inclusion,N & K VARMA LIMITED T/A (KIDDIES PLAYHOUSE TIPTON),Individual School Budgets With Inclusion,858.92,Grant Payments,2324P12_CR00736,26124
Sandwell Metropolitan Borough Council,http://www.sandwell.gov.uk/info/200202/performance_and_spending/1079/payments_over_500,21-Mar-2024,Individual School Budgets With Inclusion,NEWTOWN PRIMARY ACADEMY,Individual School Budgets With Inclusion,2299.20,Grant Payments,2324P12_CR00737,61034
Sandwell Metropolitan Borough Council,http://www.sandwell.gov.uk/info/200202/performance_and_spending/1079/payments_over_500,21-Mar-2024,Individual School Budgets With Inclusion,OAKHAM PRIMARY SCHOOL        ,Individual School Budgets With Inclusion,17244.00,Grant Payments,2324P12_CR00738,61035
Sandwell Metropolitan Borough Council,http://www.sandwell.gov.uk/info/200202/performance_and_spending/1079/payments_over_500,22-Mar-2024,Individual School Budgets With Inclusion,OAKHAM PRIMARY SCHOOL        ,Individual School Budgets With Inclusion,712.80,Grant Payments,2324P12_CR00739,61035
Sandwell Metropolitan Borough Council,http://www.sandwell.gov.uk/info/200202/performance_and_spending/1079/payments_over_500,21-Mar-2024,Individual School Budgets With Inclusion,OCKER HILL INFANT SCHOOL ,Individual School Budgets With Inclusion,18106.20,Grant Payments,2324P12_CR00740,61036
Sandwell Metropolitan Borough Council,http://www.sandwell.gov.uk/info/200202/performance_and_spending/1079/payments_over_500,22-Mar-2024,Individual School Budgets With Inclusion,OCKER HILL INFANT SCHOOL ,Individual School Budgets With Inclusion,950.40,Grant Payments,2324P12_CR00741,61036
Sandwell Metropolitan Borough Council,http://www.sandwell.gov.uk/info/200202/performance_and_spending/1079/payments_over_500,21-Mar-2024,Individual School Budgets With Inclusion,OLD HILL PRIMARY SCHOOL    ,Individual School Budgets With Inclusion,6035.40,Grant Payments,2324P12_CR00742,04014504
Sandwell Metropolitan Borough Council,http://www.sandwell.gov.uk/info/200202/performance_and_spending/1079/payments_over_500,22-Mar-2024,Individual School Budgets With Inclusion,OLD HILL PRIMARY SCHOOL      ,Individual School Budgets With Inclusion,950.40,Grant Payments,2324P12_CR00743,04014504
Sandwell Metropolitan Borough Council,http://www.sandwell.gov.uk/info/200202/performance_and_spending/1079/payments_over_500,21-Mar-2024,Individual School Budgets With Inclusion,OLD PARK PRIMARY SCHOOL,Individual School Budgets With Inclusion,18106.20,Grant Payments,2324P12_CR00744,61039
Sandwell Metropolitan Borough Council,http://www.sandwell.gov.uk/info/200202/performance_and_spending/1079/payments_over_500,22-Mar-2024,Individual School Budgets With Inclusion,OLD PARK PRIMARY SCHOOL,Individual School Budgets With Inclusion,712.80,Grant Payments,2324P12_CR00745,61039
Sandwell Metropolitan Borough Council,http://www.sandwell.gov.uk/info/200202/performance_and_spending/1079/payments_over_500,21-Mar-2024,Individual School Budgets With Inclusion,OUR LADY AND ST HUBERTS CATHOLIC PRIMARY SCHOOL   ,Individual School Budgets With Inclusion,16523.35,Grant Payments,2324P12_CR00746,61053
Sandwell Metropolitan Borough Council,http://www.sandwell.gov.uk/info/200202/performance_and_spending/1079/payments_over_500,21-Mar-2024,Individual School Budgets With Inclusion,PARK HILL PRIMARY SCHOOL,Individual School Budgets With Inclusion,11208.60,Grant Payments,2324P12_CR00747,04017201
Sandwell Metropolitan Borough Council,http://www.sandwell.gov.uk/info/200202/performance_and_spending/1079/payments_over_500,21-Mar-2024,Individual School Budgets With Inclusion,PENNYHILL PRIMARY,Individual School Budgets With Inclusion,7759.80,Grant Payments,2324P12_CR00748,73125
Sandwell Metropolitan Borough Council,http://www.sandwell.gov.uk/info/200202/performance_and_spending/1079/payments_over_500,21-Mar-2024,Individual School Budgets With Inclusion,PERRYFIELDS PRE SCHOOL,Individual School Budgets With Inclusion,17062.21,Grant Payments,2324P12_CR00749,18879
Sandwell Metropolitan Borough Council,http://www.sandwell.gov.uk/info/200202/performance_and_spending/1079/payments_over_500,21-Mar-2024,Individual School Budgets With Inclusion,PLAYHOUSE DAY NURSERY,Individual School Budgets With Inclusion,5997.56,Grant Payments,2324P12_CR00750,01586669
Sandwell Metropolitan Borough Council,http://www.sandwell.gov.uk/info/200202/performance_and_spending/1079/payments_over_500,21-Mar-2024,Individual School Budgets With Inclusion,PRECIOUS TIMES DAY NURSERY,Individual School Budgets With Inclusion,12197.35,Grant Payments,2324P12_CR00751,165946
Sandwell Metropolitan Borough Council,http://www.sandwell.gov.uk/info/200202/performance_and_spending/1079/payments_over_500,21-Mar-2024,Individual School Budgets With Inclusion,PRECIOUS TIMES PRESCHOOL GEORGE RD,Individual School Budgets With Inclusion,4518.09,Grant Payments,2324P12_CR00752,167728
Sandwell Metropolitan Borough Council,http://www.sandwell.gov.uk/info/200202/performance_and_spending/1079/payments_over_500,21-Mar-2024,Individual School Budgets With Inclusion,RAK DAY CARE LTD T/A HAPPY VALLEY PRE SCHOOL LTD,Individual School Budgets With Inclusion,19715.83,Grant Payments,2324P12_CR00753,01572212
Sandwell Metropolitan Borough Council,http://www.sandwell.gov.uk/info/200202/performance_and_spending/1079/payments_over_500,21-Mar-2024,Individual School Budgets With Inclusion,RARE WOOD LIMITED,Individual School Budgets With Inclusion,21371.93,Grant Payments,2324P12_CR00754,20167
Sandwell Metropolitan Borough Council,http://www.sandwell.gov.uk/info/200202/performance_and_spending/1079/payments_over_500,21-Mar-2024,Individual School Budgets With Inclusion,REDDAL HILL PRIMARY SCHOOL  ,Individual School Budgets With Inclusion,5748.00,Grant Payments,2324P12_CR00755,61043
Sandwell Metropolitan Borough Council,http://www.sandwell.gov.uk/info/200202/performance_and_spending/1079/payments_over_500,22-Mar-2024,Individual School Budgets With Inclusion,REDDAL HILL PRIMARY SCHOOL  ,Individual School Budgets With Inclusion,1069.20,Grant Payments,2324P12_CR00756,61043
Sandwell Metropolitan Borough Council,http://www.sandwell.gov.uk/info/200202/performance_and_spending/1079/payments_over_500,22-Mar-2024,Individual School Budgets With Inclusion,ROOD END PRIMARY SCHOOL     ,Individual School Budgets With Inclusion,712.80,Grant Payments,2324P12_CR00757,61044
